BODY NAME,,SERVICE AREA,EXPENSES TYPE,EXPENSE CODE,DATE,TRANSACTION NO.,AMOUNT, SUPPLIER NAME,SUPPLIER ID
EFDC,CAPHR,HRA CAPITAL,WORKS,A040,28-Jun-19,153284,2463,STANNAH LIFT SERVICES LTD,STA019
EFDC,34110,HOUSING PROP SUPPORT SERVICES,POSTAGE,3510,28-Jun-19,151112,1.32,ROYAL MAIL GROUP PLC,ROY015
EFDC,RS301,NORTH WEALD CENTRE,FIXED PLANT MAINTENANCE,1020,28-Jun-19,152643,5330,C.Q SURFACING LTD,SUR008
EFDC,RS301,NORTH WEALD CENTRE,OTHER MAINTENANCE,1050,28-Jun-19,152651,670,C.Q SURFACING LTD,SUR008
EFDC,RS301,NORTH WEALD CENTRE,OTHER MAINTENANCE,1050,28-Jun-19,152651,200,C.Q SURFACING LTD,SUR008
EFDC,RS301,NORTH WEALD CENTRE,OTHER MAINTENANCE,1050,28-Jun-19,153730,6340,C.Q SURFACING LTD,SUR008
EFDC,RS301,NORTH WEALD CENTRE,OTHER MAINTENANCE,1050,28-Jun-19,153730,1500,C.Q SURFACING LTD,SUR008
EFDC,EH143,OTHER ACTIVITIES,PROFESSIONAL FEES,3420,28-Jun-19,152652,949,STUART POULTON LTD,STU003
EFDC,EH143,OTHER ACTIVITIES,PROFESSIONAL FEES,3420,28-Jun-19,152631,2120,STUART POULTON LTD,STU003
EFDC,YB500,SUPERVISION/MANAGEMENT SPECIAL,WINDOW CLEANING,1620,28-Jun-19,152301,522,STREAK-FREE WINDOW CLEANERS,STR012
EFDC,EH120,PRIVATE SECTOR HOUSING,SUBSCRIPTIONS,3730,28-Jun-19,153818,2400,THOMSON REUTERS (PROFESSIONAL) UK LTD,THO010
EFDC,CAPHR,HRA CAPITAL,WORKS,A040,28-Jun-19,152726,5827,STANNAH LIFT SERVICES LTD,STA019
EFDC,36500,HRA SUPPORT SERVICES,RECRUITMENT EXPENSES,0320,28-Jun-19,153552,680.53,TMP WORLDWIDE LTD,TMP001
EFDC,CAPHR,HRA CAPITAL,WORKS,A040,28-Jun-19,152245,2670,STANNAH LIFT SERVICES LTD,STA019
EFDC,CAPHR,HRA CAPITAL,WORKS,A040,28-Jun-19,154211,5075,STANNAH LIFT SERVICES LTD,STA019
EFDC,CAPHR,HRA CAPITAL,WORKS,A040,28-Jun-19,153283,2773,STANNAH LIFT SERVICES LTD,STA019
EFDC,CAPHR,HRA CAPITAL,MANAGEMENT CONSULTANT,B130,28-Jun-19,153066,1135,STACE LLP,STA012
EFDC,YB520,SUPERVISION/MANAGEMENT SPECIAL,OTHER CONTRACTORS,4340,28-Jun-19,152419,4358.46,TUNSTALL RESPONSE LTD,TUN002
EFDC,YB200,SUPERVISION/MANAGEMENT SPECIAL,EQUIPMENT - NEW,3010,28-Jun-19,153061,1170.05,TUNSTALL HEALTHCARE (UK) LTD,TUN001
EFDC,RE100,ELECTIONS,POSTAGE,3510,28-Jun-19,151709,87.12,ROYAL MAIL GROUP PLC,ROY015
EFDC,34110,HOUSING PROP SUPPORT SERVICES,POSTAGE,3510,28-Jun-19,152638,2.31,ROYAL MAIL GROUP PLC,ROY015
EFDC,33055,OTHER ACTIVITIES,POSTAGE,3510,28-Jun-19,151709,348.15,ROYAL MAIL GROUP PLC,ROY015
EFDC,YB500,SUPERVISION/MANAGEMENT SPECIAL,WINDOW CLEANING,1620,28-Jun-19,153464,548,STREAK-FREE WINDOW CLEANERS,STR012
EFDC,32060,OTHER SUPPORT SERVICES,RECRUITMENT EXPENSES,0320,28-Jun-19,153095,689.85,VENN GROUP LTD,VEN004
EFDC,CAPGF,GENERAL FUND CAPITAL,WORKS,B040,28-Jun-19,154134,141.7,EMERY ELECTRICAL LTD,EME001
EFDC,CAPGF,GENERAL FUND CAPITAL,WORKS,B040,28-Jun-19,154134,2493.75,EMERY ELECTRICAL LTD,EME001
EFDC,25300,INTERNAL INSURANCE FUND,PROFESSIONAL FEES,3420,28-Jun-19,154220,1735,ZURICH INSURANCE PLC,ZUR008
EFDC,26200,OTHER SUPPORT SERVICES,BUILDING MAINTENANCE,1010,28-Jun-19,154109,2005,ALLIED MECHANICAL SERVICES LTD,ALL002
EFDC,CAPHR,HRA CAPITAL,WORKS,A040,28-Jun-19,154227,16516.78,VSN ENTERPRISES LTD,VSN001
EFDC,SC100,WASTE MANAGEMENT,HIGHWAYS CONTRACTORS,4310,28-Jun-19,152231,1740.68,VEOLIA ES (UK) LTD,VER004
EFDC,EH112,LAND DRAINAGE/SEWERAGE,OTHER MAINTENANCE,1050,28-Jun-19,152308,2107.39,VEOLIA ES (UK) LTD,VER004
EFDC,SC100,WASTE MANAGEMENT,HIGHWAYS CONTRACTORS,4310,28-Jun-19,152234,903.25,VEOLIA ES (UK) LTD,VER004
EFDC,SC100,WASTE MANAGEMENT,HIGHWAYS CONTRACTORS,4310,28-Jun-19,152232,5024.54,VEOLIA ES (UK) LTD,VER004
EFDC,RS301,NORTH WEALD CENTRE,FIXED PLANT MAINTENANCE,1020,28-Jun-19,152643,1500,C.Q SURFACING LTD,SUR008
EFDC,32060,OTHER SUPPORT SERVICES,RECRUITMENT EXPENSES,0320,28-Jun-19,152401,821.25,VENN GROUP LTD,VEN004
EFDC,EL100,ELECTIONS,POSTAGE,3510,28-Jun-19,153183,76.23,ROYAL MAIL GROUP PLC,ROY015
EFDC,32060,OTHER SUPPORT SERVICES,RECRUITMENT EXPENSES,0320,28-Jun-19,153013,606.54,VENN GROUP LTD,VEN004
EFDC,32121,OTHER SUPPORT SERVICES,PROFESSIONAL FEES,3420,28-Jun-19,152800,650,TRAINING & COACHING SOLUTIONS LTD,TRA029
EFDC,32121,OTHER SUPPORT SERVICES,PROFESSIONAL FEES,3420,28-Jun-19,152800,36.33,TRAINING & COACHING SOLUTIONS LTD,TRA029
EFDC,32121,OTHER SUPPORT SERVICES,PROFESSIONAL FEES,3420,28-Jun-19,152798,900,TRAINING & COACHING SOLUTIONS LTD,TRA029
EFDC,32121,OTHER SUPPORT SERVICES,PROFESSIONAL FEES,3420,28-Jun-19,152799,950,TRAINING & COACHING SOLUTIONS LTD,TRA029
EFDC,32122,OTHER SUPPORT SERVICES,CONSULTANTS FEES,3490,28-Jun-19,152064,2100,TRAINING & COACHING SOLUTIONS LTD,TRA029
EFDC,78001,HRA SUPPORT SERVICES,MATERIALS,3080,28-Jun-19,153508,13504.3,TRAVIS PERKINS TRADING COMPANY LTD,TRA001
EFDC,78001,HRA SUPPORT SERVICES,MATERIALS,3080,28-Jun-19,152826,573.05,TRAVIS PERKINS TRADING COMPANY LTD,TRA001
EFDC,78001,HRA SUPPORT SERVICES,MATERIALS,3080,28-Jun-19,153508,43.99,TRAVIS PERKINS TRADING COMPANY LTD,TRA001
EFDC,32060,OTHER SUPPORT SERVICES,RECRUITMENT EXPENSES,0320,28-Jun-19,151427,595.77,VENN GROUP LTD,VEN004
EFDC,36200,HRA SUPPORT SERVICES,POSTAGE,3510,28-Jun-19,154021,113.19,ROYAL MAIL GROUP PLC,ROY015
EFDC,CH110,"MUSEUM, HERITAGE & CULTURE",POSTAGE,3510,28-Jun-19,154021,1.32,ROYAL MAIL GROUP PLC,ROY015
EFDC,37100,PLANNING SUPPORT SERVICES,POSTAGE,3510,28-Jun-19,153686,160.05,ROYAL MAIL GROUP PLC,ROY015
EFDC,37100,PLANNING SUPPORT SERVICES,POSTAGE,3510,28-Jun-19,154021,194.04,ROYAL MAIL GROUP PLC,ROY015
EFDC,37100,PLANNING SUPPORT SERVICES,POSTAGE,3510,28-Jun-19,153124,133.77,ROYAL MAIL GROUP PLC,ROY015
EFDC,37100,PLANNING SUPPORT SERVICES,POSTAGE,3510,28-Jun-19,153183,187.77,ROYAL MAIL GROUP PLC,ROY015
EFDC,37100,PLANNING SUPPORT SERVICES,POSTAGE,3510,28-Jun-19,151112,100.32,ROYAL MAIL GROUP PLC,ROY015
EFDC,37100,PLANNING SUPPORT SERVICES,POSTAGE,3510,28-Jun-19,152638,207.57,ROYAL MAIL GROUP PLC,ROY015
EFDC,34110,HOUSING PROP SUPPORT SERVICES,POSTAGE,3510,28-Jun-19,153183,2.97,ROYAL MAIL GROUP PLC,ROY015
EFDC,36200,HRA SUPPORT SERVICES,POSTAGE,3510,28-Jun-19,153686,116.49,ROYAL MAIL GROUP PLC,ROY015
EFDC,35900,CONTRACT & TECH SUPPORT SERVIC,POSTAGE,3510,28-Jun-19,153183,150.15,ROYAL MAIL GROUP PLC,ROY015
EFDC,34110,HOUSING PROP SUPPORT SERVICES,POSTAGE,3510,28-Jun-19,154021,4.29,ROYAL MAIL GROUP PLC,ROY015
EFDC,35900,CONTRACT & TECH SUPPORT SERVIC,POSTAGE,3510,28-Jun-19,151112,18.81,ROYAL MAIL GROUP PLC,ROY015
EFDC,36200,HRA SUPPORT SERVICES,POSTAGE,3510,28-Jun-19,153124,199.02,ROYAL MAIL GROUP PLC,ROY015
EFDC,CH110,"MUSEUM, HERITAGE & CULTURE",POSTAGE,3510,28-Jun-19,151709,3.63,ROYAL MAIL GROUP PLC,ROY015
EFDC,34110,HOUSING PROP SUPPORT SERVICES,POSTAGE,3510,28-Jun-19,153124,1.32,ROYAL MAIL GROUP PLC,ROY015
EFDC,33055,OTHER ACTIVITIES,POSTAGE,3510,28-Jun-19,153124,182.63,ROYAL MAIL GROUP PLC,ROY015
EFDC,33075,OTHER ACTIVITIES,POSTAGE,3510,28-Jun-19,151709,710.84,ROYAL MAIL GROUP PLC,ROY015
EFDC,33055,OTHER ACTIVITIES,POSTAGE,3510,28-Jun-19,154021,232.32,ROYAL MAIL GROUP PLC,ROY015
EFDC,33055,OTHER ACTIVITIES,POSTAGE,3510,28-Jun-19,153183,302.94,ROYAL MAIL GROUP PLC,ROY015
EFDC,33055,OTHER ACTIVITIES,POSTAGE,3510,28-Jun-19,151112,125.07,ROYAL MAIL GROUP PLC,ROY015
EFDC,32190,OTHER SUPPORT SERVICES,AGENCY STAFF,0120,28-Jun-19,153790,2320,T.S.S. (TOTAL SECURITY SERVICES) LTD,TSS001
EFDC,36200,HRA SUPPORT SERVICES,POSTAGE,3510,28-Jun-19,153183,3255.12,ROYAL MAIL GROUP PLC,ROY015
EFDC,35900,CONTRACT & TECH SUPPORT SERVIC,POSTAGE,3510,28-Jun-19,154021,146.19,ROYAL MAIL GROUP PLC,ROY015
EFDC,CH110,"MUSEUM, HERITAGE & CULTURE",POSTAGE,3510,28-Jun-19,153183,0.99,ROYAL MAIL GROUP PLC,ROY015
EFDC,EL100,ELECTIONS,POSTAGE,3510,28-Jun-19,151709,74.25,ROYAL MAIL GROUP PLC,ROY015
EFDC,EL100,ELECTIONS,POSTAGE,3510,28-Jun-19,151709,2975.74,ROYAL MAIL GROUP PLC,ROY015
EFDC,EL100,ELECTIONS,POSTAGE,3510,28-Jun-19,152638,4881.88,ROYAL MAIL GROUP PLC,ROY015
EFDC,EL100,ELECTIONS,POSTAGE,3510,28-Jun-19,152638,103.62,ROYAL MAIL GROUP PLC,ROY015
EFDC,EL100,ELECTIONS,POSTAGE,3510,28-Jun-19,154021,54.12,ROYAL MAIL GROUP PLC,ROY015
EFDC,EL100,ELECTIONS,POSTAGE,3510,28-Jun-19,151112,54.78,ROYAL MAIL GROUP PLC,ROY015
EFDC,EL100,ELECTIONS,POSTAGE,3510,28-Jun-19,153608,2043.31,ROYAL MAIL GROUP PLC,ROY015
EFDC,EL100,ELECTIONS,POSTAGE,3510,28-Jun-19,153686,4.29,ROYAL MAIL GROUP PLC,ROY015
EFDC,37100,PLANNING SUPPORT SERVICES,POSTAGE,3510,28-Jun-19,151709,179.85,ROYAL MAIL GROUP PLC,ROY015
EFDC,EL100,ELECTIONS,POSTAGE,3510,28-Jun-19,151112,3085.78,ROYAL MAIL GROUP PLC,ROY015
EFDC,RM100,RESPONSIVE & VOID REPAIRS,BUILDING MAINTENANCE,1010,28-Jun-19,152976,641.06,GRACELANDS COMPLETE MAINTENANCE SERVICES LTD,GRA007
EFDC,36200,HRA SUPPORT SERVICES,POSTAGE,3510,28-Jun-19,151112,67.65,ROYAL MAIL GROUP PLC,ROY015
EFDC,36200,HRA SUPPORT SERVICES,POSTAGE,3510,28-Jun-19,152638,126.06,ROYAL MAIL GROUP PLC,ROY015
EFDC,36200,HRA SUPPORT SERVICES,POSTAGE,3510,28-Jun-19,151709,105.6,ROYAL MAIL GROUP PLC,ROY015
EFDC,35900,CONTRACT & TECH SUPPORT SERVIC,POSTAGE,3510,28-Jun-19,153686,162.36,ROYAL MAIL GROUP PLC,ROY015
EFDC,34110,HOUSING PROP SUPPORT SERVICES,POSTAGE,3510,28-Jun-19,153686,8.58,ROYAL MAIL GROUP PLC,ROY015
EFDC,35900,CONTRACT & TECH SUPPORT SERVIC,POSTAGE,3510,28-Jun-19,153124,196.41,ROYAL MAIL GROUP PLC,ROY015
EFDC,34110,HOUSING PROP SUPPORT SERVICES,POSTAGE,3510,28-Jun-19,151709,4.95,ROYAL MAIL GROUP PLC,ROY015
EFDC,35900,CONTRACT & TECH SUPPORT SERVIC,POSTAGE,3510,28-Jun-19,151709,24.75,ROYAL MAIL GROUP PLC,ROY015
EFDC,35900,CONTRACT & TECH SUPPORT SERVIC,POSTAGE,3510,28-Jun-19,152638,199.65,ROYAL MAIL GROUP PLC,ROY015
EFDC,EL100,ELECTIONS,POSTAGE,3510,28-Jun-19,153278,2700.68,ROYAL MAIL GROUP PLC,ROY015
EFDC,CAPHR,HRA CAPITAL,WORKS,A040,28-Jun-19,154214,2088.45,TOWER ASPHALT LTD,TOW001
EFDC,RM100,RESPONSIVE & VOID REPAIRS,BUILDING MAINTENANCE,1010,28-Jun-19,151650,1040,ENVIRONMENTAL DRAINAGE & BUILDING SERVICES,ENV010
EFDC,32220,OTHER SUPPORT SERVICES,FEES & CHARGES,9210,28-Jun-19,150709,1628,WYG ENVIRONMENT PLANNING TRANSPORT LTD,WYG001
EFDC,DC120,PLANNING REGULATORY SERVICES,PROFESSIONAL FEES,3420,28-Jun-19,153023,5000,KIFT CONSULTING LTD,KIF001
EFDC,SC100,WASTE MANAGEMENT,CLEANSING CONTRACTORS,4320,28-Jun-19,151821,731.4,JUST GRAB SERVICES LTD,JUS002
EFDC,SC100,WASTE MANAGEMENT,CLEANSING CONTRACTORS,4320,28-Jun-19,151822,1043.2,JUST GRAB SERVICES LTD,JUS002
EFDC,PP111,LOCAL PLAN IMPLEMENTATION,CONSULTANTS FEES,3490,28-Jun-19,152710,3538.26,DIXON SEARLE PARTNERSHIP LIMITED,DIX001
EFDC,51150,OTHER SUPPORT SERVICES,TRAINING EXPENSES,0310,28-Jun-19,151783,800,WRITTLE COLLEGE,WRI004
EFDC,BAL01,EFDC BALANCE SHEET,TUSKER CAR SCHEME,Z631,28-Jun-19,154225,410.14,TUSKERDIRECT LTD,TUS002
EFDC,BAL01,EFDC BALANCE SHEET,TUSKER CAR SCHEME,Z631,28-Jun-19,154225,103.47,TUSKERDIRECT LTD,TUS002
EFDC,CAPHR,HRA CAPITAL,VOIDS WORKS,A045,28-Jun-19,153009,525,WOODS BUILDING SERVICES LTD,WOO001
EFDC,YB140,SUPERVISION/MANAGEMENT SPECIAL,OTHER MAINTENANCE,1050,28-Jun-19,154036,111.24,BINDER LTD,BIN001
EFDC,CAPHR,HRA CAPITAL,VOIDS WORKS,A045,28-Jun-19,152683,518,WOODS BUILDING SERVICES LTD,WOO001
EFDC,RM100,RESPONSIVE & VOID REPAIRS,BUILDING MAINTENANCE,1010,28-Jun-19,151770,4840,TOWER ASPHALT LTD,TOW001
EFDC,33080,OTHER ACTIVITIES,FIXED NETWORK LINE COSTS,3520,28-Jun-19,153636,4352.52,SOLAR COMMUNICATION LIMITED,SOL002
EFDC,26200,OTHER SUPPORT SERVICES,BUILDING MAINTENANCE,1010,28-Jun-19,152402,1263,R C INTERIORS,RCI001
EFDC,CAPGF,GENERAL FUND CAPITAL,WORKS,B040,28-Jun-19,153777,162,R C INTERIORS,RCI001
EFDC,CAPGF,GENERAL FUND CAPITAL,WORKS,B040,28-Jun-19,153777,735,R C INTERIORS,RCI001
EFDC,CAPGF,GENERAL FUND CAPITAL,WORKS,B040,28-Jun-19,153777,4110.86,R C INTERIORS,RCI001
EFDC,HL100,HOMELESSNESS,PROFESSIONAL FEES,3420,28-Jun-19,152593,530,NOWMEDICAL,NOW001
EFDC,EI131,LOCAL PLAN IMPLEMENTATION,GRANTS GENERAL,3720,28-Jun-19,150348,8226.6,ESSEX WILDLIFE TRUST LTD,ESS025
EFDC,78001,HRA SUPPORT SERVICES,MATERIALS,3080,28-Jun-19,153217,425,CRANBROOK ELECTRICS,CRA001
EFDC,YB140,SUPERVISION/MANAGEMENT SPECIAL,OTHER MAINTENANCE,1050,28-Jun-19,154036,458.12,BINDER LTD,BIN001
EFDC,43310,CONTRACT & TECH SUPPORT SERVIC,AGENCY STAFF,0120,28-Jun-19,153226,2052,MACDONALD & COMPANY FREELANCE LTD,MAC003
EFDC,32190,OTHER SUPPORT SERVICES,AGENCY STAFF,0120,28-Jun-19,154178,2436,T.S.S. (TOTAL SECURITY SERVICES) LTD,TSS001
EFDC,UO120,LAND & PROPERTY,SECURITY,1650,28-Jun-19,153788,2250,T.S.S. (TOTAL SECURITY SERVICES) LTD,TSS001
EFDC,27050,ACCOMMODATION,SECURITY,1650,28-Jun-19,154183,1237.44,T.S.S. (TOTAL SECURITY SERVICES) LTD,TSS001
EFDC,27050,ACCOMMODATION,SECURITY,1650,28-Jun-19,154183,5826.28,T.S.S. (TOTAL SECURITY SERVICES) LTD,TSS001
EFDC,27050,ACCOMMODATION,SECURITY,1650,28-Jun-19,154180,673.5,T.S.S. (TOTAL SECURITY SERVICES) LTD,TSS001
EFDC,UO120,LAND & PROPERTY,SECURITY,1650,28-Jun-19,153788,400,T.S.S. (TOTAL SECURITY SERVICES) LTD,TSS001
EFDC,UO120,LAND & PROPERTY,SECURITY,1650,28-Jun-19,154181,300,T.S.S. (TOTAL SECURITY SERVICES) LTD,TSS001
EFDC,27050,ACCOMMODATION,SECURITY,1650,28-Jun-19,154182,4959.43,T.S.S. (TOTAL SECURITY SERVICES) LTD,TSS001
EFDC,27050,ACCOMMODATION,SECURITY,1650,28-Jun-19,154182,1237.44,T.S.S. (TOTAL SECURITY SERVICES) LTD,TSS001
EFDC,CAPHR,HRA CAPITAL,VOIDS WORKS,A045,28-Jun-19,153010,1066,WOODS BUILDING SERVICES LTD,WOO001
EFDC,43310,CONTRACT & TECH SUPPORT SERVIC,AGENCY STAFF,0120,28-Jun-19,153225,2052,MACDONALD & COMPANY FREELANCE LTD,MAC003
EFDC,35300,CONTRACT & TECH SUPPORT SERVIC,AGENCY STAFF,0120,28-Jun-19,153451,539.7,BERRY RECRUITMENT LTD,BER001
EFDC,43310,CONTRACT & TECH SUPPORT SERVIC,AGENCY STAFF,0120,28-Jun-19,153227,2052,MACDONALD & COMPANY FREELANCE LTD,MAC003
EFDC,43310,CONTRACT & TECH SUPPORT SERVIC,AGENCY STAFF,0120,28-Jun-19,153228,2359.8,MACDONALD & COMPANY FREELANCE LTD,MAC003
EFDC,43310,CONTRACT & TECH SUPPORT SERVIC,AGENCY STAFF,0120,28-Jun-19,153229,2052,MACDONALD & COMPANY FREELANCE LTD,MAC003
EFDC,43310,CONTRACT & TECH SUPPORT SERVIC,AGENCY STAFF,0120,28-Jun-19,154606,2237.25,MACDONALD & COMPANY FREELANCE LTD,MAC003
EFDC,43310,CONTRACT & TECH SUPPORT SERVIC,AGENCY STAFF,0120,28-Jun-19,153230,2237.25,MACDONALD & COMPANY FREELANCE LTD,MAC003
EFDC,43310,CONTRACT & TECH SUPPORT SERVIC,AGENCY STAFF,0120,28-Jun-19,154139,2137.5,MACDONALD & COMPANY FREELANCE LTD,MAC003
EFDC,43310,CONTRACT & TECH SUPPORT SERVIC,AGENCY STAFF,0120,28-Jun-19,154605,2052,MACDONALD & COMPANY FREELANCE LTD,MAC003
EFDC,CAPHR,HRA CAPITAL,VOIDS WORKS,A045,28-Jun-19,151879,614,WOODS BUILDING SERVICES LTD,WOO001
EFDC,CAPHR,HRA CAPITAL,VOIDS WORKS,A045,28-Jun-19,151880,566,WOODS BUILDING SERVICES LTD,WOO001
EFDC,UO120,LAND & PROPERTY,SECURITY,1650,28-Jun-19,154181,2650,T.S.S. (TOTAL SECURITY SERVICES) LTD,TSS001
EFDC,RM100,RESPONSIVE & VOID REPAIRS,BUILDING MAINTENANCE,1010,28-Jun-19,152970,1707.15,GRACELANDS COMPLETE MAINTENANCE SERVICES LTD,GRA007
EFDC,RM200,RESPONSIVE & VOID REPAIRS,BUILDING MAINTENANCE,1010,28-Jun-19,152992,575.51,GRACELANDS COMPLETE MAINTENANCE SERVICES LTD,GRA007
EFDC,CAPHR,HRA CAPITAL,VOIDS WORKS,A045,28-Jun-19,153740,12485.01,GRACELANDS COMPLETE MAINTENANCE SERVICES LTD,GRA007
EFDC,RM300,PLANNED & CYCLICAL MAINTENANCE,BUILDING MAINTENANCE,1010,28-Jun-19,154194,104387.29,GRACELANDS COMPLETE MAINTENANCE SERVICES LTD,GRA007
EFDC,RM100,RESPONSIVE & VOID REPAIRS,BUILDING MAINTENANCE,1010,28-Jun-19,152977,1753,GRACELANDS COMPLETE MAINTENANCE SERVICES LTD,GRA007
EFDC,CAPHR,HRA CAPITAL,VOIDS WORKS,A045,28-Jun-19,153740,7857.31,GRACELANDS COMPLETE MAINTENANCE SERVICES LTD,GRA007
EFDC,CAPHR,HRA CAPITAL,VOIDS WORKS,A045,28-Jun-19,153740,13028.37,GRACELANDS COMPLETE MAINTENANCE SERVICES LTD,GRA007
EFDC,CAPHR,HRA CAPITAL,WORKS,A040,28-Jun-19,154196,18594.94,GRACELANDS COMPLETE MAINTENANCE SERVICES LTD,GRA007
EFDC,CAPHR,HRA CAPITAL,VOIDS WORKS,A045,28-Jun-19,153740,33624,GRACELANDS COMPLETE MAINTENANCE SERVICES LTD,GRA007
EFDC,CAPHR,HRA CAPITAL,VOIDS WORKS,A045,28-Jun-19,152644,4731.08,GRACELANDS COMPLETE MAINTENANCE SERVICES LTD,GRA007
EFDC,78001,HRA SUPPORT SERVICES,MATERIALS,3080,28-Jun-19,153217,1450,CRANBROOK ELECTRICS,CRA001
EFDC,RM100,RESPONSIVE & VOID REPAIRS,BUILDING MAINTENANCE,1010,28-Jun-19,152987,856.11,GRACELANDS COMPLETE MAINTENANCE SERVICES LTD,GRA007
EFDC,RM200,RESPONSIVE & VOID REPAIRS,BUILDING MAINTENANCE,1010,28-Jun-19,152967,795,GRACELANDS COMPLETE MAINTENANCE SERVICES LTD,GRA007
EFDC,RM100,RESPONSIVE & VOID REPAIRS,BUILDING MAINTENANCE,1010,28-Jun-19,152972,660.24,GRACELANDS COMPLETE MAINTENANCE SERVICES LTD,GRA007
EFDC,RM100,RESPONSIVE & VOID REPAIRS,BUILDING MAINTENANCE,1010,28-Jun-19,152984,875.7,GRACELANDS COMPLETE MAINTENANCE SERVICES LTD,GRA007
EFDC,CAPHR,HRA CAPITAL,VOIDS WORKS,A045,28-Jun-19,151902,5661.62,GRACELANDS COMPLETE MAINTENANCE SERVICES LTD,GRA007
EFDC,RM100,RESPONSIVE & VOID REPAIRS,BUILDING MAINTENANCE,1010,28-Jun-19,152971,1032.72,GRACELANDS COMPLETE MAINTENANCE SERVICES LTD,GRA007
EFDC,RM100,RESPONSIVE & VOID REPAIRS,BUILDING MAINTENANCE,1010,28-Jun-19,153701,720,GRACELANDS COMPLETE MAINTENANCE SERVICES LTD,GRA007
EFDC,RM100,RESPONSIVE & VOID REPAIRS,BUILDING MAINTENANCE,1010,28-Jun-19,152616,560,GRACELANDS COMPLETE MAINTENANCE SERVICES LTD,GRA007
EFDC,RM100,RESPONSIVE & VOID REPAIRS,BUILDING MAINTENANCE,1010,28-Jun-19,152968,640,GRACELANDS COMPLETE MAINTENANCE SERVICES LTD,GRA007
EFDC,RM100,RESPONSIVE & VOID REPAIRS,BUILDING MAINTENANCE,1010,28-Jun-19,152974,626.15,GRACELANDS COMPLETE MAINTENANCE SERVICES LTD,GRA007
EFDC,33055,OTHER ACTIVITIES,POSTAGE,3510,28-Jun-19,153686,236.94,ROYAL MAIL GROUP PLC,ROY015
EFDC,RM100,RESPONSIVE & VOID REPAIRS,BUILDING MAINTENANCE,1010,28-Jun-19,153637,630.51,GRACELANDS COMPLETE MAINTENANCE SERVICES LTD,GRA007
EFDC,RM400,PLANNED & CYCLICAL MAINTENANCE,BUILDING MAINTENANCE,1010,28-Jun-19,153253,658.88,PURDY CONTRACTS LTD,PUR002
EFDC,RM100,RESPONSIVE & VOID REPAIRS,BUILDING MAINTENANCE,1010,28-Jun-19,152978,699.42,GRACELANDS COMPLETE MAINTENANCE SERVICES LTD,GRA007
EFDC,33075,OTHER ACTIVITIES,AGENCY STAFF,0120,28-Jun-19,153767,857.39,MORGAN HUNT UK LTD,MOR001
EFDC,33075,OTHER ACTIVITIES,AGENCY STAFF,0120,28-Jun-19,153766,704.7,MORGAN HUNT UK LTD,MOR001
EFDC,33075,OTHER ACTIVITIES,AGENCY STAFF,0120,28-Jun-19,154141,692.96,MORGAN HUNT UK LTD,MOR001
EFDC,33055,OTHER ACTIVITIES,AGENCY STAFF,0120,28-Jun-19,153768,981.24,MORGAN HUNT UK LTD,MOR001
EFDC,33055,OTHER ACTIVITIES,AGENCY STAFF,0120,28-Jun-19,153769,808.86,MORGAN HUNT UK LTD,MOR001
EFDC,33075,OTHER ACTIVITIES,AGENCY STAFF,0120,28-Jun-19,154607,869.13,MORGAN HUNT UK LTD,MOR001
EFDC,RM100,RESPONSIVE & VOID REPAIRS,BUILDING MAINTENANCE,1010,28-Jun-19,153125,1490.28,M & J SERVICES LTD,SER009
EFDC,RM400,PLANNED & CYCLICAL MAINTENANCE,BUILDING MAINTENANCE,1010,28-Jun-19,154611,3733.33,PURDY CONTRACTS LTD,PUR002
EFDC,RM200,RESPONSIVE & VOID REPAIRS,BUILDING MAINTENANCE,1010,28-Jun-19,153003,873.81,GRACELANDS COMPLETE MAINTENANCE SERVICES LTD,GRA007
EFDC,RM400,PLANNED & CYCLICAL MAINTENANCE,BUILDING MAINTENANCE,1010,28-Jun-19,153254,552,PURDY CONTRACTS LTD,PUR002
EFDC,RM200,RESPONSIVE & VOID REPAIRS,BUILDING MAINTENANCE,1010,28-Jun-19,153740,57129.52,GRACELANDS COMPLETE MAINTENANCE SERVICES LTD,GRA007
EFDC,FD100,LAND DRAINAGE/SEWERAGE,HIGHWAYS CONTRACTORS,4310,28-Jun-19,151668,1862,HUGH PEARL (LAND DRAINAGE) LTD,HUG001
EFDC,GD190,VOLUNTARY SECTOR SUPPORT,GROUNDS MAINTENANCE,1040,28-Jun-19,151871,1761.5,HUGH PEARL (LAND DRAINAGE) LTD,HUG001
EFDC,YB150,SUPERVISION/MANAGEMENT SPECIAL,GROUNDS MAINTENANCE,1040,28-Jun-19,151870,568.9,HUGH PEARL (LAND DRAINAGE) LTD,HUG001
EFDC,RM200,RESPONSIVE & VOID REPAIRS,BUILDING MAINTENANCE,1010,28-Jun-19,152995,1364.25,GRACELANDS COMPLETE MAINTENANCE SERVICES LTD,GRA007
EFDC,RM200,RESPONSIVE & VOID REPAIRS,BUILDING MAINTENANCE,1010,28-Jun-19,153001,820.57,GRACELANDS COMPLETE MAINTENANCE SERVICES LTD,GRA007
EFDC,RM200,RESPONSIVE & VOID REPAIRS,BUILDING MAINTENANCE,1010,28-Jun-19,152994,840.73,GRACELANDS COMPLETE MAINTENANCE SERVICES LTD,GRA007
EFDC,RM100,RESPONSIVE & VOID REPAIRS,BUILDING MAINTENANCE,1010,28-Jun-19,152980,1180.98,GRACELANDS COMPLETE MAINTENANCE SERVICES LTD,GRA007
EFDC,RM200,RESPONSIVE & VOID REPAIRS,BUILDING MAINTENANCE,1010,28-Jun-19,153002,759.31,GRACELANDS COMPLETE MAINTENANCE SERVICES LTD,GRA007
EFDC,RM200,RESPONSIVE & VOID REPAIRS,BUILDING MAINTENANCE,1010,28-Jun-19,152997,751.62,GRACELANDS COMPLETE MAINTENANCE SERVICES LTD,GRA007
EFDC,35300,CONTRACT & TECH SUPPORT SERVIC,AGENCY STAFF,0120,28-Jun-19,153105,543.88,BERRY RECRUITMENT LTD,BER001
EFDC,RM400,PLANNED & CYCLICAL MAINTENANCE,BUILDING MAINTENANCE,1010,28-Jun-19,153255,3733.33,PURDY CONTRACTS LTD,PUR002
EFDC,35300,CONTRACT & TECH SUPPORT SERVIC,VEHICLE HIRE,2620,28-Jun-19,153561,1125.94,ERNEST DOE & SONS LTD,ERN001
EFDC,YB500,SUPERVISION/MANAGEMENT SPECIAL,GAS,1110,28-Jun-19,153511,595.46,CORONA ENERGY RETAIL 4 LTD,COR015
EFDC,CAPHR,HRA CAPITAL,WORKS,A040,28-Jun-19,153739,124763.66,EXTERIOR PLAS,EXT001
EFDC,RM100,RESPONSIVE & VOID REPAIRS,BUILDING MAINTENANCE,1010,28-Jun-19,152675,2542.76,EXTERIOR PLAS,EXT001
EFDC,RM100,RESPONSIVE & VOID REPAIRS,BUILDING MAINTENANCE,1010,28-Jun-19,152678,2673.51,EXTERIOR PLAS,EXT001
EFDC,RM100,RESPONSIVE & VOID REPAIRS,BUILDING MAINTENANCE,1010,28-Jun-19,152676,2774.53,EXTERIOR PLAS,EXT001
EFDC,26200,OTHER SUPPORT SERVICES,FIXED PLANT MAINTENANCE,1020,28-Jun-19,153223,320.62,ESSEX LIFT SERVICES LTD,ESS032
EFDC,RM400,PLANNED & CYCLICAL MAINTENANCE,BUILDING MAINTENANCE,1010,28-Jun-19,153223,768.45,ESSEX LIFT SERVICES LTD,ESS032
EFDC,26200,OTHER SUPPORT SERVICES,BUILDING MAINTENANCE,1010,28-Jun-19,153223,85.38,ESSEX LIFT SERVICES LTD,ESS032
EFDC,26200,OTHER SUPPORT SERVICES,BUILDING MAINTENANCE,1010,28-Jun-19,153223,85.38,ESSEX LIFT SERVICES LTD,ESS032
EFDC,RM100,RESPONSIVE & VOID REPAIRS,BUILDING MAINTENANCE,1010,28-Jun-19,152677,2467.26,EXTERIOR PLAS,EXT001
EFDC,35300,CONTRACT & TECH SUPPORT SERVIC,VEHICLE HIRE,2620,28-Jun-19,153560,2880,ERNEST DOE & SONS LTD,ERN001
EFDC,CAPHR,HRA CAPITAL,WORKS,A040,28-Jun-19,153739,1240.82,EXTERIOR PLAS,EXT001
EFDC,35300,CONTRACT & TECH SUPPORT SERVIC,VEHICLE HIRE,2620,28-Jun-19,151739,704.9,ERNEST DOE & SONS LTD,ERN001
EFDC,35300,CONTRACT & TECH SUPPORT SERVIC,VEHICLE HIRE,2620,28-Jun-19,153555,1928.18,ERNEST DOE & SONS LTD,ERN001
EFDC,32121,OTHER SUPPORT SERVICES,ANNUAL SUPPORT /  LICENSES,3872,28-Jun-19,151920,8669.9,CREATIVE LEARNING SYSTEMS,CRE006
EFDC,YB500,SUPERVISION/MANAGEMENT SPECIAL,GAS,1110,28-Jun-19,153524,1473.39,CORONA ENERGY RETAIL 4 LTD,COR015
EFDC,YB500,SUPERVISION/MANAGEMENT SPECIAL,GAS,1110,28-Jun-19,153520,1090.55,CORONA ENERGY RETAIL 4 LTD,COR015
EFDC,YB500,SUPERVISION/MANAGEMENT SPECIAL,GAS,1110,28-Jun-19,153526,1386.34,CORONA ENERGY RETAIL 4 LTD,COR015
EFDC,YB500,SUPERVISION/MANAGEMENT SPECIAL,GAS,1110,28-Jun-19,153528,1304.5,CORONA ENERGY RETAIL 4 LTD,COR015
EFDC,YB500,SUPERVISION/MANAGEMENT SPECIAL,GAS,1110,28-Jun-19,153510,1800.89,CORONA ENERGY RETAIL 4 LTD,COR015
EFDC,33055,OTHER ACTIVITIES,POSTAGE,3510,28-Jun-19,152638,334.62,ROYAL MAIL GROUP PLC,ROY015
EFDC,26200,OTHER SUPPORT SERVICES,BUILDING MAINTENANCE,1010,28-Jun-19,153223,85.38,ESSEX LIFT SERVICES LTD,ESS032
EFDC,32200,OTHER SUPPORT SERVICES,STOCK ISSUES,3070,28-Jun-19,152639,979.5,HOUND ENVELOPES LTD,HOU003
EFDC,78001,HRA SUPPORT SERVICES,REFUSE REMOVAL,1640,28-Jun-19,153627,825,HEATHERLAND LTD T/A LUNNON PLANT & WASTE SERV,HEA001
EFDC,78001,HRA SUPPORT SERVICES,REFUSE REMOVAL,1640,28-Jun-19,153626,1626.8,HEATHERLAND LTD T/A LUNNON PLANT & WASTE SERV,HEA001
EFDC,32220,OTHER SUPPORT SERVICES,AGENCY STAFF,0120,28-Jun-19,153104,1226.61,HAYS SPECIALIST RECRUITMENT LTD,HAY011
EFDC,32220,OTHER SUPPORT SERVICES,AGENCY STAFF,0120,28-Jun-19,153103,1226.61,HAYS SPECIALIST RECRUITMENT LTD,HAY011
EFDC,32120,OTHER SUPPORT SERVICES,EMPLOYEES - OTHER PAYMENTS,0191,28-Jun-19,151842,3600,HAYS SPECIALIST RECRUITMENT LTD,HAY011
EFDC,32120,OTHER SUPPORT SERVICES,EMPLOYEES - OTHER PAYMENTS,0191,28-Jun-19,152627,325.3,HARLOW OCCUPATIONAL HEALTH SERVICE LTD,HAR006
EFDC,32120,OTHER SUPPORT SERVICES,EMPLOYEES - OTHER PAYMENTS,0191,28-Jun-19,152627,1811.5,HARLOW OCCUPATIONAL HEALTH SERVICE LTD,HAR006
EFDC,HI122,HIGHWAYS,TREE  MAINTENANCE,1070,28-Jun-19,153098,234,GRISTWOOD & TOMS LTD,GRI001
EFDC,YB400,SUPERVISION/MANAGEMENT SPECIAL,TREE  MAINTENANCE,1070,28-Jun-19,153098,1856,GRISTWOOD & TOMS LTD,GRI001
EFDC,CAPHR,HRA CAPITAL,WORKS,A040,28-Jun-19,154649,1804.18,EXTERIOR PLAS,EXT001
EFDC,GT100,LOCAL PLAN IMPLEMENTATION,CONFERENCE EXPENSES,3620,28-Jun-19,153186,760,GOVNET COMMUNICATIONS,GOV002
EFDC,YB500,SUPERVISION/MANAGEMENT SPECIAL,GAS,1110,28-Jun-19,153514,1018.74,CORONA ENERGY RETAIL 4 LTD,COR015
EFDC,CAPHR,HRA CAPITAL,WORKS,A040,28-Jun-19,153184,44248.2,FLOWLINE (BUILDERS) LTD,FLO003
EFDC,OS110,PARKS & GROUNDS,GROUNDS MAINTENANCE,1040,28-Jun-19,152294,300,FIRST DEFENCE PEST CONTROL,FIR010
EFDC,GD190,VOLUNTARY SECTOR SUPPORT,GROUNDS MAINTENANCE,1040,28-Jun-19,152294,420,FIRST DEFENCE PEST CONTROL,FIR010
EFDC,33080,OTHER ACTIVITIES,ANNUAL SUPPORT /  LICENSES,3872,28-Jun-19,153550,15500,FIRMSTEP,FIR009
EFDC,RM100,RESPONSIVE & VOID REPAIRS,BUILDING MAINTENANCE,1010,28-Jun-19,154057,635,FIELDWHITE SERVICES LTD,FIE003
EFDC,RM100,RESPONSIVE & VOID REPAIRS,BUILDING MAINTENANCE,1010,28-Jun-19,153024,720,FIELDWHITE SERVICES LTD,FIE003
EFDC,RS301,NORTH WEALD CENTRE,OTHER MAINTENANCE,1050,28-Jun-19,152665,2590,B B & C FENCING,FEN003
EFDC,CAPHR,HRA CAPITAL,WORKS,A040,28-Jun-19,154650,100405.25,EXTERIOR PLAS,EXT001
EFDC,CAPHR,HRA CAPITAL,WORKS,A040,28-Jun-19,154649,18160.12,EXTERIOR PLAS,EXT001
EFDC,OS101,PARKS & GROUNDS,TREE  MAINTENANCE,1070,28-Jun-19,153098,1872,GRISTWOOD & TOMS LTD,GRI001
EFDC,28030,OTHER SUPPORT SERVICES,MATERIALS,3080,28-Jun-19,153659,-59.5,CARE VENDING SERVICES LTD,CAR017
EFDC,35300,CONTRACT & TECH SUPPORT SERVIC,GAS,1110,28-Jun-19,153522,726.22,CORONA ENERGY RETAIL 4 LTD,COR015
EFDC,33075,OTHER ACTIVITIES,AGENCY STAFF,0120,28-Jun-19,151198,814,EDEN BROWN LTD,EDE001
EFDC,33075,OTHER ACTIVITIES,AGENCY STAFF,0120,28-Jun-19,151199,814,EDEN BROWN LTD,EDE001
EFDC,33075,OTHER ACTIVITIES,AGENCY STAFF,0120,28-Jun-19,151200,792,EDEN BROWN LTD,EDE001
EFDC,33075,OTHER ACTIVITIES,AGENCY STAFF,0120,28-Jun-19,151201,748,EDEN BROWN LTD,EDE001
EFDC,BAL01,EFDC BALANCE SHEET,BUSY BEES,Z606,28-Jun-19,154094,1829.52,COMPUTERSHAREVOUCHER SERVICES,BUS009
EFDC,32115,OTHER SUPPORT SERVICES,CONSULTANTS FEES,3490,28-Jun-19,154090,659,CMS TRAINING LTD,CMS001
EFDC,32115,OTHER SUPPORT SERVICES,CONSULTANTS FEES,3490,28-Jun-19,151744,659,CMS TRAINING LTD,CMS001
EFDC,33060,OTHER ACTIVITIES,SUBSCRIPTIONS,3730,28-Jun-19,154052,4965,CIPFA BUSINESS LTD,CIP005
EFDC,RM400,PLANNED & CYCLICAL MAINTENANCE,BUILDING MAINTENANCE,1010,28-Jun-19,153220,283.72,EDMUNDSON ELECTRICAL LTD,EDM001
EFDC,28030,OTHER SUPPORT SERVICES,MATERIALS,3080,28-Jun-19,153659,592.72,CARE VENDING SERVICES LTD,CAR017
EFDC,RM400,PLANNED & CYCLICAL MAINTENANCE,BUILDING MAINTENANCE,1010,28-Jun-19,153220,280.28,EDMUNDSON ELECTRICAL LTD,EDM001
EFDC,RM100,RESPONSIVE & VOID REPAIRS,BUILDING MAINTENANCE,1010,28-Jun-19,153135,2495.65,OPENVIEW SECURITY SOLUTIONS LTD,CAR003
EFDC,CAPHR,HRA CAPITAL,WORKS,A040,28-Jun-19,154014,6840.73,OPENVIEW SECURITY SOLUTIONS LTD,CAR003
EFDC,CAPHR,HRA CAPITAL,WORKS,A040,28-Jun-19,134692,10607.22,OPENVIEW SECURITY SOLUTIONS LTD,CAR003
EFDC,RM100,RESPONSIVE & VOID REPAIRS,BUILDING MAINTENANCE,1010,28-Jun-19,153134,2495.65,OPENVIEW SECURITY SOLUTIONS LTD,CAR003
EFDC,CH118,"MUSEUM, HERITAGE & CULTURE",EQUIPMENT - NEW,3010,28-Jun-19,152658,2090,CAPITA BUSINESS SERVICES LTD,CAP004
EFDC,33080,OTHER ACTIVITIES,ANNUAL SUPPORT /  LICENSES,3872,28-Jun-19,153662,9165,CAPITA BUSINESS SERVICES LTD,CAP004
EFDC,33020,OTHER ACTIVITIES,CONSULTANTS FEES,3490,28-Jun-19,151036,2612.5,CAPITA BUSINESS SERVICES LTD,CAP004
EFDC,BA100,HOUSING BENEFITS,EQUIPMENT - NEW,3010,28-Jun-19,152262,5893.37,CAPITA BUSINESS SERVICES LTD,CAP004
EFDC,PH130,PRIVATE SECTOR HOUSING,OTHER CONTRACTORS,4340,28-Jun-19,152712,539.64,K J BATCHELOR,BAT003
EFDC,CAPGF,GENERAL FUND CAPITAL,EQUIPMENT ACQUISITION,C330,28-Jun-19,154089,1347.36,CCS MEDIA LTD,CCS002
EFDC,YB500,SUPERVISION/MANAGEMENT SPECIAL,GAS,1110,28-Jun-19,153163,1546.07,CORONA ENERGY RETAIL 4 LTD,COR015
EFDC,YB500,SUPERVISION/MANAGEMENT SPECIAL,GAS,1110,28-Jun-19,153529,1390.73,CORONA ENERGY RETAIL 4 LTD,COR015
EFDC,27050,ACCOMMODATION,GAS,1110,28-Jun-19,153151,2967.81,CORONA ENERGY RETAIL 4 LTD,COR015
EFDC,YB500,SUPERVISION/MANAGEMENT SPECIAL,GAS,1110,28-Jun-19,153156,1613.97,CORONA ENERGY RETAIL 4 LTD,COR015
EFDC,YB620,SUPERVISION/MANAGEMENT SPECIAL,GAS,1110,28-Jun-19,153530,1832.47,CORONA ENERGY RETAIL 4 LTD,COR015
EFDC,35300,CONTRACT & TECH SUPPORT SERVIC,GAS,1110,28-Jun-19,153168,771.9,CORONA ENERGY RETAIL 4 LTD,COR015
EFDC,27050,ACCOMMODATION,GAS,1110,28-Jun-19,153515,2385.42,CORONA ENERGY RETAIL 4 LTD,COR015
EFDC,YB620,SUPERVISION/MANAGEMENT SPECIAL,GAS,1110,28-Jun-19,153157,2171.48,CORONA ENERGY RETAIL 4 LTD,COR015
EFDC,YB500,SUPERVISION/MANAGEMENT SPECIAL,GAS,1110,28-Jun-19,153171,1122.77,CORONA ENERGY RETAIL 4 LTD,COR015
EFDC,YB500,SUPERVISION/MANAGEMENT SPECIAL,GAS,1110,28-Jun-19,153170,590.56,CORONA ENERGY RETAIL 4 LTD,COR015
EFDC,RM400,PLANNED & CYCLICAL MAINTENANCE,BUILDING MAINTENANCE,1010,28-Jun-19,153220,40,EDMUNDSON ELECTRICAL LTD,EDM001
EFDC,YB500,SUPERVISION/MANAGEMENT SPECIAL,GAS,1110,28-Jun-19,153165,1630.86,CORONA ENERGY RETAIL 4 LTD,COR015
EFDC,78001,HRA SUPPORT SERVICES,MATERIALS,3080,28-Jun-19,152685,594,IRONMONGERY DIRECT,IRO003
EFDC,YB500,SUPERVISION/MANAGEMENT SPECIAL,GAS,1110,28-Jun-19,153159,1197.43,CORONA ENERGY RETAIL 4 LTD,COR015
EFDC,TO100,LAND & PROPERTY,BANKING AND CASH COLLECTION,3440,28-Jun-19,153494,72.58,CONTRACT SECURITY SERVICES LTD,CON033
EFDC,CH110,"MUSEUM, HERITAGE & CULTURE",BANKING AND CASH COLLECTION,3440,28-Jun-19,153494,36.29,CONTRACT SECURITY SERVICES LTD,CON033
EFDC,YB620,SUPERVISION/MANAGEMENT SPECIAL,BANKING AND CASH COLLECTION,3440,28-Jun-19,153494,72.58,CONTRACT SECURITY SERVICES LTD,CON033
EFDC,34110,HOUSING PROP SUPPORT SERVICES,BANKING AND CASH COLLECTION,3440,28-Jun-19,153494,72.59,CONTRACT SECURITY SERVICES LTD,CON033
EFDC,33020,OTHER ACTIVITIES,BANKING AND CASH COLLECTION,3440,28-Jun-19,153494,362.92,CONTRACT SECURITY SERVICES LTD,CON033
EFDC,33020,OTHER ACTIVITIES,BANKING AND CASH COLLECTION,3440,28-Jun-19,153494,725.83,CONTRACT SECURITY SERVICES LTD,CON033
EFDC,RM400,PLANNED & CYCLICAL MAINTENANCE,BUILDING MAINTENANCE,1010,28-Jun-19,153757,40,EDMUNDSON ELECTRICAL LTD,EDM001
EFDC,RM400,PLANNED & CYCLICAL MAINTENANCE,BUILDING MAINTENANCE,1010,28-Jun-19,153757,530.32,EDMUNDSON ELECTRICAL LTD,EDM001
EFDC,YB500,SUPERVISION/MANAGEMENT SPECIAL,GAS,1110,28-Jun-19,153167,1472.56,CORONA ENERGY RETAIL 4 LTD,COR015
EFDC,34160,HOUSING PROP SUPPORT SERVICES,AGENCY STAFF,0120,28-Jun-19,154617,686.43,REED SPECIALIST RECRUITMENT LTD,REE002
EFDC,CAPGF,GENERAL FUND CAPITAL,EQUIPMENT ACQUISITION,C330,28-Jun-19,153020,1972.5,HEWLETT PACKARD LTD,HEW003
EFDC,HI124,HIGHWAYS,OTHER MAINTENANCE,1050,28-Jun-19,153099,736,SIGNWAY SUPPLIES (DATCHET) LTD,SIG009
EFDC,35300,CONTRACT & TECH SUPPORT SERVIC,FUEL,2330,28-Jun-19,153645,3430.4,SHELL U.K. OIL PRODUCTS LIMITED,SHE007
EFDC,EH155,ENVIRONMENTAL HEALTH,FUEL,2330,28-Jun-19,153639,41.92,SHELL U.K. OIL PRODUCTS LIMITED,SHE007
EFDC,78001,HRA SUPPORT SERVICES,FUEL,2330,28-Jun-19,153639,540.45,SHELL U.K. OIL PRODUCTS LIMITED,SHE007
EFDC,YB120,SUPERVISION/MANAGEMENT SPECIAL,FUEL,2330,28-Jun-19,153639,91.94,SHELL U.K. OIL PRODUCTS LIMITED,SHE007
EFDC,YB120,SUPERVISION/MANAGEMENT SPECIAL,FUEL,2330,28-Jun-19,153638,2540.22,SHELL U.K. OIL PRODUCTS LIMITED,SHE007
EFDC,51150,OTHER SUPPORT SERVICES,TRAINING EXPENSES,0310,28-Jun-19,153100,650,SHELTER TRAINING & PUBLICATIONS,SHE003
EFDC,34160,HOUSING PROP SUPPORT SERVICES,AGENCY STAFF,0120,28-Jun-19,153259,757.44,REED SPECIALIST RECRUITMENT LTD,REE002
EFDC,RE100,ELECTIONS,POSTAGE,3510,28-Jun-19,152638,81.51,ROYAL MAIL GROUP PLC,ROY015
EFDC,34160,HOUSING PROP SUPPORT SERVICES,AGENCY STAFF,0120,28-Jun-19,153256,662.76,REED SPECIALIST RECRUITMENT LTD,REE002
EFDC,32030,OTHER SUPPORT SERVICES,POSTAGE,3510,28-Jun-19,152638,32.63,ROYAL MAIL GROUP PLC,ROY015
EFDC,34160,HOUSING PROP SUPPORT SERVICES,AGENCY STAFF,0120,28-Jun-19,153784,662.76,REED SPECIALIST RECRUITMENT LTD,REE002
EFDC,35013,CONTRACT & TECH SUPPORT SERVIC,AGENCY STAFF,0120,28-Jun-19,153257,1043.1,REED SPECIALIST RECRUITMENT LTD,REE002
EFDC,35013,CONTRACT & TECH SUPPORT SERVIC,AGENCY STAFF,0120,28-Jun-19,154155,1043.1,REED SPECIALIST RECRUITMENT LTD,REE002
EFDC,35013,CONTRACT & TECH SUPPORT SERVIC,AGENCY STAFF,0120,28-Jun-19,152786,1043.1,REED SPECIALIST RECRUITMENT LTD,REE002
EFDC,32170,OTHER SUPPORT SERVICES,AGENCY STAFF,0120,28-Jun-19,154156,589.75,REED SPECIALIST RECRUITMENT LTD,REE002
EFDC,37100,PLANNING SUPPORT SERVICES,AGENCY STAFF,0120,28-Jun-19,153262,574.56,REED SPECIALIST RECRUITMENT LTD,REE002
EFDC,37100,PLANNING SUPPORT SERVICES,AGENCY STAFF,0120,28-Jun-19,153260,574.56,REED SPECIALIST RECRUITMENT LTD,REE002
EFDC,37100,PLANNING SUPPORT SERVICES,AGENCY STAFF,0120,28-Jun-19,154157,574.56,REED SPECIALIST RECRUITMENT LTD,REE002
EFDC,37100,PLANNING SUPPORT SERVICES,AGENCY STAFF,0120,28-Jun-19,154154,574.56,REED SPECIALIST RECRUITMENT LTD,REE002
EFDC,34160,HOUSING PROP SUPPORT SERVICES,AGENCY STAFF,0120,28-Jun-19,153258,520.74,REED SPECIALIST RECRUITMENT LTD,REE002
EFDC,32030,OTHER SUPPORT SERVICES,POSTAGE,3510,28-Jun-19,151112,11.88,ROYAL MAIL GROUP PLC,ROY015
EFDC,33075,OTHER ACTIVITIES,POSTAGE,3510,28-Jun-19,153686,894.47,ROYAL MAIL GROUP PLC,ROY015
EFDC,33075,OTHER ACTIVITIES,POSTAGE,3510,28-Jun-19,154021,1175.68,ROYAL MAIL GROUP PLC,ROY015
EFDC,33075,OTHER ACTIVITIES,POSTAGE,3510,28-Jun-19,154021,47.14,ROYAL MAIL GROUP PLC,ROY015
EFDC,33075,OTHER ACTIVITIES,POSTAGE,3510,28-Jun-19,153183,2033.56,ROYAL MAIL GROUP PLC,ROY015
EFDC,33075,OTHER ACTIVITIES,POSTAGE,3510,28-Jun-19,151112,13.47,ROYAL MAIL GROUP PLC,ROY015
EFDC,33075,OTHER ACTIVITIES,POSTAGE,3510,28-Jun-19,151112,1051.6,ROYAL MAIL GROUP PLC,ROY015
EFDC,33075,OTHER ACTIVITIES,POSTAGE,3510,28-Jun-19,151112,275.06,ROYAL MAIL GROUP PLC,ROY015
EFDC,33075,OTHER ACTIVITIES,POSTAGE,3510,28-Jun-19,152638,502.18,ROYAL MAIL GROUP PLC,ROY015
EFDC,33075,OTHER ACTIVITIES,POSTAGE,3510,28-Jun-19,151112,396.39,ROYAL MAIL GROUP PLC,ROY015
EFDC,32030,OTHER SUPPORT SERVICES,POSTAGE,3510,28-Jun-19,151709,130.35,ROYAL MAIL GROUP PLC,ROY015
EFDC,32030,OTHER SUPPORT SERVICES,POSTAGE,3510,28-Jun-19,152638,92.73,ROYAL MAIL GROUP PLC,ROY015
EFDC,RM200,RESPONSIVE & VOID REPAIRS,BUILDING MAINTENANCE,1010,28-Jun-19,153112,605.68,PYRODEC LTD,PYR001
EFDC,32030,OTHER SUPPORT SERVICES,POSTAGE,3510,28-Jun-19,153183,30.03,ROYAL MAIL GROUP PLC,ROY015
EFDC,32030,OTHER SUPPORT SERVICES,POSTAGE,3510,28-Jun-19,153124,33.45,ROYAL MAIL GROUP PLC,ROY015
EFDC,32030,OTHER SUPPORT SERVICES,POSTAGE,3510,28-Jun-19,154021,21.45,ROYAL MAIL GROUP PLC,ROY015
EFDC,33075,OTHER ACTIVITIES,POSTAGE,3510,28-Jun-19,153124,547.78,ROYAL MAIL GROUP PLC,ROY015
EFDC,RE100,ELECTIONS,POSTAGE,3510,28-Jun-19,153183,75.24,ROYAL MAIL GROUP PLC,ROY015
EFDC,RE100,ELECTIONS,POSTAGE,3510,28-Jun-19,153124,19.14,ROYAL MAIL GROUP PLC,ROY015
EFDC,RE100,ELECTIONS,POSTAGE,3510,28-Jun-19,154021,48.18,ROYAL MAIL GROUP PLC,ROY015
EFDC,32030,OTHER SUPPORT SERVICES,POSTAGE,3510,28-Jun-19,153686,21.78,ROYAL MAIL GROUP PLC,ROY015
EFDC,RE100,ELECTIONS,POSTAGE,3510,28-Jun-19,151112,91.08,ROYAL MAIL GROUP PLC,ROY015
EFDC,RE100,ELECTIONS,POSTAGE,3510,28-Jun-19,153686,185.13,ROYAL MAIL GROUP PLC,ROY015
EFDC,37600,PLANNING SUPPORT SERVICES,AGENCY STAFF,0120,28-Jun-19,153722,792,ADECCO UK LTD,ADE002
EFDC,CAPHR,HRA CAPITAL,VOIDS WORKS,A045,28-Jun-19,153744,2275.86,MEARS LTD,MEA002
EFDC,CAPHR,HRA CAPITAL,VOIDS WORKS,A045,28-Jun-19,153744,1915.4,MEARS LTD,MEA002
EFDC,RM200,RESPONSIVE & VOID REPAIRS,BUILDING MAINTENANCE,1010,28-Jun-19,154203,2358.6,MEARS LTD,MEA002
EFDC,RM200,RESPONSIVE & VOID REPAIRS,BUILDING MAINTENANCE,1010,28-Jun-19,154204,20085.12,MEARS LTD,MEA002
EFDC,RM200,RESPONSIVE & VOID REPAIRS,BUILDING MAINTENANCE,1010,28-Jun-19,154202,1874.29,MEARS LTD,MEA002
EFDC,YA300,SUPERVISION/MANAGEMENT GENERAL,BANKING AND CASH COLLECTION,3440,28-Jun-19,153579,573.72,ALLPAY.NET.LIMITED,ALL010
EFDC,YA300,SUPERVISION/MANAGEMENT GENERAL,BANKING AND CASH COLLECTION,3440,28-Jun-19,153580,1838.69,ALLPAY.NET.LIMITED,ALL010
EFDC,YB620,SUPERVISION/MANAGEMENT SPECIAL,WATER CHARGES,1410,28-Jun-19,153199,597.93,AFFINITY FOR BUSINESS LTD,AFF001
EFDC,27050,ACCOMMODATION,WATER CHARGES,1410,28-Jun-19,153177,746.91,AFFINITY FOR BUSINESS LTD,AFF001
EFDC,YB120,SUPERVISION/MANAGEMENT SPECIAL,AGENCY STAFF,0120,28-Jun-19,153780,615.6,REED SPECIALIST RECRUITMENT LTD,REE002
EFDC,37600,PLANNING SUPPORT SERVICES,AGENCY STAFF,0120,28-Jun-19,153140,792,ADECCO UK LTD,ADE002
EFDC,32191,OTHER SUPPORT SERVICES,CONSULTANTS FEES,3490,28-Jun-19,153452,3171.99,MEARS LTD,MEA002
EFDC,37600,PLANNING SUPPORT SERVICES,AGENCY STAFF,0120,28-Jun-19,153026,792,ADECCO UK LTD,ADE002
EFDC,37600,PLANNING SUPPORT SERVICES,AGENCY STAFF,0120,28-Jun-19,153025,638,ADECCO UK LTD,ADE002
EFDC,43310,CONTRACT & TECH SUPPORT SERVIC,AGENCY STAFF,0120,28-Jun-19,153027,632,ADECCO UK LTD,ADE002
EFDC,43310,CONTRACT & TECH SUPPORT SERVIC,AGENCY STAFF,0120,28-Jun-19,153139,616,ADECCO UK LTD,ADE002
EFDC,43310,CONTRACT & TECH SUPPORT SERVIC,AGENCY STAFF,0120,28-Jun-19,152329,596,ADECCO UK LTD,ADE002
EFDC,32060,OTHER SUPPORT SERVICES,AGENCY STAFF,0120,28-Jun-19,151893,1320,LAW ABSOLUTE LIMITED,LAW009
EFDC,32060,OTHER SUPPORT SERVICES,AGENCY STAFF,0120,28-Jun-19,153097,1628,LAW ABSOLUTE LIMITED,LAW009
EFDC,32060,OTHER SUPPORT SERVICES,AGENCY STAFF,0120,28-Jun-19,152267,1628,LAW ABSOLUTE LIMITED,LAW009
EFDC,YB500,SUPERVISION/MANAGEMENT SPECIAL,GAS,1110,28-Jun-19,153164,1797.76,CORONA ENERGY RETAIL 4 LTD,COR015
EFDC,37600,PLANNING SUPPORT SERVICES,AGENCY STAFF,0120,28-Jun-19,152328,792,ADECCO UK LTD,ADE002
EFDC,CAPGF,GENERAL FUND CAPITAL,EQUIPMENT ACQUISITION,C330,28-Jun-19,153191,52140,O2 (UK) LTD,OTW002
EFDC,CAPGF,GENERAL FUND CAPITAL,EQUIPMENT ACQUISITION,C330,28-Jun-19,153126,2965,HEWLETT PACKARD LTD,HEW003
EFDC,34160,HOUSING PROP SUPPORT SERVICES,PUBLICITY,3360,28-Jun-19,150378,849.72,PUBLIC-I GROUP LTD,PUB004
EFDC,YB400,SUPERVISION/MANAGEMENT SPECIAL,TREE  MAINTENANCE,1070,28-Jun-19,152578,900,PRINCIPAL TREES LTD,PRI017
EFDC,33080,OTHER ACTIVITIES,ANNUAL SUPPORT /  LICENSES,3872,28-Jun-19,152045,7236.6,PHOENIX SOFTWARE LTD,PHO002
EFDC,33080,OTHER ACTIVITIES,ANNUAL SUPPORT /  LICENSES,3872,28-Jun-19,153252,36.65,PHOENIX SOFTWARE LTD,PHO002
EFDC,33080,OTHER ACTIVITIES,ANNUAL SUPPORT /  LICENSES,3872,28-Jun-19,153252,11721.6,PHOENIX SOFTWARE LTD,PHO002
EFDC,25301,INSURANCE JOBS,PROFESSIONAL FEES,3420,28-Jun-19,153251,1060,G A & D PERRY BUILDING CONTRACTORS,PER005
EFDC,25301,INSURANCE JOBS,PROFESSIONAL FEES,3420,28-Jun-19,153251,855,G A & D PERRY BUILDING CONTRACTORS,PER005
EFDC,26200,OTHER SUPPORT SERVICES,FIXED PLANT MAINTENANCE,1020,28-Jun-19,153775,1240,PERT AIR CONDITIONING LTD,PER001
EFDC,RM200,RESPONSIVE & VOID REPAIRS,BUILDING MAINTENANCE,1010,28-Jun-19,153744,56519.21,MEARS LTD,MEA002
EFDC,CAPGF,GENERAL FUND CAPITAL,EQUIPMENT ACQUISITION,C330,28-Jun-19,153192,9204,O2 (UK) LTD,OTW002
EFDC,32191,OTHER SUPPORT SERVICES,CONSULTANTS FEES,3490,28-Jun-19,153476,3171.99,MEARS LTD,MEA002
EFDC,35008,CONTRACT & TECH SUPPORT SERVIC,EQUIPMENT - NEW,3010,28-Jun-19,153193,619,O2 (UK) LTD,OTW002
EFDC,CY100,COMMUNITY & PARTNERSHIP,CONTRIBUTIONS,3740,28-Jun-19,153107,1132.56,PARKGUARD LTD,PAR016
EFDC,CY100,COMMUNITY & PARTNERSHIP,CONTRIBUTIONS,3740,28-Jun-19,153481,1132.56,PARKGUARD LTD,PAR016
EFDC,DC120,PLANNING REGULATORY SERVICES,PUBLICITY,3360,28-Jun-19,152293,714,NEWSQUEST MEDIA GROUP,NEW002
EFDC,DC120,PLANNING REGULATORY SERVICES,PUBLICITY,3360,28-Jun-19,153596,654.5,NEWSQUEST MEDIA GROUP,NEW002
EFDC,DC120,PLANNING REGULATORY SERVICES,PUBLICITY,3360,28-Jun-19,151725,535.5,NEWSQUEST MEDIA GROUP,NEW002
EFDC,PS100,CAR PARKING,ADVERTISING,3820,28-Jun-19,152599,595,NEWSQUEST MEDIA GROUP,NEW002
EFDC,78001,HRA SUPPORT SERVICES,PROFESSIONAL FEES,3420,28-Jun-19,153450,9976.03,MEARS LTD,MEA002
EFDC,78001,HRA SUPPORT SERVICES,PROFESSIONAL FEES,3420,28-Jun-19,153475,9976.03,MEARS LTD,MEA002
EFDC,35013,CONTRACT & TECH SUPPORT SERVIC,AGENCY STAFF,0120,28-Jun-19,154158,1043.1,REED SPECIALIST RECRUITMENT LTD,REE002
EFDC,33080,OTHER ACTIVITIES,PROFESSIONAL FEES,3420,28-Jun-19,154205,649,O2 (UK) LTD,OTW002
EFDC,YB110,SUPERVISION/MANAGEMENT SPECIAL,ELECTRICITY,1120,28-Jun-19,153495,169.35,EDF ENERGY,EDF001
EFDC,CAPHR,HRA CAPITAL,ARCHITECTS FEES,E160,28-Jun-19,153805,3440,ECD ARCHITECTS LTD,ECD001
EFDC,35009,CONTRACT & TECH SUPPORT SERVIC,ELECTRICITY,1120,28-Jun-19,153495,12.65,EDF ENERGY,EDF001
EFDC,PS100,CAR PARKING,ELECTRICITY,1120,28-Jun-19,153495,141.34,EDF ENERGY,EDF001
EFDC,CAPGF,GENERAL FUND CAPITAL,ARCHITECTS FEES,E160,28-Jun-19,153209,81.9,PLACES FOR PEOPLE LEISURE MANAGEMENT LTD,PLA005
EFDC,CAPGF,GENERAL FUND CAPITAL,ARCHITECTS FEES,E160,28-Jun-19,153209,778.79,PLACES FOR PEOPLE LEISURE MANAGEMENT LTD,PLA005
EFDC,CAPHR,HRA CAPITAL,WORKS,E040,28-Jun-19,153180,59898.75,W H CONSTRUCTION LTD,CON014
EFDC,CAPHR,HRA CAPITAL,WORKS,A040,28-Jun-19,153179,15125.98,W H CONSTRUCTION LTD,CON014
EFDC,23110,ACCOMMODATION,ELECTRICITY,1120,28-Jun-19,154200,1086.33,EDF ENERGY,EDF001
EFDC,CAPGF,GENERAL FUND CAPITAL,ARCHITECTS FEES,E160,28-Jun-19,153209,1005.46,PLACES FOR PEOPLE LEISURE MANAGEMENT LTD,PLA005
EFDC,YB200,SUPERVISION/MANAGEMENT SPECIAL,ELECTRICITY,1120,28-Jun-19,153495,37.41,EDF ENERGY,EDF001
EFDC,CAPGF,GENERAL FUND CAPITAL,ARCHITECTS FEES,E160,28-Jun-19,153209,659.78,PLACES FOR PEOPLE LEISURE MANAGEMENT LTD,PLA005
EFDC,CAPHR,HRA CAPITAL,SURVEYS,E120,28-Jun-19,153280,950,RESIDENTIALLY LTD,RES002
EFDC,PS100,CAR PARKING,ELECTRICITY,1120,28-Jun-19,153495,4.89,EDF ENERGY,EDF001
EFDC,PS100,CAR PARKING,ELECTRICITY,1120,28-Jun-19,153495,516.81,EDF ENERGY,EDF001
EFDC,CAPHR,HRA CAPITAL,SURVEYS,E120,28-Jun-19,153281,625,RESIDENTIALLY LTD,RES002
EFDC,PS100,CAR PARKING,ELECTRICITY,1120,28-Jun-19,153495,105.5,EDF ENERGY,EDF001
EFDC,PS100,CAR PARKING,ELECTRICITY,1120,28-Jun-19,153495,18.38,EDF ENERGY,EDF001
EFDC,PS100,CAR PARKING,ELECTRICITY,1120,28-Jun-19,153495,117.91,EDF ENERGY,EDF001
EFDC,37600,PLANNING SUPPORT SERVICES,AGENCY STAFF,0120,28-Jun-19,151883,1239.5,MATCHTECH GROUP LTD,MAT002
EFDC,CAPHR,HRA CAPITAL,VOIDS WORKS,A045,28-Jun-19,153179,85212.16,W H CONSTRUCTION LTD,CON014
EFDC,RM200,RESPONSIVE & VOID REPAIRS,BUILDING MAINTENANCE,1010,28-Jun-19,153082,2754,WICKES BUILDING SUPPLIES LTD,WIC004
EFDC,27060,ACCOMMODATION,CLEANING,1630,28-Jun-19,152633,649.63,ATLAS CONTRACTORS LTD,ATL001
EFDC,37600,PLANNING SUPPORT SERVICES,AGENCY STAFF,0120,28-Jun-19,152680,1112.2,MATCHTECH GROUP LTD,MAT002
EFDC,37600,PLANNING SUPPORT SERVICES,AGENCY STAFF,0120,28-Jun-19,153053,1239.5,MATCHTECH GROUP LTD,MAT002
EFDC,EH160,OTHER ACTIVITIES,CLEANING,1630,28-Jun-19,152632,1347.62,ATLAS CONTRACTORS LTD,ATL001
EFDC,27050,ACCOMMODATION,CLEANING,1630,28-Jun-19,152633,9654.35,ATLAS CONTRACTORS LTD,ATL001
EFDC,23130,ACCOMMODATION,CLEANING,1630,28-Jun-19,152633,343.34,ATLAS CONTRACTORS LTD,ATL001
EFDC,37600,PLANNING SUPPORT SERVICES,AGENCY STAFF,0120,28-Jun-19,153084,1239.5,MATCHTECH GROUP LTD,MAT002
EFDC,YB200,SUPERVISION/MANAGEMENT SPECIAL,ELECTRICITY,1120,28-Jun-19,153495,7.93,EDF ENERGY,EDF001
EFDC,35009,CONTRACT & TECH SUPPORT SERVIC,ELECTRICITY,1120,28-Jun-19,153495,13.43,EDF ENERGY,EDF001
EFDC,RM200,RESPONSIVE & VOID REPAIRS,BUILDING MAINTENANCE,1010,28-Jun-19,151074,5850,WICKES BUILDING SUPPLIES LTD,WIC004
EFDC,YB500,SUPERVISION/MANAGEMENT SPECIAL,ELECTRICITY,1120,28-Jun-19,153495,24.41,EDF ENERGY,EDF001
EFDC,33080,OTHER ACTIVITIES,EQUIPMENT - HIRED,3020,28-Jun-19,151426,4076.54,XEROX FINANCE LTD,XER001
EFDC,CAPGF,GENERAL FUND CAPITAL,ARCHITECTS FEES,E160,28-Jun-19,153209,585.85,PLACES FOR PEOPLE LEISURE MANAGEMENT LTD,PLA005
EFDC,YB200,SUPERVISION/MANAGEMENT SPECIAL,ELECTRICITY,1120,28-Jun-19,153495,19.27,EDF ENERGY,EDF001
EFDC,CAPGF,GENERAL FUND CAPITAL,ARCHITECTS FEES,E160,28-Jun-19,153209,535.24,PLACES FOR PEOPLE LEISURE MANAGEMENT LTD,PLA005
EFDC,CAPGF,GENERAL FUND CAPITAL,ARCHITECTS FEES,E160,28-Jun-19,153209,585.85,PLACES FOR PEOPLE LEISURE MANAGEMENT LTD,PLA005
EFDC,CAPGF,GENERAL FUND CAPITAL,ARCHITECTS FEES,E160,28-Jun-19,153209,123,PLACES FOR PEOPLE LEISURE MANAGEMENT LTD,PLA005
EFDC,CAPGF,GENERAL FUND CAPITAL,ARCHITECTS FEES,E160,28-Jun-19,153209,644.13,PLACES FOR PEOPLE LEISURE MANAGEMENT LTD,PLA005
EFDC,PS100,CAR PARKING,ELECTRICITY,1120,28-Jun-19,153495,75.91,EDF ENERGY,EDF001
EFDC,FD100,LAND DRAINAGE/SEWERAGE,ELECTRICITY,1120,28-Jun-19,153495,4.15,EDF ENERGY,EDF001
EFDC,PP111,LOCAL PLAN IMPLEMENTATION,CONSULTANTS FEES,3490,28-Jun-19,151903,6320.25,AECOM INFRASTRUCTURE & ENVIRONMENT UK LTD,AEC002
EFDC,FD100,LAND DRAINAGE/SEWERAGE,ELECTRICITY,1120,28-Jun-19,153495,6.68,EDF ENERGY,EDF001
EFDC,PS100,CAR PARKING,BANKING AND CASH COLLECTION,3440,28-Jun-19,152251,1219.17,CHIPSIDE LIMITED,CHI030
EFDC,PS100,CAR PARKING,BANKING AND CASH COLLECTION,3440,28-Jun-19,153732,633.02,CHIPSIDE LIMITED,CHI030
EFDC,35300,CONTRACT & TECH SUPPORT SERVIC,AGENCY STAFF,0120,28-Jun-19,153571,1435.07,HL SERVICES (LONDON) LTD,HLS001
EFDC,CAPHR,HRA CAPITAL,WORKS,E040,28-Jun-19,154640,114955.84,STORM BUILDING LTD,STO007
EFDC,35300,CONTRACT & TECH SUPPORT SERVIC,AGENCY STAFF,0120,28-Jun-19,151900,632.1,HL SERVICES (LONDON) LTD,HLS001
EFDC,35300,CONTRACT & TECH SUPPORT SERVIC,AGENCY STAFF,0120,28-Jun-19,152613,504.18,HL SERVICES (LONDON) LTD,HLS001
EFDC,35300,CONTRACT & TECH SUPPORT SERVIC,AGENCY STAFF,0120,28-Jun-19,153130,767.52,HL SERVICES (LONDON) LTD,HLS001
EFDC,35005,CONTRACT & TECH SUPPORT SERVIC,EQUIPMENT - NEW,3010,28-Jun-19,151823,600,ALL ROAD LTD,ALL005
EFDC,GT100,LOCAL PLAN IMPLEMENTATION,CONSULTANTS FEES,3490,28-Jun-19,152398,8507.5,AECOM INFRASTRUCTURE & ENVIRONMENT UK LTD,AEC002
EFDC,33080,OTHER ACTIVITIES,ANNUAL SUPPORT /  LICENSES,3872,28-Jun-19,153175,8514,VICTORIA SOLUTIONS LTD,VIC002
EFDC,CH110,"MUSEUM, HERITAGE & CULTURE",RENTS / HIRE OF HALL,1210,28-Jun-19,152688,1100,GRANGEWOOD INVESTMENTS LTD,GRA006
EFDC,36650,HRA SUPPORT SERVICES,AGENCY STAFF,0120,28-Jun-19,151918,1500,THE OYSTER PARTNERSHIP LTD,OYS001
EFDC,CAPHR,HRA CAPITAL,MANAGEMENT CONSULTANT,E130,28-Jun-19,153795,5000,PELLINGS LLP,PEL002
EFDC,33080,OTHER ACTIVITIES,ANNUAL SUPPORT /  LICENSES,3872,28-Jun-19,151638,4995,EACS LTD,EAC001
EFDC,36650,HRA SUPPORT SERVICES,AGENCY STAFF,0120,28-Jun-19,153083,2000,THE OYSTER PARTNERSHIP LTD,OYS001
EFDC,36650,HRA SUPPORT SERVICES,AGENCY STAFF,0120,28-Jun-19,153133,1000,THE OYSTER PARTNERSHIP LTD,OYS001
EFDC,36650,HRA SUPPORT SERVICES,AGENCY STAFF,0120,28-Jun-19,152619,2000,THE OYSTER PARTNERSHIP LTD,OYS001
EFDC,36650,HRA SUPPORT SERVICES,AGENCY STAFF,0120,28-Jun-19,153078,2000,THE OYSTER PARTNERSHIP LTD,OYS001
EFDC,PP111,LOCAL PLAN IMPLEMENTATION,CONSULTANTS FEES,3490,28-Jun-19,153075,4440,AECOM INFRASTRUCTURE & ENVIRONMENT UK LTD,AEC002
EFDC,YB500,SUPERVISION/MANAGEMENT SPECIAL,ELECTRICITY,1120,28-Jun-19,153495,35.6,EDF ENERGY,EDF001
EFDC,27050,ACCOMMODATION,ELECTRICITY,1120,28-Jun-19,154201,8363.82,EDF ENERGY,EDF001
EFDC,YB110,SUPERVISION/MANAGEMENT SPECIAL,ELECTRICITY,1120,28-Jun-19,153495,15.62,EDF ENERGY,EDF001
EFDC,YB110,SUPERVISION/MANAGEMENT SPECIAL,ELECTRICITY,1120,28-Jun-19,153495,6.83,EDF ENERGY,EDF001
EFDC,37600,PLANNING SUPPORT SERVICES,AGENCY STAFF,0120,28-Jun-19,151948,1312.5,VIVID RESOURCING LTD,VIV002
EFDC,YB110,SUPERVISION/MANAGEMENT SPECIAL,ELECTRICITY,1120,28-Jun-19,153495,1.55,EDF ENERGY,EDF001
EFDC,37600,PLANNING SUPPORT SERVICES,AGENCY STAFF,0120,28-Jun-19,151702,2231.25,VIVID RESOURCING LTD,VIV002
EFDC,YB110,SUPERVISION/MANAGEMENT SPECIAL,ELECTRICITY,1120,28-Jun-19,153495,267.96,EDF ENERGY,EDF001
EFDC,YB110,SUPERVISION/MANAGEMENT SPECIAL,ELECTRICITY,1120,28-Jun-19,153495,18.65,EDF ENERGY,EDF001
EFDC,35300,CONTRACT & TECH SUPPORT SERVIC,AGENCY STAFF,0120,28-Jun-19,153119,767.52,HL SERVICES (LONDON) LTD,HLS001
EFDC,RS302,NORTH WEALD CENTRE,ELECTRICITY,1120,28-Jun-19,154198,4795.32,EDF ENERGY,EDF001
EFDC,YB110,SUPERVISION/MANAGEMENT SPECIAL,ELECTRICITY,1120,28-Jun-19,153495,16.98,EDF ENERGY,EDF001
EFDC,37600,PLANNING SUPPORT SERVICES,AGENCY STAFF,0120,28-Jun-19,152642,1050,VIVID RESOURCING LTD,VIV002
EFDC,37600,PLANNING SUPPORT SERVICES,AGENCY STAFF,0120,28-Jun-19,151701,2625,VIVID RESOURCING LTD,VIV002
EFDC,37600,PLANNING SUPPORT SERVICES,AGENCY STAFF,0120,28-Jun-19,152641,1295,VIVID RESOURCING LTD,VIV002
EFDC,37600,PLANNING SUPPORT SERVICES,AGENCY STAFF,0120,28-Jun-19,153094,1312.5,VIVID RESOURCING LTD,VIV002
EFDC,37600,PLANNING SUPPORT SERVICES,AGENCY STAFF,0120,28-Jun-19,153093,1312.5,VIVID RESOURCING LTD,VIV002
EFDC,37600,PLANNING SUPPORT SERVICES,AGENCY STAFF,0120,28-Jun-19,153090,2432.5,VIVID RESOURCING LTD,VIV002
EFDC,DC120,PLANNING REGULATORY SERVICES,CONSULTANTS FEES,3490,28-Jun-19,151802,800,VIVID RESOURCING LTD,VIV002
EFDC,DC120,PLANNING REGULATORY SERVICES,CONSULTANTS FEES,3490,28-Jun-19,151434,520,VIVID RESOURCING LTD,VIV002
EFDC,YB110,SUPERVISION/MANAGEMENT SPECIAL,ELECTRICITY,1120,28-Jun-19,153495,4.32,EDF ENERGY,EDF001
EFDC,CAPHR,HRA CAPITAL,ARCHITECTS FEES,E160,28-Jun-19,153814,5357.62,ECD ARCHITECTS LTD,ECD001
EFDC,CAPHR,HRA CAPITAL,ARCHITECTS FEES,E160,28-Jun-19,153803,2460,ECD ARCHITECTS LTD,ECD001
EFDC,CAPHR,HRA CAPITAL,ARCHITECTS FEES,E160,28-Jun-19,153813,7308.52,ECD ARCHITECTS LTD,ECD001
EFDC,CAPGF,GENERAL FUND CAPITAL,WORKS,B040,28-Jun-19,154110,252.27,M J ANDERSON MAINTENANCE CONTRACTORS LTD,AND003
EFDC,CAPHR,HRA CAPITAL,ARCHITECTS FEES,E160,28-Jun-19,153812,5127.66,ECD ARCHITECTS LTD,ECD001
EFDC,26200,OTHER SUPPORT SERVICES,BUILDING MAINTENANCE,1010,28-Jun-19,153748,720,M J ANDERSON MAINTENANCE CONTRACTORS LTD,AND003
EFDC,GT100,LOCAL PLAN IMPLEMENTATION,CONSULTANTS FEES,3490,28-Jun-19,153077,33200,OVE ARUP & PARTNERS LTD,OVE002
EFDC,32220,OTHER SUPPORT SERVICES,AGENCY STAFF,0120,28-Jun-19,153101,3943.04,CAPSTONE PROPERTY RECRUITMENT LTD,CAP001
EFDC,23140,ACCOMMODATION,CLEANING,1630,28-Jun-19,152633,537.84,ATLAS CONTRACTORS LTD,ATL001
EFDC,GT100,LOCAL PLAN IMPLEMENTATION,CONSULTANTS FEES,3490,28-Jun-19,151451,20841.2,OVE ARUP & PARTNERS LTD,OVE002
EFDC,CAPHR,HRA CAPITAL,ARCHITECTS FEES,E160,28-Jun-19,153807,1073.5,ECD ARCHITECTS LTD,ECD001
EFDC,25300,INTERNAL INSURANCE FUND,PROFESSIONAL FEES,3420,28-Jun-19,154644,11720,WILLIS LTD,WIL005
EFDC,RS410,"COMMUNITY, HEALTH & WELLBEING",ACTIVITIES,3372,28-Jun-19,154633,1037,HIGH BEECH RIDING SCHOOL,HIG002
EFDC,CAPHR,HRA CAPITAL,ARCHITECTS FEES,E160,28-Jun-19,153800,1336.5,ECD ARCHITECTS LTD,ECD001
EFDC,CAPGF,GENERAL FUND CAPITAL,WORKS,B040,28-Jun-19,154110,2220,M J ANDERSON MAINTENANCE CONTRACTORS LTD,AND003
EFDC,RM500,OTHER ITEMS,CONSULTANTS FEES,3490,28-Jun-19,151910,950,ZENERGI LTD,ZEN001
EFDC,26200,OTHER SUPPORT SERVICES,BUILDING MAINTENANCE,1010,28-Jun-19,153748,16.32,M J ANDERSON MAINTENANCE CONTRACTORS LTD,AND003
EFDC,RS400,"COMMUNITY, HEALTH & WELLBEING",RENTS / HIRE OF HALL,1210,28-Jun-19,151784,1050,LOUGHTON BOWLING CLUB LTD,LOU008
EFDC,CAPHR,HRA CAPITAL,ARCHITECTS FEES,E160,28-Jun-19,153809,12918.45,ECD ARCHITECTS LTD,ECD001
EFDC,GT100,LOCAL PLAN IMPLEMENTATION,CONSULTANTS FEES,3490,28-Jun-19,151450,13548,OVE ARUP & PARTNERS LTD,OVE002
EFDC,32220,OTHER SUPPORT SERVICES,AGENCY STAFF,0120,28-Jun-19,153554,3696.6,CAPSTONE PROPERTY RECRUITMENT LTD,CAP001
EFDC,CAPHR,HRA CAPITAL,ARCHITECTS FEES,E160,28-Jun-19,153811,7087.85,ECD ARCHITECTS LTD,ECD001
EFDC,42310,GOVERNANCE SUPPORT SERVICES,AGENCY STAFF,0120,28-Jun-19,152679,1026.87,MATCHTECH GROUP LTD,MAT002
EFDC,CAPHR,HRA CAPITAL,ARCHITECTS FEES,E160,28-Jun-19,153808,1038.5,ECD ARCHITECTS LTD,ECD001
EFDC,23110,ACCOMMODATION,CLEANING,1630,28-Jun-19,152633,70.43,ATLAS CONTRACTORS LTD,ATL001
EFDC,23110,ACCOMMODATION,CLEANING,1630,28-Jun-19,152633,1556.05,ATLAS CONTRACTORS LTD,ATL001
EFDC,43310,CONTRACT & TECH SUPPORT SERVIC,AGENCY STAFF,0120,28-Jun-19,151101,11116.9,OVE ARUP & PARTNERS LTD,OVE002
EFDC,CAPHR,HRA CAPITAL,ARCHITECTS FEES,E160,28-Jun-19,153801,2495,ECD ARCHITECTS LTD,ECD001
EFDC,CY100,COMMUNITY & PARTNERSHIP,CONTRIBUTIONS,3740,28-Jun-19,153696,550,BARKER BUS,BAR007
EFDC,32220,OTHER SUPPORT SERVICES,AGENCY STAFF,0120,28-Jun-19,152614,4004.65,CAPSTONE PROPERTY RECRUITMENT LTD,CAP001
EFDC,42310,GOVERNANCE SUPPORT SERVICES,AGENCY STAFF,0120,28-Jun-19,151884,1153.62,MATCHTECH GROUP LTD,MAT002
EFDC,CAPHR,HRA CAPITAL,ARCHITECTS FEES,E160,28-Jun-19,153810,5597.56,ECD ARCHITECTS LTD,ECD001
EFDC,32220,OTHER SUPPORT SERVICES,AGENCY STAFF,0120,28-Jun-19,153127,4004.65,CAPSTONE PROPERTY RECRUITMENT LTD,CAP001
EFDC,CH110,"MUSEUM, HERITAGE & CULTURE",CLEANING,1630,28-Jun-19,152633,630.58,ATLAS CONTRACTORS LTD,ATL001
EFDC,RS400,"COMMUNITY, HEALTH & WELLBEING",EXCURSIONS & EVENTS,3374,28-Jun-19,154622,550,TRING COACHES,TRI002
EFDC,32060,OTHER SUPPORT SERVICES,AGENCY STAFF,0120,28-Jun-19,154169,1615.39,SELLICK PARTNERSHIP LIMITED,SEL022
EFDC,50100,CHIEF EXECUTIVE SUPPORT SERVIC,AGENCY STAFF,0120,28-Jun-19,154108,2925,GREENACRE RECRUITMENT,GRE029
EFDC,34160,HOUSING PROP SUPPORT SERVICES,CONSULTANTS FEES,3490,28-Jun-19,152270,3037.5,CL COMMUNICATIONS,CLC001
EFDC,34160,HOUSING PROP SUPPORT SERVICES,CONSULTANTS FEES,3490,28-Jun-19,154127,3600,CL COMMUNICATIONS,CLC001
EFDC,PP112,LOCAL PLAN IMPLEMENTATION,PROFESSIONAL FEES,3420,28-Jun-19,150445,6500,RURAL COMMUNITY COUNCIL OF ESSEX,RUR002
EFDC,PP111,LOCAL PLAN IMPLEMENTATION,PROFESSIONAL FEES,3420,28-Jun-19,154118,13400.1,BLOOM PROCUREMENT SERVICES LTD,BLO001
EFDC,PP111,LOCAL PLAN IMPLEMENTATION,PROFESSIONAL FEES,3420,28-Jun-19,154117,22239,BLOOM PROCUREMENT SERVICES LTD,BLO001
EFDC,DC120,PLANNING REGULATORY SERVICES,CONSULTANTS FEES,3490,28-Jun-19,153028,1933.5,ARCADIS CONSULTING (UK) LTD,ARC011
EFDC,32060,OTHER SUPPORT SERVICES,AGENCY STAFF,0120,28-Jun-19,154160,1292.31,SELLICK PARTNERSHIP LIMITED,SEL022
EFDC,32060,OTHER SUPPORT SERVICES,AGENCY STAFF,0120,28-Jun-19,154161,1523.08,SELLICK PARTNERSHIP LIMITED,SEL022
EFDC,32060,OTHER SUPPORT SERVICES,AGENCY STAFF,0120,28-Jun-19,154159,1075.29,SELLICK PARTNERSHIP LIMITED,SEL022
EFDC,32060,OTHER SUPPORT SERVICES,AGENCY STAFF,0120,28-Jun-19,154163,1560.89,SELLICK PARTNERSHIP LIMITED,SEL022
EFDC,32060,OTHER SUPPORT SERVICES,AGENCY STAFF,0120,28-Jun-19,154164,1031.59,SELLICK PARTNERSHIP LIMITED,SEL022
EFDC,HL100,HOMELESSNESS,PROFESSIONAL FEES,3420,28-Jun-19,154136,900,HOUSING REVIEWS LIMITED,HOU020
EFDC,25300,INTERNAL INSURANCE FUND,PROFESSIONAL FEES,3420,28-Jun-19,154212,897.09,TOWERGATE CAMERASURE,TOW007
EFDC,GT100,LOCAL PLAN IMPLEMENTATION,CONSULTANTS FEES,3490,28-Jun-19,153496,2500,FRAME PROJECTS LIMITED,FRA001
EFDC,32060,OTHER SUPPORT SERVICES,AGENCY STAFF,0120,28-Jun-19,154165,1032.08,SELLICK PARTNERSHIP LIMITED,SEL022
EFDC,32060,OTHER SUPPORT SERVICES,AGENCY STAFF,0120,28-Jun-19,154166,1407.21,SELLICK PARTNERSHIP LIMITED,SEL022
EFDC,32060,OTHER SUPPORT SERVICES,AGENCY STAFF,0120,28-Jun-19,154162,1413.59,SELLICK PARTNERSHIP LIMITED,SEL022
EFDC,32060,OTHER SUPPORT SERVICES,AGENCY STAFF,0120,28-Jun-19,154167,1216.7,SELLICK PARTNERSHIP LIMITED,SEL022
EFDC,GT100,LOCAL PLAN IMPLEMENTATION,CONSULTANTS FEES,3490,28-Jun-19,153231,1666,GUY NICHOLSON,NIC023
EFDC,32060,OTHER SUPPORT SERVICES,AGENCY STAFF,0120,28-Jun-19,154168,1407.7,SELLICK PARTNERSHIP LIMITED,SEL022
EFDC,37600,PLANNING SUPPORT SERVICES,AGENCY STAFF,0120,28-Jun-19,153460,1289,G2 RECRUITMENT SOLUTIONS,G2R001
EFDC,37600,PLANNING SUPPORT SERVICES,AGENCY STAFF,0120,28-Jun-19,151904,1223.05,G2 RECRUITMENT SOLUTIONS,G2R001
EFDC,37600,PLANNING SUPPORT SERVICES,AGENCY STAFF,0120,28-Jun-19,152618,1263.5,G2 RECRUITMENT SOLUTIONS,G2R001
EFDC,RS301,NORTH WEALD CENTRE,OTHER MAINTENANCE,1050,28-Jun-19,153132,1504,BLAKE CONTRACTORS LIMITED,BLA008
EFDC,PP111,LOCAL PLAN IMPLEMENTATION,CONSULTANTS FEES,3490,28-Jun-19,153735,2741.65,CLOUDCOURT LIMITED,CLO022
EFDC,33080,OTHER ACTIVITIES,ANNUAL SUPPORT /  LICENSES,3872,28-Jun-19,151896,3288,AUTODESK LIMITED,AUT015
EFDC,PP111,LOCAL PLAN IMPLEMENTATION,PROFESSIONAL FEES,3420,28-Jun-19,151447,5360,PEYTO LAW,PEY001
EFDC,26200,OTHER SUPPORT SERVICES,BUILDING MAINTENANCE,1010,28-Jun-19,154597,54.17,DDM FIRE SAFETY,DDM001
EFDC,CAPHR,HRA CAPITAL,MANAGEMENT CONSULTANT,E130,28-Jun-19,153794,1738.61,AIREY MILLER LIMITED,AIR027
EFDC,CAPHR,HRA CAPITAL,MANAGEMENT CONSULTANT,E130,28-Jun-19,153174,1979.35,AIREY MILLER LIMITED,AIR027
EFDC,CAPHR,HRA CAPITAL,MANAGEMENT CONSULTANT,E130,28-Jun-19,153176,37.1,AIREY MILLER LIMITED,AIR027
EFDC,CAPHR,HRA CAPITAL,MANAGEMENT CONSULTANT,E130,28-Jun-19,153176,53,AIREY MILLER LIMITED,AIR027
EFDC,CAPHR,HRA CAPITAL,MANAGEMENT CONSULTANT,E130,28-Jun-19,153176,63.6,AIREY MILLER LIMITED,AIR027
EFDC,CAPHR,HRA CAPITAL,MANAGEMENT CONSULTANT,E130,28-Jun-19,153794,1738.62,AIREY MILLER LIMITED,AIR027
EFDC,CAPHR,HRA CAPITAL,MANAGEMENT CONSULTANT,E130,28-Jun-19,153176,63.6,AIREY MILLER LIMITED,AIR027
EFDC,CAPHR,HRA CAPITAL,MANAGEMENT CONSULTANT,E130,28-Jun-19,153176,127.2,AIREY MILLER LIMITED,AIR027
EFDC,CAPHR,HRA CAPITAL,MANAGEMENT CONSULTANT,E130,28-Jun-19,153174,1979.35,AIREY MILLER LIMITED,AIR027
EFDC,CAPHR,HRA CAPITAL,MANAGEMENT CONSULTANT,E130,28-Jun-19,153796,1670.28,AIREY MILLER LIMITED,AIR027
EFDC,CAPHR,HRA CAPITAL,MANAGEMENT CONSULTANT,E130,28-Jun-19,153176,106,AIREY MILLER LIMITED,AIR027
EFDC,CAPHR,HRA CAPITAL,MANAGEMENT CONSULTANT,E130,28-Jun-19,153796,1670.27,AIREY MILLER LIMITED,AIR027
EFDC,57100,HRA SUPPORT SERVICES,AGENCY STAFF,0120,28-Jun-19,152766,3250,GREENACRE RECRUITMENT,GRE029
EFDC,CAPHR,HRA CAPITAL,MANAGEMENT CONSULTANT,E130,28-Jun-19,153176,37.1,AIREY MILLER LIMITED,AIR027
EFDC,57100,HRA SUPPORT SERVICES,AGENCY STAFF,0120,28-Jun-19,152765,2600,GREENACRE RECRUITMENT,GRE029
EFDC,26200,OTHER SUPPORT SERVICES,BUILDING MAINTENANCE,1010,28-Jun-19,154597,54.17,DDM FIRE SAFETY,DDM001
EFDC,26200,OTHER SUPPORT SERVICES,BUILDING MAINTENANCE,1010,28-Jun-19,154594,70,DDM FIRE SAFETY,DDM001
EFDC,26200,OTHER SUPPORT SERVICES,BUILDING MAINTENANCE,1010,28-Jun-19,154597,58.33,DDM FIRE SAFETY,DDM001
EFDC,HL100,HOMELESSNESS,PROFESSIONAL FEES,3420,28-Jun-19,152654,750,MR ALEX WILLIAMS,WIL027
EFDC,26200,OTHER SUPPORT SERVICES,FIXED PLANT MAINTENANCE,1020,28-Jun-19,154595,943.33,DDM FIRE SAFETY,DDM001
EFDC,RM400,PLANNED & CYCLICAL MAINTENANCE,BUILDING MAINTENANCE,1010,28-Jun-19,154129,625.5,DDM FIRE SAFETY,DDM001
EFDC,RM400,PLANNED & CYCLICAL MAINTENANCE,BUILDING MAINTENANCE,1010,28-Jun-19,154597,341.66,DDM FIRE SAFETY,DDM001
EFDC,RM400,PLANNED & CYCLICAL MAINTENANCE,BUILDING MAINTENANCE,1010,28-Jun-19,154587,523,DDM FIRE SAFETY,DDM001
EFDC,RM400,PLANNED & CYCLICAL MAINTENANCE,BUILDING MAINTENANCE,1010,28-Jun-19,154594,470.83,DDM FIRE SAFETY,DDM001
EFDC,32060,OTHER SUPPORT SERVICES,CONSULTANTS FEES,3490,28-Jun-19,151031,1165,11KBW,11K001
EFDC,32220,OTHER SUPPORT SERVICES,FEES & CHARGES,9210,28-Jun-19,154636,750,MARTIN SHEPHERD SOLICITORS LLP,MAR028
EFDC,50100,CHIEF EXECUTIVE SUPPORT SERVIC,AGENCY STAFF,0120,28-Jun-19,154107,3250,GREENACRE RECRUITMENT,GRE029
EFDC,CAPHR,HRA CAPITAL,SURVEYS,A120,28-Jun-19,153279,4718,ROBERTS CONSULTING LIMITED,ROB023
EFDC,CAPHR,HRA CAPITAL,MANAGEMENT CONSULTANT,E130,28-Jun-19,153176,42.4,AIREY MILLER LIMITED,AIR027
EFDC,BAL01,EFDC BALANCE SHEET,SAINSBURYS CAR PARKS,Z627,28-Jun-19,153700,98955.15,HORIZON PARKING LIMITED,HOR003
EFDC,32060,OTHER SUPPORT SERVICES,CONSULTANTS FEES,3490,28-Jun-19,150189,1200,ASITHA RANATUNGA,RAN006
EFDC,36700,HRA SUPPORT SERVICES,AGENCY STAFF,0120,28-Jun-19,152803,980.76,VENTURE CONSTRUCTION SERVICES LTD,VEN002
EFDC,TO100,LAND & PROPERTY,VEHICLE PARTS / REPAIRS,2210,28-Jun-19,153534,595.9,ALLPARTS AUTOMOTIVE LIMITED,ALL027
EFDC,33080,OTHER ACTIVITIES,ANNUAL SUPPORT /  LICENSES,3872,28-Jun-19,153738,1656,DMARC ANALYZER B V,DMA001
EFDC,36500,HRA SUPPORT SERVICES,AGENCY STAFF,0120,28-Jun-19,152684,957,PRENTIS SOLUTIONS LIMITED,PRE027
EFDC,36500,HRA SUPPORT SERVICES,AGENCY STAFF,0120,28-Jun-19,152597,1044,PRENTIS SOLUTIONS LIMITED,PRE027
EFDC,36500,HRA SUPPORT SERVICES,AGENCY STAFF,0120,28-Jun-19,152596,920.75,PRENTIS SOLUTIONS LIMITED,PRE027
EFDC,GT100,LOCAL PLAN IMPLEMENTATION,CONSULTANTS FEES,3490,28-Jun-19,151448,27313,HDH PLANNING & DEVELOPMENT LTD,HDH027
EFDC,36500,HRA SUPPORT SERVICES,AGENCY STAFF,0120,28-Jun-19,153505,1044,PRENTIS SOLUTIONS LIMITED,PRE027
EFDC,BAL01,EFDC BALANCE SHEET,SAINSBURYS CAR PARKS,Z627,28-Jun-19,153700,14354.86,HORIZON PARKING LIMITED,HOR003
EFDC,RM100,RESPONSIVE & VOID REPAIRS,BUILDING MAINTENANCE,1010,28-Jun-19,154104,634.95,GC ROOFING UK LIMITED,GCR001
EFDC,YD100,"RENTS, RATES TAXES & INSURANCE",WATER CHARGES,1410,28-Jun-19,151788,633.31,CASTLE WATER LTD,CAS001
EFDC,TO100,LAND & PROPERTY,EQUIPMENT - MAINTENANCE,3030,28-Jun-19,153750,4850,AUTOQUIP (GB) GARAGE EQUIPMENT LTD,AUT026
EFDC,RM100,RESPONSIVE & VOID REPAIRS,BUILDING MAINTENANCE,1010,28-Jun-19,154098,1297.78,GC ROOFING UK LIMITED,GCR001
EFDC,37600,PLANNING SUPPORT SERVICES,AGENCY STAFF,0120,28-Jun-19,151885,1260,PARK AVENUE RECRUITMENT LTD,PAR088
EFDC,YD100,"RENTS, RATES TAXES & INSURANCE",WATER CHARGES,1410,28-Jun-19,153205,634.71,CASTLE WATER LTD,CAS001
EFDC,YB620,SUPERVISION/MANAGEMENT SPECIAL,WATER CHARGES,1410,28-Jun-19,153200,712.63,CASTLE WATER LTD,CAS001
EFDC,YB400,SUPERVISION/MANAGEMENT SPECIAL,TREE  MAINTENANCE,1070,28-Jun-19,153019,1450,KENDAL TREE SURGERY LTD,KEN004
EFDC,RM100,RESPONSIVE & VOID REPAIRS,BUILDING MAINTENANCE,1010,28-Jun-19,154100,630.95,GC ROOFING UK LIMITED,GCR001
EFDC,26200,OTHER SUPPORT SERVICES,FIXED PLANT MAINTENANCE,1020,28-Jun-19,152560,3070,HYDRO-X-AIR LTD,HYD004
EFDC,36700,HRA SUPPORT SERVICES,AGENCY STAFF,0120,28-Jun-19,152066,1564.36,VENTURE CONSTRUCTION SERVICES LTD,VEN002
EFDC,36700,HRA SUPPORT SERVICES,AGENCY STAFF,0120,28-Jun-19,152802,909.91,VENTURE CONSTRUCTION SERVICES LTD,VEN002
EFDC,CM102,CORPORATE ACTIVITIES,CONSULTANTS FEES,3490,28-Jun-19,152962,3500,PROJECT CENTRE LTD,PRO005
EFDC,36700,HRA SUPPORT SERVICES,AGENCY STAFF,0120,28-Jun-19,153272,1040.76,VENTURE CONSTRUCTION SERVICES LTD,VEN002
EFDC,36500,HRA SUPPORT SERVICES,AGENCY STAFF,0120,28-Jun-19,153595,1044,PRENTIS SOLUTIONS LIMITED,PRE027
EFDC,PS100,CAR PARKING,PARKING CONTRACTOR,4350,28-Jun-19,151988,17975.91,NSL LIMITED,NSL001
EFDC,37600,PLANNING SUPPORT SERVICES,AGENCY STAFF,0120,28-Jun-19,153138,1251.25,PARK AVENUE RECRUITMENT LTD,PAR088
EFDC,CAPGF,GENERAL FUND CAPITAL,WORKS,B040,28-Jun-19,152764,800,GBNS PARTNERSHIP LTD,GBN003
EFDC,37600,PLANNING SUPPORT SERVICES,AGENCY STAFF,0120,28-Jun-19,151811,1750,PARK AVENUE RECRUITMENT LTD,PAR088
EFDC,GT100,LOCAL PLAN IMPLEMENTATION,CONSULTANTS FEES,3490,28-Jun-19,152780,1200,PETER WRIGHT ASSOCIATES LTD,PET026
EFDC,CAPHR,HRA CAPITAL,VOIDS SURVEYS,A125,28-Jun-19,153449,2700,GBNS PARTNERSHIP LTD,GBN003
EFDC,CAPGF,GENERAL FUND CAPITAL,QUANTITY SURVEYORS FEES,B170,28-Jun-19,154114,8252,AXIOM DESIGN ASSOCIATES LTD,AXI022
EFDC,RM500,OTHER ITEMS,BUILDING MAINTENANCE,1010,28-Jun-19,151832,150,GBNS PARTNERSHIP LTD,GBN003
EFDC,CAPHR,HRA CAPITAL,VOIDS SURVEYS,A125,28-Jun-19,151832,3000,GBNS PARTNERSHIP LTD,GBN003
EFDC,EH142,ENVIRONMENTAL HEALTH,PROFESSIONAL FEES,3420,28-Jun-19,153819,800,STEWART HARRIS AGNEW PARTNERSHIP,STE004
EFDC,DC120,PLANNING REGULATORY SERVICES,CONSULTANTS FEES,3490,28-Jun-19,152611,510,GREEN EARTH MANAGEMENT COMPANY LTD,GRE026
EFDC,36700,HRA SUPPORT SERVICES,AGENCY STAFF,0120,28-Jun-19,152065,2224.56,VENTURE CONSTRUCTION SERVICES LTD,VEN002
EFDC,CH113,"MUSEUM, HERITAGE & CULTURE",MATERIALS,3080,28-Jun-19,154058,927.8,CONNIE FLYNN,FLY002
EFDC,78001,HRA SUPPORT SERVICES,MATERIALS,3080,28-Jun-19,153187,4888,INVENTOR-E LIMITED,INV001
EFDC,ED100,LOCAL PLAN IMPLEMENTATION,CONSULTANTS FEES,3490,28-Jun-19,153760,119.7,GANNON AND WATTS LTD,GAN001
EFDC,33080,OTHER ACTIVITIES,ANNUAL SUPPORT /  LICENSES,3872,28-Jun-19,151833,4800,CLUDO UK LIMITED,CLU001
EFDC,CAPGF,GENERAL FUND CAPITAL,MANAGEMENT CONSULTANT,J130,28-Jun-19,154634,800,INGLETON  WOOD,ING001
EFDC,GT100,LOCAL PLAN IMPLEMENTATION,CONSULTANTS FEES,3490,28-Jun-19,154626,1545.72,ASSEMBLE COMMUNITY PARTNERSHIP LTD,ASS028
EFDC,ED100,LOCAL PLAN IMPLEMENTATION,CONSULTANTS FEES,3490,28-Jun-19,153760,23.6,GANNON AND WATTS LTD,GAN001
EFDC,YA200,SUPERVISION/MANAGEMENT GENERAL,EQUIPMENT - NEW,3010,28-Jun-19,153792,600,WILLOWS FORGE LTD,WIL023
EFDC,YA200,SUPERVISION/MANAGEMENT GENERAL,EQUIPMENT - NEW,3010,28-Jun-19,153792,15,WILLOWS FORGE LTD,WIL023
EFDC,PS100,CAR PARKING,LEGAL EXPENSES,3680,28-Jun-19,153741,1000,H M C T S,HMC005
EFDC,32220,OTHER SUPPORT SERVICES,PROFESSIONAL FEES,3420,28-Jun-19,153734,19500,CARTER JONAS,CAR020
EFDC,ED100,LOCAL PLAN IMPLEMENTATION,CONSULTANTS FEES,3490,28-Jun-19,153760,4000,GANNON AND WATTS LTD,GAN001
EFDC,32180,OTHER SUPPORT SERVICES,PRINTING - EXTERNAL,3390,28-Jun-19,152365,596.4,PINNACLE DATA MANAGEMENT LTD,PIN026
EFDC,PS100,CAR PARKING,BANKING AND CASH COLLECTION,3440,11-Jun-19,144892,633.02,CHIPSIDE LIMITED,CHI030
EFDC,YB110,SUPERVISION/MANAGEMENT SPECIAL,ELECTRICITY,1120,29-May-19,152249,11.9,BRITISH GAS,BRI040
EFDC,CAPHR,HRA CAPITAL,WORKS,E040,29-May-19,152725,88176.14,STORM BUILDING LTD,STO007
EFDC,CAPGF,GENERAL FUND CAPITAL,WORKS,B040,29-May-19,152708,1606,PLACES FOR PEOPLE LEISURE MANAGEMENT LTD,PLA009
EFDC,RM400,PLANNED & CYCLICAL MAINTENANCE,BUILDING MAINTENANCE,1010,29-May-19,152342,1300,DEBA UK LTD,DEB002
EFDC,YB110,SUPERVISION/MANAGEMENT SPECIAL,ELECTRICITY,1120,29-May-19,152249,11.62,BRITISH GAS,BRI040
EFDC,YB110,SUPERVISION/MANAGEMENT SPECIAL,ELECTRICITY,1120,29-May-19,152249,16.78,BRITISH GAS,BRI040
EFDC,32200,OTHER SUPPORT SERVICES,EQUIPMENT - HIRED,3020,29-May-19,150048,3464.25,CANON (UK) LTD,CAN004
EFDC,YB110,SUPERVISION/MANAGEMENT SPECIAL,ELECTRICITY,1120,29-May-19,152249,29.19,BRITISH GAS,BRI040
EFDC,YB110,SUPERVISION/MANAGEMENT SPECIAL,ELECTRICITY,1120,29-May-19,152249,17.37,BRITISH GAS,BRI040
EFDC,YB110,SUPERVISION/MANAGEMENT SPECIAL,ELECTRICITY,1120,29-May-19,152249,20.3,BRITISH GAS,BRI040
EFDC,YB110,SUPERVISION/MANAGEMENT SPECIAL,ELECTRICITY,1120,29-May-19,152249,9.52,BRITISH GAS,BRI040
EFDC,YB110,SUPERVISION/MANAGEMENT SPECIAL,ELECTRICITY,1120,29-May-19,152249,14.31,BRITISH GAS,BRI040
EFDC,RE100,ELECTIONS,POSTAGE,3510,29-May-19,151786,544.48,ROYAL MAIL GROUP PLC,ROY015
EFDC,YB110,SUPERVISION/MANAGEMENT SPECIAL,ELECTRICITY,1120,29-May-19,152249,36.53,BRITISH GAS,BRI040
EFDC,YB110,SUPERVISION/MANAGEMENT SPECIAL,ELECTRICITY,1120,29-May-19,152249,44.03,BRITISH GAS,BRI040
EFDC,YB110,SUPERVISION/MANAGEMENT SPECIAL,ELECTRICITY,1120,29-May-19,152249,10.72,BRITISH GAS,BRI040
EFDC,YB110,SUPERVISION/MANAGEMENT SPECIAL,ELECTRICITY,1120,29-May-19,152249,16.36,BRITISH GAS,BRI040
EFDC,YB110,SUPERVISION/MANAGEMENT SPECIAL,ELECTRICITY,1120,29-May-19,152249,13.42,BRITISH GAS,BRI040
EFDC,YB110,SUPERVISION/MANAGEMENT SPECIAL,ELECTRICITY,1120,29-May-19,152249,17.63,BRITISH GAS,BRI040
EFDC,YB110,SUPERVISION/MANAGEMENT SPECIAL,ELECTRICITY,1120,29-May-19,152249,28.77,BRITISH GAS,BRI040
EFDC,YB110,SUPERVISION/MANAGEMENT SPECIAL,ELECTRICITY,1120,29-May-19,152249,7.35,BRITISH GAS,BRI040
EFDC,YB110,SUPERVISION/MANAGEMENT SPECIAL,ELECTRICITY,1120,29-May-19,152249,7.35,BRITISH GAS,BRI040
EFDC,YB110,SUPERVISION/MANAGEMENT SPECIAL,ELECTRICITY,1120,29-May-19,152249,16.36,BRITISH GAS,BRI040
EFDC,YB110,SUPERVISION/MANAGEMENT SPECIAL,ELECTRICITY,1120,29-May-19,152249,11.54,BRITISH GAS,BRI040
EFDC,YB110,SUPERVISION/MANAGEMENT SPECIAL,ELECTRICITY,1120,29-May-19,152249,24.56,BRITISH GAS,BRI040
EFDC,YB110,SUPERVISION/MANAGEMENT SPECIAL,ELECTRICITY,1120,29-May-19,152249,32.17,BRITISH GAS,BRI040
EFDC,YB110,SUPERVISION/MANAGEMENT SPECIAL,ELECTRICITY,1120,29-May-19,152249,26.42,BRITISH GAS,BRI040
EFDC,GT100,LOCAL PLAN IMPLEMENTATION,CONSULTANTS FEES,3490,29-May-19,152586,1200,SYSTRA LTD,SYS004
EFDC,YB110,SUPERVISION/MANAGEMENT SPECIAL,ELECTRICITY,1120,29-May-19,152249,14.92,BRITISH GAS,BRI040
EFDC,YB110,SUPERVISION/MANAGEMENT SPECIAL,ELECTRICITY,1120,29-May-19,152249,7.35,BRITISH GAS,BRI040
EFDC,33075,OTHER ACTIVITIES,AGENCY STAFF,0120,29-May-19,152240,792,EDEN BROWN LTD,EDE001
EFDC,YB110,SUPERVISION/MANAGEMENT SPECIAL,ELECTRICITY,1120,29-May-19,152249,11.28,BRITISH GAS,BRI040
EFDC,RE100,ELECTIONS,POSTAGE,3510,29-May-19,151786,8.52,ROYAL MAIL GROUP PLC,ROY015
EFDC,YB110,SUPERVISION/MANAGEMENT SPECIAL,ELECTRICITY,1120,29-May-19,152249,38.77,BRITISH GAS,BRI040
EFDC,YB110,SUPERVISION/MANAGEMENT SPECIAL,ELECTRICITY,1120,29-May-19,152249,11.67,BRITISH GAS,BRI040
EFDC,GT100,LOCAL PLAN IMPLEMENTATION,CONSULTANTS FEES,3490,29-May-19,152587,2310,SYSTRA LTD,SYS004
EFDC,GT100,LOCAL PLAN IMPLEMENTATION,PROFESSIONAL FEES,3420,29-May-19,152585,4081.35,SYSTRA LTD,SYS004
EFDC,YB110,SUPERVISION/MANAGEMENT SPECIAL,ELECTRICITY,1120,29-May-19,152249,14.95,BRITISH GAS,BRI040
EFDC,LA100,LAA POOLED FUNDS,LAA EXPENDITURE,Y100,29-May-19,152709,1760,SOLON SECURITY LTD,SOL008
EFDC,YB110,SUPERVISION/MANAGEMENT SPECIAL,ELECTRICITY,1120,29-May-19,152249,14.05,BRITISH GAS,BRI040
EFDC,YB620,SUPERVISION/MANAGEMENT SPECIAL,FURNITURE - NEW,3040,29-May-19,152009,84,COLLOP CARPETS,COL008
EFDC,YB620,SUPERVISION/MANAGEMENT SPECIAL,FURNITURE - NEW,3040,29-May-19,152009,1128.8,COLLOP CARPETS,COL008
EFDC,28030,OTHER SUPPORT SERVICES,MATERIALS,3080,29-May-19,151627,-76,CARE VENDING SERVICES LTD,CAR017
EFDC,28030,OTHER SUPPORT SERVICES,MATERIALS,3080,29-May-19,151627,614.86,CARE VENDING SERVICES LTD,CAR017
EFDC,YB110,SUPERVISION/MANAGEMENT SPECIAL,ELECTRICITY,1120,29-May-19,152249,11.49,BRITISH GAS,BRI040
EFDC,32030,OTHER SUPPORT SERVICES,POSTAGE,3510,29-May-19,151048,40.92,ROYAL MAIL GROUP PLC,ROY015
EFDC,YB110,SUPERVISION/MANAGEMENT SPECIAL,ELECTRICITY,1120,29-May-19,152249,11.34,BRITISH GAS,BRI040
EFDC,YB110,SUPERVISION/MANAGEMENT SPECIAL,ELECTRICITY,1120,29-May-19,152249,9.13,BRITISH GAS,BRI040
EFDC,YB110,SUPERVISION/MANAGEMENT SPECIAL,ELECTRICITY,1120,29-May-19,152249,15.72,BRITISH GAS,BRI040
EFDC,YB110,SUPERVISION/MANAGEMENT SPECIAL,ELECTRICITY,1120,29-May-19,152249,12.98,BRITISH GAS,BRI040
EFDC,YB110,SUPERVISION/MANAGEMENT SPECIAL,ELECTRICITY,1120,29-May-19,152249,12.9,BRITISH GAS,BRI040
EFDC,YB110,SUPERVISION/MANAGEMENT SPECIAL,ELECTRICITY,1120,29-May-19,152249,12.07,BRITISH GAS,BRI040
EFDC,YB110,SUPERVISION/MANAGEMENT SPECIAL,ELECTRICITY,1120,29-May-19,152249,10.25,BRITISH GAS,BRI040
EFDC,YB110,SUPERVISION/MANAGEMENT SPECIAL,ELECTRICITY,1120,29-May-19,152249,63.15,BRITISH GAS,BRI040
EFDC,YB110,SUPERVISION/MANAGEMENT SPECIAL,ELECTRICITY,1120,29-May-19,152249,10.73,BRITISH GAS,BRI040
EFDC,YB110,SUPERVISION/MANAGEMENT SPECIAL,ELECTRICITY,1120,29-May-19,152249,14.61,BRITISH GAS,BRI040
EFDC,YB110,SUPERVISION/MANAGEMENT SPECIAL,ELECTRICITY,1120,29-May-19,152249,20.77,BRITISH GAS,BRI040
EFDC,YB110,SUPERVISION/MANAGEMENT SPECIAL,ELECTRICITY,1120,29-May-19,152249,18.26,BRITISH GAS,BRI040
EFDC,YB110,SUPERVISION/MANAGEMENT SPECIAL,ELECTRICITY,1120,29-May-19,152249,12.38,BRITISH GAS,BRI040
EFDC,YB110,SUPERVISION/MANAGEMENT SPECIAL,ELECTRICITY,1120,29-May-19,152249,18.2,BRITISH GAS,BRI040
EFDC,YB110,SUPERVISION/MANAGEMENT SPECIAL,ELECTRICITY,1120,29-May-19,152249,14.25,BRITISH GAS,BRI040
EFDC,YB110,SUPERVISION/MANAGEMENT SPECIAL,ELECTRICITY,1120,29-May-19,152249,12.78,BRITISH GAS,BRI040
EFDC,YB110,SUPERVISION/MANAGEMENT SPECIAL,ELECTRICITY,1120,29-May-19,152249,29.71,BRITISH GAS,BRI040
EFDC,YB110,SUPERVISION/MANAGEMENT SPECIAL,ELECTRICITY,1120,29-May-19,152249,-34.79,BRITISH GAS,BRI040
EFDC,YB110,SUPERVISION/MANAGEMENT SPECIAL,ELECTRICITY,1120,29-May-19,152249,15.48,BRITISH GAS,BRI040
EFDC,YB110,SUPERVISION/MANAGEMENT SPECIAL,ELECTRICITY,1120,29-May-19,152249,14.08,BRITISH GAS,BRI040
EFDC,YB110,SUPERVISION/MANAGEMENT SPECIAL,ELECTRICITY,1120,29-May-19,152249,80.64,BRITISH GAS,BRI040
EFDC,YB110,SUPERVISION/MANAGEMENT SPECIAL,ELECTRICITY,1120,29-May-19,152249,15.46,BRITISH GAS,BRI040
EFDC,YB110,SUPERVISION/MANAGEMENT SPECIAL,ELECTRICITY,1120,29-May-19,152249,22.33,BRITISH GAS,BRI040
EFDC,YB110,SUPERVISION/MANAGEMENT SPECIAL,ELECTRICITY,1120,29-May-19,152249,15.46,BRITISH GAS,BRI040
EFDC,YB110,SUPERVISION/MANAGEMENT SPECIAL,ELECTRICITY,1120,29-May-19,152249,17.37,BRITISH GAS,BRI040
EFDC,32030,OTHER SUPPORT SERVICES,POSTAGE,3510,29-May-19,152260,49.17,ROYAL MAIL GROUP PLC,ROY015
EFDC,YB110,SUPERVISION/MANAGEMENT SPECIAL,ELECTRICITY,1120,29-May-19,152249,13.81,BRITISH GAS,BRI040
EFDC,YB110,SUPERVISION/MANAGEMENT SPECIAL,ELECTRICITY,1120,29-May-19,152249,11.34,BRITISH GAS,BRI040
EFDC,YB110,SUPERVISION/MANAGEMENT SPECIAL,ELECTRICITY,1120,29-May-19,152249,17.19,BRITISH GAS,BRI040
EFDC,YB110,SUPERVISION/MANAGEMENT SPECIAL,ELECTRICITY,1120,29-May-19,152249,11.36,BRITISH GAS,BRI040
EFDC,YB110,SUPERVISION/MANAGEMENT SPECIAL,ELECTRICITY,1120,29-May-19,152249,12.23,BRITISH GAS,BRI040
EFDC,RE100,ELECTIONS,POSTAGE,3510,29-May-19,151786,-9.36,ROYAL MAIL GROUP PLC,ROY015
EFDC,YB110,SUPERVISION/MANAGEMENT SPECIAL,ELECTRICITY,1120,29-May-19,152249,20.71,BRITISH GAS,BRI040
EFDC,YB110,SUPERVISION/MANAGEMENT SPECIAL,ELECTRICITY,1120,29-May-19,152249,12.96,BRITISH GAS,BRI040
EFDC,YB110,SUPERVISION/MANAGEMENT SPECIAL,ELECTRICITY,1120,29-May-19,152249,-23.06,BRITISH GAS,BRI040
EFDC,YB110,SUPERVISION/MANAGEMENT SPECIAL,ELECTRICITY,1120,29-May-19,152249,14.18,BRITISH GAS,BRI040
EFDC,YB110,SUPERVISION/MANAGEMENT SPECIAL,ELECTRICITY,1120,29-May-19,152249,17.4,BRITISH GAS,BRI040
EFDC,YB110,SUPERVISION/MANAGEMENT SPECIAL,ELECTRICITY,1120,29-May-19,152249,77.76,BRITISH GAS,BRI040
EFDC,YB110,SUPERVISION/MANAGEMENT SPECIAL,ELECTRICITY,1120,29-May-19,152249,52.58,BRITISH GAS,BRI040
EFDC,YB110,SUPERVISION/MANAGEMENT SPECIAL,ELECTRICITY,1120,29-May-19,152249,58.81,BRITISH GAS,BRI040
EFDC,YB110,SUPERVISION/MANAGEMENT SPECIAL,ELECTRICITY,1120,29-May-19,152249,14.23,BRITISH GAS,BRI040
EFDC,YB110,SUPERVISION/MANAGEMENT SPECIAL,ELECTRICITY,1120,29-May-19,152249,17.8,BRITISH GAS,BRI040
EFDC,YB110,SUPERVISION/MANAGEMENT SPECIAL,ELECTRICITY,1120,29-May-19,152249,9.77,BRITISH GAS,BRI040
EFDC,YB110,SUPERVISION/MANAGEMENT SPECIAL,ELECTRICITY,1120,29-May-19,152249,17,BRITISH GAS,BRI040
EFDC,YB110,SUPERVISION/MANAGEMENT SPECIAL,ELECTRICITY,1120,29-May-19,152249,11.96,BRITISH GAS,BRI040
EFDC,YB110,SUPERVISION/MANAGEMENT SPECIAL,ELECTRICITY,1120,29-May-19,152249,13.44,BRITISH GAS,BRI040
EFDC,YB110,SUPERVISION/MANAGEMENT SPECIAL,ELECTRICITY,1120,29-May-19,152249,14.56,BRITISH GAS,BRI040
EFDC,YB110,SUPERVISION/MANAGEMENT SPECIAL,ELECTRICITY,1120,29-May-19,152249,16.06,BRITISH GAS,BRI040
EFDC,YB110,SUPERVISION/MANAGEMENT SPECIAL,ELECTRICITY,1120,29-May-19,152249,16.75,BRITISH GAS,BRI040
EFDC,YB110,SUPERVISION/MANAGEMENT SPECIAL,ELECTRICITY,1120,29-May-19,152249,18.95,BRITISH GAS,BRI040
EFDC,YB110,SUPERVISION/MANAGEMENT SPECIAL,ELECTRICITY,1120,29-May-19,152249,14.38,BRITISH GAS,BRI040
EFDC,YB110,SUPERVISION/MANAGEMENT SPECIAL,ELECTRICITY,1120,29-May-19,152249,21.94,BRITISH GAS,BRI040
EFDC,YB110,SUPERVISION/MANAGEMENT SPECIAL,ELECTRICITY,1120,29-May-19,152249,17.76,BRITISH GAS,BRI040
EFDC,YB110,SUPERVISION/MANAGEMENT SPECIAL,ELECTRICITY,1120,29-May-19,152249,18.83,BRITISH GAS,BRI040
EFDC,YB110,SUPERVISION/MANAGEMENT SPECIAL,ELECTRICITY,1120,29-May-19,152249,19.29,BRITISH GAS,BRI040
EFDC,YB110,SUPERVISION/MANAGEMENT SPECIAL,ELECTRICITY,1120,29-May-19,152249,12.45,BRITISH GAS,BRI040
EFDC,YB110,SUPERVISION/MANAGEMENT SPECIAL,ELECTRICITY,1120,29-May-19,152249,17.09,BRITISH GAS,BRI040
EFDC,YB110,SUPERVISION/MANAGEMENT SPECIAL,ELECTRICITY,1120,29-May-19,152249,18.8,BRITISH GAS,BRI040
EFDC,32200,OTHER SUPPORT SERVICES,STOCK ISSUES,3070,29-May-19,151653,1884.73,HOUND ENVELOPES LTD,HOU003
EFDC,YB200,SUPERVISION/MANAGEMENT SPECIAL,ELECTRICITY,1120,29-May-19,152249,15.7,BRITISH GAS,BRI040
EFDC,YB110,SUPERVISION/MANAGEMENT SPECIAL,ELECTRICITY,1120,29-May-19,152249,12.4,BRITISH GAS,BRI040
EFDC,YB110,SUPERVISION/MANAGEMENT SPECIAL,ELECTRICITY,1120,29-May-19,152249,11.7,BRITISH GAS,BRI040
EFDC,YB110,SUPERVISION/MANAGEMENT SPECIAL,ELECTRICITY,1120,29-May-19,152249,10.71,BRITISH GAS,BRI040
EFDC,CAPGF,GENERAL FUND CAPITAL,EQUIPMENT ACQUISITION,C330,29-May-19,152777,7650,NORTHGATE PUBLIC SERVICES (UK) LTD,NOR018
EFDC,YB300,SUPERVISION/MANAGEMENT SPECIAL,ELECTRICITY,1120,29-May-19,152249,42.9,BRITISH GAS,BRI040
EFDC,33080,OTHER ACTIVITIES,MOBILE PHONE LINE COSTS,3580,29-May-19,152703,5523.17,O2 (UK) LTD,OTW002
EFDC,YB140,SUPERVISION/MANAGEMENT SPECIAL,ELECTRICITY,1120,29-May-19,152249,23.22,BRITISH GAS,BRI040
EFDC,33080,OTHER ACTIVITIES,MOBILE PHONE LINE COSTS,3580,29-May-19,152703,99,O2 (UK) LTD,OTW002
EFDC,32200,OTHER SUPPORT SERVICES,STOCK ISSUES,3070,29-May-19,152779,801.72,OVENDENS,OVE001
EFDC,YB110,SUPERVISION/MANAGEMENT SPECIAL,ELECTRICITY,1120,29-May-19,152249,40.62,BRITISH GAS,BRI040
EFDC,YB140,SUPERVISION/MANAGEMENT SPECIAL,ELECTRICITY,1120,29-May-19,152249,23.86,BRITISH GAS,BRI040
EFDC,CH110,"MUSEUM, HERITAGE & CULTURE",PROFESSIONAL FEES,3420,29-May-19,151092,650,MUSEUMS ASSOCIATION,MUS002
EFDC,YB110,SUPERVISION/MANAGEMENT SPECIAL,ELECTRICITY,1120,29-May-19,152249,12.78,BRITISH GAS,BRI040
EFDC,YB140,SUPERVISION/MANAGEMENT SPECIAL,ELECTRICITY,1120,29-May-19,152249,30.59,BRITISH GAS,BRI040
EFDC,YB140,SUPERVISION/MANAGEMENT SPECIAL,ELECTRICITY,1120,29-May-19,152249,18.16,BRITISH GAS,BRI040
EFDC,YB140,SUPERVISION/MANAGEMENT SPECIAL,ELECTRICITY,1120,29-May-19,152249,27.63,BRITISH GAS,BRI040
EFDC,YB140,SUPERVISION/MANAGEMENT SPECIAL,ELECTRICITY,1120,29-May-19,152249,14.47,BRITISH GAS,BRI040
EFDC,YB110,SUPERVISION/MANAGEMENT SPECIAL,ELECTRICITY,1120,29-May-19,152249,32.17,BRITISH GAS,BRI040
EFDC,YB110,SUPERVISION/MANAGEMENT SPECIAL,ELECTRICITY,1120,29-May-19,152249,12.21,BRITISH GAS,BRI040
EFDC,YB110,SUPERVISION/MANAGEMENT SPECIAL,ELECTRICITY,1120,29-May-19,152249,14.06,BRITISH GAS,BRI040
EFDC,YB110,SUPERVISION/MANAGEMENT SPECIAL,ELECTRICITY,1120,29-May-19,152249,12.24,BRITISH GAS,BRI040
EFDC,YB110,SUPERVISION/MANAGEMENT SPECIAL,ELECTRICITY,1120,29-May-19,152249,12.34,BRITISH GAS,BRI040
EFDC,YB110,SUPERVISION/MANAGEMENT SPECIAL,ELECTRICITY,1120,29-May-19,152249,63.2,BRITISH GAS,BRI040
EFDC,YB110,SUPERVISION/MANAGEMENT SPECIAL,ELECTRICITY,1120,29-May-19,152249,12.62,BRITISH GAS,BRI040
EFDC,YB110,SUPERVISION/MANAGEMENT SPECIAL,ELECTRICITY,1120,29-May-19,152249,13.92,BRITISH GAS,BRI040
EFDC,RS403,"COMMUNITY, HEALTH & WELLBEING",MARKETING & EVENTS,3370,29-May-19,149442,2644,TURNING TECHNOLOGIES LLC,TUR002
EFDC,37600,PLANNING SUPPORT SERVICES,AGENCY STAFF,0120,29-May-19,151856,638,ADECCO UK LTD,ADE002
EFDC,GT100,LOCAL PLAN IMPLEMENTATION,AGENCY STAFF,0120,29-May-19,151853,545.67,ADECCO UK LTD,ADE002
EFDC,YB110,SUPERVISION/MANAGEMENT SPECIAL,ELECTRICITY,1120,29-May-19,152249,39.94,BRITISH GAS,BRI040
EFDC,YB110,SUPERVISION/MANAGEMENT SPECIAL,ELECTRICITY,1120,29-May-19,152249,18.29,BRITISH GAS,BRI040
EFDC,43310,CONTRACT & TECH SUPPORT SERVIC,AGENCY STAFF,0120,29-May-19,151854,524,ADECCO UK LTD,ADE002
EFDC,26200,OTHER SUPPORT SERVICES,FIXED PLANT MAINTENANCE,1020,29-May-19,152772,1249.5,MITIE SECURITY LTD,MIT004
EFDC,32060,OTHER SUPPORT SERVICES,AGENCY STAFF,0120,29-May-19,151767,1837,LAW ABSOLUTE LIMITED,LAW009
EFDC,32060,OTHER SUPPORT SERVICES,AGENCY STAFF,0120,29-May-19,151652,1628,LAW ABSOLUTE LIMITED,LAW009
EFDC,YA210,SUPERVISION/MANAGEMENT GENERAL,PROFESSIONAL FEES,3420,29-May-19,151441,5250,LHS,LHS001
EFDC,YB110,SUPERVISION/MANAGEMENT SPECIAL,ELECTRICITY,1120,29-May-19,152249,9.42,BRITISH GAS,BRI040
EFDC,YB110,SUPERVISION/MANAGEMENT SPECIAL,ELECTRICITY,1120,29-May-19,152249,13.68,BRITISH GAS,BRI040
EFDC,YB140,SUPERVISION/MANAGEMENT SPECIAL,ELECTRICITY,1120,29-May-19,152249,16.75,BRITISH GAS,BRI040
EFDC,YB110,SUPERVISION/MANAGEMENT SPECIAL,ELECTRICITY,1120,29-May-19,152249,25.37,BRITISH GAS,BRI040
EFDC,YB110,SUPERVISION/MANAGEMENT SPECIAL,ELECTRICITY,1120,29-May-19,152249,8.89,BRITISH GAS,BRI040
EFDC,YB140,SUPERVISION/MANAGEMENT SPECIAL,ELECTRICITY,1120,29-May-19,152249,25.46,BRITISH GAS,BRI040
EFDC,78001,HRA SUPPORT SERVICES,REFUSE REMOVAL,1640,29-May-19,151463,1215.2,HEATHERLAND LTD T/A LUNNON PLANT & WASTE SERV,HEA001
EFDC,32220,OTHER SUPPORT SERVICES,AGENCY STAFF,0120,29-May-19,151743,1226.61,HAYS SPECIALIST RECRUITMENT LTD,HAY011
EFDC,YB140,SUPERVISION/MANAGEMENT SPECIAL,ELECTRICITY,1120,29-May-19,152249,22.74,BRITISH GAS,BRI040
EFDC,YB140,SUPERVISION/MANAGEMENT SPECIAL,ELECTRICITY,1120,29-May-19,152249,33.64,BRITISH GAS,BRI040
EFDC,YB140,SUPERVISION/MANAGEMENT SPECIAL,ELECTRICITY,1120,29-May-19,152249,25.98,BRITISH GAS,BRI040
EFDC,CH113,"MUSEUM, HERITAGE & CULTURE",MATERIALS,3080,29-May-19,152771,1080,DANNELLS LIMITED,MAR031
EFDC,YB140,SUPERVISION/MANAGEMENT SPECIAL,ELECTRICITY,1120,29-May-19,152249,23.69,BRITISH GAS,BRI040
EFDC,YB110,SUPERVISION/MANAGEMENT SPECIAL,ELECTRICITY,1120,29-May-19,152249,19.79,BRITISH GAS,BRI040
EFDC,YB140,SUPERVISION/MANAGEMENT SPECIAL,ELECTRICITY,1120,29-May-19,152249,25.57,BRITISH GAS,BRI040
EFDC,YB140,SUPERVISION/MANAGEMENT SPECIAL,ELECTRICITY,1120,29-May-19,152249,11.69,BRITISH GAS,BRI040
EFDC,YB110,SUPERVISION/MANAGEMENT SPECIAL,ELECTRICITY,1120,29-May-19,152249,15.46,BRITISH GAS,BRI040
EFDC,YB140,SUPERVISION/MANAGEMENT SPECIAL,ELECTRICITY,1120,29-May-19,152249,32.17,BRITISH GAS,BRI040
EFDC,YB110,SUPERVISION/MANAGEMENT SPECIAL,ELECTRICITY,1120,29-May-19,152249,65.7,BRITISH GAS,BRI040
EFDC,CM105,CORPORATE ACTIVITIES,SUBSCRIPTIONS,3730,29-May-19,151810,10450,LOCAL GOVERNMENT ASSOCIATION,LOC001
EFDC,37600,PLANNING SUPPORT SERVICES,AGENCY STAFF,0120,29-May-19,151439,1277.5,VIVID RESOURCING LTD,VIV002
EFDC,YB110,SUPERVISION/MANAGEMENT SPECIAL,ELECTRICITY,1120,29-May-19,152249,17.48,BRITISH GAS,BRI040
EFDC,YB110,SUPERVISION/MANAGEMENT SPECIAL,ELECTRICITY,1120,29-May-19,152249,14.44,BRITISH GAS,BRI040
EFDC,YB110,SUPERVISION/MANAGEMENT SPECIAL,ELECTRICITY,1120,29-May-19,152249,14.31,BRITISH GAS,BRI040
EFDC,YB110,SUPERVISION/MANAGEMENT SPECIAL,ELECTRICITY,1120,29-May-19,152249,7.35,BRITISH GAS,BRI040
EFDC,YB110,SUPERVISION/MANAGEMENT SPECIAL,ELECTRICITY,1120,29-May-19,152249,34.58,BRITISH GAS,BRI040
EFDC,YB110,SUPERVISION/MANAGEMENT SPECIAL,ELECTRICITY,1120,29-May-19,152249,7.35,BRITISH GAS,BRI040
EFDC,YB110,SUPERVISION/MANAGEMENT SPECIAL,ELECTRICITY,1120,29-May-19,152249,10.79,BRITISH GAS,BRI040
EFDC,YB110,SUPERVISION/MANAGEMENT SPECIAL,ELECTRICITY,1120,29-May-19,152249,45.03,BRITISH GAS,BRI040
EFDC,YB110,SUPERVISION/MANAGEMENT SPECIAL,ELECTRICITY,1120,29-May-19,152249,-15.19,BRITISH GAS,BRI040
EFDC,YB110,SUPERVISION/MANAGEMENT SPECIAL,ELECTRICITY,1120,29-May-19,152249,137.07,BRITISH GAS,BRI040
EFDC,YB110,SUPERVISION/MANAGEMENT SPECIAL,ELECTRICITY,1120,29-May-19,152249,19.28,BRITISH GAS,BRI040
EFDC,YB110,SUPERVISION/MANAGEMENT SPECIAL,ELECTRICITY,1120,29-May-19,152249,-14.34,BRITISH GAS,BRI040
EFDC,YB110,SUPERVISION/MANAGEMENT SPECIAL,ELECTRICITY,1120,29-May-19,152249,125.58,BRITISH GAS,BRI040
EFDC,32170,OTHER SUPPORT SERVICES,AGENCY STAFF,0120,29-May-19,152787,589.75,REED SPECIALIST RECRUITMENT LTD,REE002
EFDC,YB110,SUPERVISION/MANAGEMENT SPECIAL,ELECTRICITY,1120,29-May-19,152249,16.89,BRITISH GAS,BRI040
EFDC,37600,PLANNING SUPPORT SERVICES,AGENCY STAFF,0120,29-May-19,151440,1050,VIVID RESOURCING LTD,VIV002
EFDC,35013,CONTRACT & TECH SUPPORT SERVIC,AGENCY STAFF,0120,29-May-19,152367,1043.1,REED SPECIALIST RECRUITMENT LTD,REE002
EFDC,YB110,SUPERVISION/MANAGEMENT SPECIAL,ELECTRICITY,1120,29-May-19,152249,-13.68,BRITISH GAS,BRI040
EFDC,YB110,SUPERVISION/MANAGEMENT SPECIAL,ELECTRICITY,1120,29-May-19,152249,47.5,BRITISH GAS,BRI040
EFDC,YB110,SUPERVISION/MANAGEMENT SPECIAL,ELECTRICITY,1120,29-May-19,152249,7.6,BRITISH GAS,BRI040
EFDC,YB110,SUPERVISION/MANAGEMENT SPECIAL,ELECTRICITY,1120,29-May-19,152249,15.94,BRITISH GAS,BRI040
EFDC,YB110,SUPERVISION/MANAGEMENT SPECIAL,ELECTRICITY,1120,29-May-19,152249,14.86,BRITISH GAS,BRI040
EFDC,YB110,SUPERVISION/MANAGEMENT SPECIAL,ELECTRICITY,1120,29-May-19,152249,7.6,BRITISH GAS,BRI040
EFDC,YB110,SUPERVISION/MANAGEMENT SPECIAL,ELECTRICITY,1120,29-May-19,152249,-27.93,BRITISH GAS,BRI040
EFDC,YB110,SUPERVISION/MANAGEMENT SPECIAL,ELECTRICITY,1120,29-May-19,152249,-28.02,BRITISH GAS,BRI040
EFDC,YA300,SUPERVISION/MANAGEMENT GENERAL,SUBSCRIPTIONS,3730,29-May-19,151769,1115,NORTHERN HOUSING CONSORTIUM LTD,NOR008
EFDC,YB110,SUPERVISION/MANAGEMENT SPECIAL,ELECTRICITY,1120,29-May-19,152249,25.62,BRITISH GAS,BRI040
EFDC,YB110,SUPERVISION/MANAGEMENT SPECIAL,ELECTRICITY,1120,29-May-19,152249,-11.21,BRITISH GAS,BRI040
EFDC,YB110,SUPERVISION/MANAGEMENT SPECIAL,ELECTRICITY,1120,29-May-19,152249,11.72,BRITISH GAS,BRI040
EFDC,YB110,SUPERVISION/MANAGEMENT SPECIAL,ELECTRICITY,1120,29-May-19,152249,7.35,BRITISH GAS,BRI040
EFDC,33065,OTHER ACTIVITIES,PROFESSIONAL FEES,3420,29-May-19,152242,39840,DELOITTE LLP,DEL005
EFDC,YB110,SUPERVISION/MANAGEMENT SPECIAL,ELECTRICITY,1120,29-May-19,152249,116.49,BRITISH GAS,BRI040
EFDC,YB110,SUPERVISION/MANAGEMENT SPECIAL,ELECTRICITY,1120,29-May-19,152249,26.6,BRITISH GAS,BRI040
EFDC,YB110,SUPERVISION/MANAGEMENT SPECIAL,ELECTRICITY,1120,29-May-19,152249,58.34,BRITISH GAS,BRI040
EFDC,33080,OTHER ACTIVITIES,ANNUAL SUPPORT /  LICENSES,3872,29-May-19,151413,593.46,PHOENIX SOFTWARE LTD,PHO002
EFDC,YB110,SUPERVISION/MANAGEMENT SPECIAL,ELECTRICITY,1120,29-May-19,152249,9.47,BRITISH GAS,BRI040
EFDC,CY100,COMMUNITY & PARTNERSHIP,CONTRIBUTIONS,3740,29-May-19,151707,40972,POLICE & CRIME COMMISSIONER FOR ESSEX,POL007
EFDC,YB110,SUPERVISION/MANAGEMENT SPECIAL,ELECTRICITY,1120,29-May-19,152249,60.68,BRITISH GAS,BRI040
EFDC,YB110,SUPERVISION/MANAGEMENT SPECIAL,ELECTRICITY,1120,29-May-19,152249,9.74,BRITISH GAS,BRI040
EFDC,CY100,COMMUNITY & PARTNERSHIP,CONTRIBUTIONS,3740,29-May-19,151946,5000,POLICE & CRIME COMMISSIONER FOR ESSEX,POL007
EFDC,OS101,PARKS & GROUNDS,TREE  MAINTENANCE,1070,29-May-19,152297,4825,PRINCIPAL TREES LTD,PRI017
EFDC,YB110,SUPERVISION/MANAGEMENT SPECIAL,ELECTRICITY,1120,29-May-19,152249,12.15,BRITISH GAS,BRI040
EFDC,YB110,SUPERVISION/MANAGEMENT SPECIAL,ELECTRICITY,1120,29-May-19,152249,10.34,BRITISH GAS,BRI040
EFDC,YB110,SUPERVISION/MANAGEMENT SPECIAL,ELECTRICITY,1120,29-May-19,152249,-25.78,BRITISH GAS,BRI040
EFDC,YB110,SUPERVISION/MANAGEMENT SPECIAL,ELECTRICITY,1120,29-May-19,152249,14.82,BRITISH GAS,BRI040
EFDC,YB110,SUPERVISION/MANAGEMENT SPECIAL,ELECTRICITY,1120,29-May-19,152249,19.93,BRITISH GAS,BRI040
EFDC,YB110,SUPERVISION/MANAGEMENT SPECIAL,ELECTRICITY,1120,29-May-19,152249,8.64,BRITISH GAS,BRI040
EFDC,YB110,SUPERVISION/MANAGEMENT SPECIAL,ELECTRICITY,1120,29-May-19,152249,14.42,BRITISH GAS,BRI040
EFDC,33080,OTHER ACTIVITIES,MATERIALS,3080,29-May-19,151865,6289.92,PROBRAND LTD,PRO011
EFDC,YB110,SUPERVISION/MANAGEMENT SPECIAL,ELECTRICITY,1120,29-May-19,152249,6.12,BRITISH GAS,BRI040
EFDC,YB110,SUPERVISION/MANAGEMENT SPECIAL,ELECTRICITY,1120,29-May-19,152249,13.17,BRITISH GAS,BRI040
EFDC,YB110,SUPERVISION/MANAGEMENT SPECIAL,ELECTRICITY,1120,29-May-19,152249,15.69,BRITISH GAS,BRI040
EFDC,YB110,SUPERVISION/MANAGEMENT SPECIAL,ELECTRICITY,1120,29-May-19,152249,12.16,BRITISH GAS,BRI040
EFDC,YB110,SUPERVISION/MANAGEMENT SPECIAL,ELECTRICITY,1120,29-May-19,152249,15.27,BRITISH GAS,BRI040
EFDC,YB110,SUPERVISION/MANAGEMENT SPECIAL,ELECTRICITY,1120,29-May-19,152249,41.39,BRITISH GAS,BRI040
EFDC,YB110,SUPERVISION/MANAGEMENT SPECIAL,ELECTRICITY,1120,29-May-19,152249,15.59,BRITISH GAS,BRI040
EFDC,YB110,SUPERVISION/MANAGEMENT SPECIAL,ELECTRICITY,1120,29-May-19,152249,16.79,BRITISH GAS,BRI040
EFDC,YB110,SUPERVISION/MANAGEMENT SPECIAL,ELECTRICITY,1120,29-May-19,152249,10.34,BRITISH GAS,BRI040
EFDC,YB110,SUPERVISION/MANAGEMENT SPECIAL,ELECTRICITY,1120,29-May-19,152249,24.08,BRITISH GAS,BRI040
EFDC,YB110,SUPERVISION/MANAGEMENT SPECIAL,ELECTRICITY,1120,29-May-19,152249,21.15,BRITISH GAS,BRI040
EFDC,YB110,SUPERVISION/MANAGEMENT SPECIAL,ELECTRICITY,1120,29-May-19,152249,19.57,BRITISH GAS,BRI040
EFDC,YB110,SUPERVISION/MANAGEMENT SPECIAL,ELECTRICITY,1120,29-May-19,152249,30.87,BRITISH GAS,BRI040
EFDC,YB110,SUPERVISION/MANAGEMENT SPECIAL,ELECTRICITY,1120,29-May-19,152249,36.87,BRITISH GAS,BRI040
EFDC,YB110,SUPERVISION/MANAGEMENT SPECIAL,ELECTRICITY,1120,29-May-19,152249,18.87,BRITISH GAS,BRI040
EFDC,YB110,SUPERVISION/MANAGEMENT SPECIAL,ELECTRICITY,1120,29-May-19,152249,19.46,BRITISH GAS,BRI040
EFDC,YB110,SUPERVISION/MANAGEMENT SPECIAL,ELECTRICITY,1120,29-May-19,152249,15.82,BRITISH GAS,BRI040
EFDC,YB110,SUPERVISION/MANAGEMENT SPECIAL,ELECTRICITY,1120,29-May-19,152249,23.07,BRITISH GAS,BRI040
EFDC,YB110,SUPERVISION/MANAGEMENT SPECIAL,ELECTRICITY,1120,29-May-19,152249,13.4,BRITISH GAS,BRI040
EFDC,YB110,SUPERVISION/MANAGEMENT SPECIAL,ELECTRICITY,1120,29-May-19,152249,20.91,BRITISH GAS,BRI040
EFDC,YB110,SUPERVISION/MANAGEMENT SPECIAL,ELECTRICITY,1120,29-May-19,152249,24.54,BRITISH GAS,BRI040
EFDC,YB110,SUPERVISION/MANAGEMENT SPECIAL,ELECTRICITY,1120,29-May-19,152249,25.35,BRITISH GAS,BRI040
EFDC,YB110,SUPERVISION/MANAGEMENT SPECIAL,ELECTRICITY,1120,29-May-19,152249,30.79,BRITISH GAS,BRI040
EFDC,YB110,SUPERVISION/MANAGEMENT SPECIAL,ELECTRICITY,1120,29-May-19,152249,115.83,BRITISH GAS,BRI040
EFDC,YB110,SUPERVISION/MANAGEMENT SPECIAL,ELECTRICITY,1120,29-May-19,152249,17.37,BRITISH GAS,BRI040
EFDC,YB110,SUPERVISION/MANAGEMENT SPECIAL,ELECTRICITY,1120,29-May-19,152249,13.53,BRITISH GAS,BRI040
EFDC,YB110,SUPERVISION/MANAGEMENT SPECIAL,ELECTRICITY,1120,29-May-19,152249,13.51,BRITISH GAS,BRI040
EFDC,YB110,SUPERVISION/MANAGEMENT SPECIAL,ELECTRICITY,1120,29-May-19,152249,15.57,BRITISH GAS,BRI040
EFDC,YB110,SUPERVISION/MANAGEMENT SPECIAL,ELECTRICITY,1120,29-May-19,152249,13.82,BRITISH GAS,BRI040
EFDC,YB110,SUPERVISION/MANAGEMENT SPECIAL,ELECTRICITY,1120,29-May-19,152249,20.41,BRITISH GAS,BRI040
EFDC,YB110,SUPERVISION/MANAGEMENT SPECIAL,ELECTRICITY,1120,29-May-19,152249,18.34,BRITISH GAS,BRI040
EFDC,YB110,SUPERVISION/MANAGEMENT SPECIAL,ELECTRICITY,1120,29-May-19,152249,24.51,BRITISH GAS,BRI040
EFDC,YB110,SUPERVISION/MANAGEMENT SPECIAL,ELECTRICITY,1120,29-May-19,152249,11.57,BRITISH GAS,BRI040
EFDC,YB110,SUPERVISION/MANAGEMENT SPECIAL,ELECTRICITY,1120,29-May-19,152249,8.69,BRITISH GAS,BRI040
EFDC,YB110,SUPERVISION/MANAGEMENT SPECIAL,ELECTRICITY,1120,29-May-19,152249,13.34,BRITISH GAS,BRI040
EFDC,YB110,SUPERVISION/MANAGEMENT SPECIAL,ELECTRICITY,1120,29-May-19,152249,20.32,BRITISH GAS,BRI040
EFDC,YB110,SUPERVISION/MANAGEMENT SPECIAL,ELECTRICITY,1120,29-May-19,152249,16.24,BRITISH GAS,BRI040
EFDC,YB110,SUPERVISION/MANAGEMENT SPECIAL,ELECTRICITY,1120,29-May-19,152249,19.86,BRITISH GAS,BRI040
EFDC,YB110,SUPERVISION/MANAGEMENT SPECIAL,ELECTRICITY,1120,29-May-19,152249,19.96,BRITISH GAS,BRI040
EFDC,YB110,SUPERVISION/MANAGEMENT SPECIAL,ELECTRICITY,1120,29-May-19,152249,126.32,BRITISH GAS,BRI040
EFDC,YB110,SUPERVISION/MANAGEMENT SPECIAL,ELECTRICITY,1120,29-May-19,152249,12.06,BRITISH GAS,BRI040
EFDC,YB110,SUPERVISION/MANAGEMENT SPECIAL,ELECTRICITY,1120,29-May-19,152249,13.53,BRITISH GAS,BRI040
EFDC,YB110,SUPERVISION/MANAGEMENT SPECIAL,ELECTRICITY,1120,29-May-19,152249,15.89,BRITISH GAS,BRI040
EFDC,YB110,SUPERVISION/MANAGEMENT SPECIAL,ELECTRICITY,1120,29-May-19,152249,13.51,BRITISH GAS,BRI040
EFDC,YB110,SUPERVISION/MANAGEMENT SPECIAL,ELECTRICITY,1120,29-May-19,152249,15.4,BRITISH GAS,BRI040
EFDC,YB110,SUPERVISION/MANAGEMENT SPECIAL,ELECTRICITY,1120,29-May-19,152249,7.59,BRITISH GAS,BRI040
EFDC,YB110,SUPERVISION/MANAGEMENT SPECIAL,ELECTRICITY,1120,29-May-19,152249,19.66,BRITISH GAS,BRI040
EFDC,YB110,SUPERVISION/MANAGEMENT SPECIAL,ELECTRICITY,1120,29-May-19,152249,17.72,BRITISH GAS,BRI040
EFDC,YB110,SUPERVISION/MANAGEMENT SPECIAL,ELECTRICITY,1120,29-May-19,152249,9.9,BRITISH GAS,BRI040
EFDC,YB110,SUPERVISION/MANAGEMENT SPECIAL,ELECTRICITY,1120,29-May-19,152249,23.08,BRITISH GAS,BRI040
EFDC,YB110,SUPERVISION/MANAGEMENT SPECIAL,ELECTRICITY,1120,29-May-19,152249,21.16,BRITISH GAS,BRI040
EFDC,YB110,SUPERVISION/MANAGEMENT SPECIAL,ELECTRICITY,1120,29-May-19,152249,15.33,BRITISH GAS,BRI040
EFDC,YB110,SUPERVISION/MANAGEMENT SPECIAL,ELECTRICITY,1120,29-May-19,152249,21.69,BRITISH GAS,BRI040
EFDC,YB110,SUPERVISION/MANAGEMENT SPECIAL,ELECTRICITY,1120,29-May-19,152249,12.1,BRITISH GAS,BRI040
EFDC,YB110,SUPERVISION/MANAGEMENT SPECIAL,ELECTRICITY,1120,29-May-19,152249,12.01,BRITISH GAS,BRI040
EFDC,YB110,SUPERVISION/MANAGEMENT SPECIAL,ELECTRICITY,1120,29-May-19,152249,13.85,BRITISH GAS,BRI040
EFDC,YB110,SUPERVISION/MANAGEMENT SPECIAL,ELECTRICITY,1120,29-May-19,152249,16.49,BRITISH GAS,BRI040
EFDC,YB110,SUPERVISION/MANAGEMENT SPECIAL,ELECTRICITY,1120,29-May-19,152249,39.22,BRITISH GAS,BRI040
EFDC,YB110,SUPERVISION/MANAGEMENT SPECIAL,ELECTRICITY,1120,29-May-19,152249,12.62,BRITISH GAS,BRI040
EFDC,YB110,SUPERVISION/MANAGEMENT SPECIAL,ELECTRICITY,1120,29-May-19,152249,16,BRITISH GAS,BRI040
EFDC,YB110,SUPERVISION/MANAGEMENT SPECIAL,ELECTRICITY,1120,29-May-19,152249,11.01,BRITISH GAS,BRI040
EFDC,YB110,SUPERVISION/MANAGEMENT SPECIAL,ELECTRICITY,1120,29-May-19,152249,14.8,BRITISH GAS,BRI040
EFDC,YB110,SUPERVISION/MANAGEMENT SPECIAL,ELECTRICITY,1120,29-May-19,152249,7.56,BRITISH GAS,BRI040
EFDC,YB110,SUPERVISION/MANAGEMENT SPECIAL,ELECTRICITY,1120,29-May-19,152249,19.72,BRITISH GAS,BRI040
EFDC,YB110,SUPERVISION/MANAGEMENT SPECIAL,ELECTRICITY,1120,29-May-19,152249,12.06,BRITISH GAS,BRI040
EFDC,YB110,SUPERVISION/MANAGEMENT SPECIAL,ELECTRICITY,1120,29-May-19,152249,107.54,BRITISH GAS,BRI040
EFDC,YB110,SUPERVISION/MANAGEMENT SPECIAL,ELECTRICITY,1120,29-May-19,152249,16.71,BRITISH GAS,BRI040
EFDC,YB110,SUPERVISION/MANAGEMENT SPECIAL,ELECTRICITY,1120,29-May-19,152249,20.07,BRITISH GAS,BRI040
EFDC,YB110,SUPERVISION/MANAGEMENT SPECIAL,ELECTRICITY,1120,29-May-19,152249,105.03,BRITISH GAS,BRI040
EFDC,YB110,SUPERVISION/MANAGEMENT SPECIAL,ELECTRICITY,1120,29-May-19,152249,19.15,BRITISH GAS,BRI040
EFDC,YB110,SUPERVISION/MANAGEMENT SPECIAL,ELECTRICITY,1120,29-May-19,152249,22.59,BRITISH GAS,BRI040
EFDC,YB110,SUPERVISION/MANAGEMENT SPECIAL,ELECTRICITY,1120,29-May-19,152249,13.14,BRITISH GAS,BRI040
EFDC,YB110,SUPERVISION/MANAGEMENT SPECIAL,ELECTRICITY,1120,29-May-19,152249,15.46,BRITISH GAS,BRI040
EFDC,YB110,SUPERVISION/MANAGEMENT SPECIAL,ELECTRICITY,1120,29-May-19,152249,19.62,BRITISH GAS,BRI040
EFDC,YB110,SUPERVISION/MANAGEMENT SPECIAL,ELECTRICITY,1120,29-May-19,152249,10.53,BRITISH GAS,BRI040
EFDC,YB110,SUPERVISION/MANAGEMENT SPECIAL,ELECTRICITY,1120,29-May-19,152249,14.35,BRITISH GAS,BRI040
EFDC,YB110,SUPERVISION/MANAGEMENT SPECIAL,ELECTRICITY,1120,29-May-19,152249,11.28,BRITISH GAS,BRI040
EFDC,YB110,SUPERVISION/MANAGEMENT SPECIAL,ELECTRICITY,1120,29-May-19,152249,17.37,BRITISH GAS,BRI040
EFDC,YB110,SUPERVISION/MANAGEMENT SPECIAL,ELECTRICITY,1120,29-May-19,152249,9.53,BRITISH GAS,BRI040
EFDC,YB110,SUPERVISION/MANAGEMENT SPECIAL,ELECTRICITY,1120,29-May-19,152249,19.41,BRITISH GAS,BRI040
EFDC,YB110,SUPERVISION/MANAGEMENT SPECIAL,ELECTRICITY,1120,29-May-19,152249,17.82,BRITISH GAS,BRI040
EFDC,YB110,SUPERVISION/MANAGEMENT SPECIAL,ELECTRICITY,1120,29-May-19,152249,11.99,BRITISH GAS,BRI040
EFDC,YB110,SUPERVISION/MANAGEMENT SPECIAL,ELECTRICITY,1120,29-May-19,152249,9.61,BRITISH GAS,BRI040
EFDC,YB110,SUPERVISION/MANAGEMENT SPECIAL,ELECTRICITY,1120,29-May-19,152249,13.13,BRITISH GAS,BRI040
EFDC,YB110,SUPERVISION/MANAGEMENT SPECIAL,ELECTRICITY,1120,29-May-19,152249,28.79,BRITISH GAS,BRI040
EFDC,YB110,SUPERVISION/MANAGEMENT SPECIAL,ELECTRICITY,1120,29-May-19,152249,8.69,BRITISH GAS,BRI040
EFDC,YB110,SUPERVISION/MANAGEMENT SPECIAL,ELECTRICITY,1120,29-May-19,152249,11.21,BRITISH GAS,BRI040
EFDC,YB110,SUPERVISION/MANAGEMENT SPECIAL,ELECTRICITY,1120,29-May-19,152249,19.02,BRITISH GAS,BRI040
EFDC,YB110,SUPERVISION/MANAGEMENT SPECIAL,ELECTRICITY,1120,29-May-19,152249,7.56,BRITISH GAS,BRI040
EFDC,YB110,SUPERVISION/MANAGEMENT SPECIAL,ELECTRICITY,1120,29-May-19,152249,20.3,BRITISH GAS,BRI040
EFDC,YB110,SUPERVISION/MANAGEMENT SPECIAL,ELECTRICITY,1120,29-May-19,152249,12.8,BRITISH GAS,BRI040
EFDC,YB110,SUPERVISION/MANAGEMENT SPECIAL,ELECTRICITY,1120,29-May-19,152249,10.7,BRITISH GAS,BRI040
EFDC,YB110,SUPERVISION/MANAGEMENT SPECIAL,ELECTRICITY,1120,29-May-19,152249,26.96,BRITISH GAS,BRI040
EFDC,YB110,SUPERVISION/MANAGEMENT SPECIAL,ELECTRICITY,1120,29-May-19,152249,16.84,BRITISH GAS,BRI040
EFDC,YB110,SUPERVISION/MANAGEMENT SPECIAL,ELECTRICITY,1120,29-May-19,152249,13.04,BRITISH GAS,BRI040
EFDC,YB110,SUPERVISION/MANAGEMENT SPECIAL,ELECTRICITY,1120,29-May-19,152249,12.91,BRITISH GAS,BRI040
EFDC,YB110,SUPERVISION/MANAGEMENT SPECIAL,ELECTRICITY,1120,29-May-19,152249,12.91,BRITISH GAS,BRI040
EFDC,YB110,SUPERVISION/MANAGEMENT SPECIAL,ELECTRICITY,1120,29-May-19,152249,28.52,BRITISH GAS,BRI040
EFDC,YB110,SUPERVISION/MANAGEMENT SPECIAL,ELECTRICITY,1120,29-May-19,152249,11.74,BRITISH GAS,BRI040
EFDC,YB110,SUPERVISION/MANAGEMENT SPECIAL,ELECTRICITY,1120,29-May-19,152249,10.17,BRITISH GAS,BRI040
EFDC,YB110,SUPERVISION/MANAGEMENT SPECIAL,ELECTRICITY,1120,29-May-19,152249,21.72,BRITISH GAS,BRI040
EFDC,YB110,SUPERVISION/MANAGEMENT SPECIAL,ELECTRICITY,1120,29-May-19,152249,9.89,BRITISH GAS,BRI040
EFDC,YB110,SUPERVISION/MANAGEMENT SPECIAL,ELECTRICITY,1120,29-May-19,152249,13.01,BRITISH GAS,BRI040
EFDC,YB110,SUPERVISION/MANAGEMENT SPECIAL,ELECTRICITY,1120,29-May-19,152249,31.83,BRITISH GAS,BRI040
EFDC,YB110,SUPERVISION/MANAGEMENT SPECIAL,ELECTRICITY,1120,29-May-19,152249,17.8,BRITISH GAS,BRI040
EFDC,YB110,SUPERVISION/MANAGEMENT SPECIAL,ELECTRICITY,1120,29-May-19,152249,29.09,BRITISH GAS,BRI040
EFDC,YB110,SUPERVISION/MANAGEMENT SPECIAL,ELECTRICITY,1120,29-May-19,152249,19.89,BRITISH GAS,BRI040
EFDC,YB110,SUPERVISION/MANAGEMENT SPECIAL,ELECTRICITY,1120,29-May-19,152249,12.27,BRITISH GAS,BRI040
EFDC,YB110,SUPERVISION/MANAGEMENT SPECIAL,ELECTRICITY,1120,29-May-19,152249,19.52,BRITISH GAS,BRI040
EFDC,YB110,SUPERVISION/MANAGEMENT SPECIAL,ELECTRICITY,1120,29-May-19,152249,19.58,BRITISH GAS,BRI040
EFDC,YB110,SUPERVISION/MANAGEMENT SPECIAL,ELECTRICITY,1120,29-May-19,152249,22.62,BRITISH GAS,BRI040
EFDC,YB110,SUPERVISION/MANAGEMENT SPECIAL,ELECTRICITY,1120,29-May-19,152249,34.33,BRITISH GAS,BRI040
EFDC,YB110,SUPERVISION/MANAGEMENT SPECIAL,ELECTRICITY,1120,29-May-19,152249,13.16,BRITISH GAS,BRI040
EFDC,YB110,SUPERVISION/MANAGEMENT SPECIAL,ELECTRICITY,1120,29-May-19,152249,23.86,BRITISH GAS,BRI040
EFDC,YB110,SUPERVISION/MANAGEMENT SPECIAL,ELECTRICITY,1120,29-May-19,152249,15.05,BRITISH GAS,BRI040
EFDC,YB110,SUPERVISION/MANAGEMENT SPECIAL,ELECTRICITY,1120,29-May-19,152249,14.33,BRITISH GAS,BRI040
EFDC,YB110,SUPERVISION/MANAGEMENT SPECIAL,ELECTRICITY,1120,29-May-19,152249,12.14,BRITISH GAS,BRI040
EFDC,YB110,SUPERVISION/MANAGEMENT SPECIAL,ELECTRICITY,1120,29-May-19,152249,13.67,BRITISH GAS,BRI040
EFDC,YB110,SUPERVISION/MANAGEMENT SPECIAL,ELECTRICITY,1120,29-May-19,152249,17.84,BRITISH GAS,BRI040
EFDC,YB110,SUPERVISION/MANAGEMENT SPECIAL,ELECTRICITY,1120,29-May-19,152249,12.66,BRITISH GAS,BRI040
EFDC,YB110,SUPERVISION/MANAGEMENT SPECIAL,ELECTRICITY,1120,29-May-19,152249,13.4,BRITISH GAS,BRI040
EFDC,YB110,SUPERVISION/MANAGEMENT SPECIAL,ELECTRICITY,1120,29-May-19,152249,15.12,BRITISH GAS,BRI040
EFDC,YB110,SUPERVISION/MANAGEMENT SPECIAL,ELECTRICITY,1120,29-May-19,152249,14.71,BRITISH GAS,BRI040
EFDC,YB110,SUPERVISION/MANAGEMENT SPECIAL,ELECTRICITY,1120,29-May-19,152249,13.52,BRITISH GAS,BRI040
EFDC,YB110,SUPERVISION/MANAGEMENT SPECIAL,ELECTRICITY,1120,29-May-19,152249,18.46,BRITISH GAS,BRI040
EFDC,YB110,SUPERVISION/MANAGEMENT SPECIAL,ELECTRICITY,1120,29-May-19,152249,15.99,BRITISH GAS,BRI040
EFDC,YB110,SUPERVISION/MANAGEMENT SPECIAL,ELECTRICITY,1120,29-May-19,152249,16.16,BRITISH GAS,BRI040
EFDC,YB110,SUPERVISION/MANAGEMENT SPECIAL,ELECTRICITY,1120,29-May-19,152249,14.29,BRITISH GAS,BRI040
EFDC,YB110,SUPERVISION/MANAGEMENT SPECIAL,ELECTRICITY,1120,29-May-19,152249,13.66,BRITISH GAS,BRI040
EFDC,YB110,SUPERVISION/MANAGEMENT SPECIAL,ELECTRICITY,1120,29-May-19,152249,19.58,BRITISH GAS,BRI040
EFDC,YB110,SUPERVISION/MANAGEMENT SPECIAL,ELECTRICITY,1120,29-May-19,152249,7.12,BRITISH GAS,BRI040
EFDC,YB110,SUPERVISION/MANAGEMENT SPECIAL,ELECTRICITY,1120,29-May-19,152249,13.23,BRITISH GAS,BRI040
EFDC,YB110,SUPERVISION/MANAGEMENT SPECIAL,ELECTRICITY,1120,29-May-19,152249,15.42,BRITISH GAS,BRI040
EFDC,YB110,SUPERVISION/MANAGEMENT SPECIAL,ELECTRICITY,1120,29-May-19,152249,13.66,BRITISH GAS,BRI040
EFDC,YB110,SUPERVISION/MANAGEMENT SPECIAL,ELECTRICITY,1120,29-May-19,152249,26.62,BRITISH GAS,BRI040
EFDC,YB110,SUPERVISION/MANAGEMENT SPECIAL,ELECTRICITY,1120,29-May-19,152249,13.98,BRITISH GAS,BRI040
EFDC,YB110,SUPERVISION/MANAGEMENT SPECIAL,ELECTRICITY,1120,29-May-19,152249,12.8,BRITISH GAS,BRI040
EFDC,YB110,SUPERVISION/MANAGEMENT SPECIAL,ELECTRICITY,1120,29-May-19,152249,100.7,BRITISH GAS,BRI040
EFDC,YB110,SUPERVISION/MANAGEMENT SPECIAL,ELECTRICITY,1120,29-May-19,152249,10.78,BRITISH GAS,BRI040
EFDC,YB110,SUPERVISION/MANAGEMENT SPECIAL,ELECTRICITY,1120,29-May-19,152249,10.78,BRITISH GAS,BRI040
EFDC,YB110,SUPERVISION/MANAGEMENT SPECIAL,ELECTRICITY,1120,29-May-19,152249,14.94,BRITISH GAS,BRI040
EFDC,YB110,SUPERVISION/MANAGEMENT SPECIAL,ELECTRICITY,1120,29-May-19,152249,16.58,BRITISH GAS,BRI040
EFDC,YB110,SUPERVISION/MANAGEMENT SPECIAL,ELECTRICITY,1120,29-May-19,152249,12.43,BRITISH GAS,BRI040
EFDC,YB110,SUPERVISION/MANAGEMENT SPECIAL,ELECTRICITY,1120,29-May-19,152249,13.62,BRITISH GAS,BRI040
EFDC,YB110,SUPERVISION/MANAGEMENT SPECIAL,ELECTRICITY,1120,29-May-19,152249,17.63,BRITISH GAS,BRI040
EFDC,YB110,SUPERVISION/MANAGEMENT SPECIAL,ELECTRICITY,1120,29-May-19,152249,11.78,BRITISH GAS,BRI040
EFDC,YB110,SUPERVISION/MANAGEMENT SPECIAL,ELECTRICITY,1120,29-May-19,152249,16.74,BRITISH GAS,BRI040
EFDC,YB110,SUPERVISION/MANAGEMENT SPECIAL,ELECTRICITY,1120,29-May-19,152249,15.34,BRITISH GAS,BRI040
EFDC,YB110,SUPERVISION/MANAGEMENT SPECIAL,ELECTRICITY,1120,29-May-19,152249,10.98,BRITISH GAS,BRI040
EFDC,YB110,SUPERVISION/MANAGEMENT SPECIAL,ELECTRICITY,1120,29-May-19,152249,10.87,BRITISH GAS,BRI040
EFDC,YB110,SUPERVISION/MANAGEMENT SPECIAL,ELECTRICITY,1120,29-May-19,152249,11.57,BRITISH GAS,BRI040
EFDC,YB110,SUPERVISION/MANAGEMENT SPECIAL,ELECTRICITY,1120,29-May-19,152249,11.41,BRITISH GAS,BRI040
EFDC,YB110,SUPERVISION/MANAGEMENT SPECIAL,ELECTRICITY,1120,29-May-19,152249,11.25,BRITISH GAS,BRI040
EFDC,YB110,SUPERVISION/MANAGEMENT SPECIAL,ELECTRICITY,1120,29-May-19,152249,13.79,BRITISH GAS,BRI040
EFDC,YB110,SUPERVISION/MANAGEMENT SPECIAL,ELECTRICITY,1120,29-May-19,152249,11.9,BRITISH GAS,BRI040
EFDC,YB110,SUPERVISION/MANAGEMENT SPECIAL,ELECTRICITY,1120,29-May-19,152249,9.67,BRITISH GAS,BRI040
EFDC,YB110,SUPERVISION/MANAGEMENT SPECIAL,ELECTRICITY,1120,29-May-19,152249,117.37,BRITISH GAS,BRI040
EFDC,YB110,SUPERVISION/MANAGEMENT SPECIAL,ELECTRICITY,1120,29-May-19,152249,27.09,BRITISH GAS,BRI040
EFDC,YB110,SUPERVISION/MANAGEMENT SPECIAL,ELECTRICITY,1120,29-May-19,152249,18.21,BRITISH GAS,BRI040
EFDC,YB110,SUPERVISION/MANAGEMENT SPECIAL,ELECTRICITY,1120,29-May-19,152249,15.46,BRITISH GAS,BRI040
EFDC,YB110,SUPERVISION/MANAGEMENT SPECIAL,ELECTRICITY,1120,29-May-19,152249,19.58,BRITISH GAS,BRI040
EFDC,YB110,SUPERVISION/MANAGEMENT SPECIAL,ELECTRICITY,1120,29-May-19,152249,25.91,BRITISH GAS,BRI040
EFDC,YB110,SUPERVISION/MANAGEMENT SPECIAL,ELECTRICITY,1120,29-May-19,152249,9.54,BRITISH GAS,BRI040
EFDC,YB110,SUPERVISION/MANAGEMENT SPECIAL,ELECTRICITY,1120,29-May-19,152249,12.75,BRITISH GAS,BRI040
EFDC,YB110,SUPERVISION/MANAGEMENT SPECIAL,ELECTRICITY,1120,29-May-19,152249,17.43,BRITISH GAS,BRI040
EFDC,YB110,SUPERVISION/MANAGEMENT SPECIAL,ELECTRICITY,1120,29-May-19,152249,180.95,BRITISH GAS,BRI040
EFDC,YB110,SUPERVISION/MANAGEMENT SPECIAL,ELECTRICITY,1120,29-May-19,152249,9.74,BRITISH GAS,BRI040
EFDC,YB110,SUPERVISION/MANAGEMENT SPECIAL,ELECTRICITY,1120,29-May-19,152249,11.43,BRITISH GAS,BRI040
EFDC,YB110,SUPERVISION/MANAGEMENT SPECIAL,ELECTRICITY,1120,29-May-19,152249,58.25,BRITISH GAS,BRI040
EFDC,YB110,SUPERVISION/MANAGEMENT SPECIAL,ELECTRICITY,1120,29-May-19,152249,58.24,BRITISH GAS,BRI040
EFDC,YB110,SUPERVISION/MANAGEMENT SPECIAL,ELECTRICITY,1120,29-May-19,152249,134.98,BRITISH GAS,BRI040
EFDC,YB110,SUPERVISION/MANAGEMENT SPECIAL,ELECTRICITY,1120,29-May-19,152249,17.5,BRITISH GAS,BRI040
EFDC,YB110,SUPERVISION/MANAGEMENT SPECIAL,ELECTRICITY,1120,29-May-19,152249,119.28,BRITISH GAS,BRI040
EFDC,YB110,SUPERVISION/MANAGEMENT SPECIAL,ELECTRICITY,1120,29-May-19,152249,15.2,BRITISH GAS,BRI040
EFDC,YB110,SUPERVISION/MANAGEMENT SPECIAL,ELECTRICITY,1120,29-May-19,152249,14.44,BRITISH GAS,BRI040
EFDC,YB110,SUPERVISION/MANAGEMENT SPECIAL,ELECTRICITY,1120,29-May-19,152249,16.57,BRITISH GAS,BRI040
EFDC,YB110,SUPERVISION/MANAGEMENT SPECIAL,ELECTRICITY,1120,29-May-19,152249,13.76,BRITISH GAS,BRI040
EFDC,YB110,SUPERVISION/MANAGEMENT SPECIAL,ELECTRICITY,1120,29-May-19,152249,3.16,BRITISH GAS,BRI040
EFDC,YB110,SUPERVISION/MANAGEMENT SPECIAL,ELECTRICITY,1120,29-May-19,152249,7.35,BRITISH GAS,BRI040
EFDC,YB110,SUPERVISION/MANAGEMENT SPECIAL,ELECTRICITY,1120,29-May-19,152249,48.25,BRITISH GAS,BRI040
EFDC,23140,ACCOMMODATION,ELECTRICITY,1120,29-May-19,152249,470.91,BRITISH GAS,BRI040
EFDC,YB110,SUPERVISION/MANAGEMENT SPECIAL,ELECTRICITY,1120,29-May-19,152249,16.97,BRITISH GAS,BRI040
EFDC,27150,"COMMUNITY, HEALTH & WELLBEING",ELECTRICITY,1120,29-May-19,152249,698.41,BRITISH GAS,BRI040
EFDC,YB110,SUPERVISION/MANAGEMENT SPECIAL,ELECTRICITY,1120,29-May-19,152249,17.24,BRITISH GAS,BRI040
EFDC,YB620,SUPERVISION/MANAGEMENT SPECIAL,ELECTRICITY,1120,29-May-19,152249,435.73,BRITISH GAS,BRI040
EFDC,35300,CONTRACT & TECH SUPPORT SERVIC,ELECTRICITY,1120,29-May-19,152249,252.6,BRITISH GAS,BRI040
EFDC,RS302,NORTH WEALD CENTRE,ELECTRICITY,1120,29-May-19,152249,7.84,BRITISH GAS,BRI040
EFDC,YB110,SUPERVISION/MANAGEMENT SPECIAL,ELECTRICITY,1120,29-May-19,152249,18.23,BRITISH GAS,BRI040
EFDC,YB110,SUPERVISION/MANAGEMENT SPECIAL,ELECTRICITY,1120,29-May-19,152249,17.09,BRITISH GAS,BRI040
EFDC,YB110,SUPERVISION/MANAGEMENT SPECIAL,ELECTRICITY,1120,29-May-19,152249,12.66,BRITISH GAS,BRI040
EFDC,YB110,SUPERVISION/MANAGEMENT SPECIAL,ELECTRICITY,1120,29-May-19,152249,6.76,BRITISH GAS,BRI040
EFDC,YB110,SUPERVISION/MANAGEMENT SPECIAL,ELECTRICITY,1120,29-May-19,152249,13.55,BRITISH GAS,BRI040
EFDC,YB110,SUPERVISION/MANAGEMENT SPECIAL,ELECTRICITY,1120,29-May-19,152249,16.49,BRITISH GAS,BRI040
EFDC,YB110,SUPERVISION/MANAGEMENT SPECIAL,ELECTRICITY,1120,29-May-19,152249,15.99,BRITISH GAS,BRI040
EFDC,YB110,SUPERVISION/MANAGEMENT SPECIAL,ELECTRICITY,1120,29-May-19,152249,-10.51,BRITISH GAS,BRI040
EFDC,YB110,SUPERVISION/MANAGEMENT SPECIAL,ELECTRICITY,1120,29-May-19,152249,17.09,BRITISH GAS,BRI040
EFDC,23130,ACCOMMODATION,ELECTRICITY,1120,29-May-19,152249,346.92,BRITISH GAS,BRI040
EFDC,YB110,SUPERVISION/MANAGEMENT SPECIAL,ELECTRICITY,1120,29-May-19,152249,16.74,BRITISH GAS,BRI040
EFDC,EH160,OTHER ACTIVITIES,ELECTRICITY,1120,29-May-19,152249,76.35,BRITISH GAS,BRI040
EFDC,YB110,SUPERVISION/MANAGEMENT SPECIAL,ELECTRICITY,1120,29-May-19,152249,9.43,BRITISH GAS,BRI040
EFDC,YB110,SUPERVISION/MANAGEMENT SPECIAL,ELECTRICITY,1120,29-May-19,152249,-38.62,BRITISH GAS,BRI040
EFDC,YB110,SUPERVISION/MANAGEMENT SPECIAL,ELECTRICITY,1120,29-May-19,152249,13.06,BRITISH GAS,BRI040
EFDC,EH112,LAND DRAINAGE/SEWERAGE,ELECTRICITY,1120,29-May-19,152249,204.69,BRITISH GAS,BRI040
EFDC,YB110,SUPERVISION/MANAGEMENT SPECIAL,ELECTRICITY,1120,29-May-19,152249,12.28,BRITISH GAS,BRI040
EFDC,UO130,LAND & PROPERTY,ELECTRICITY,1120,29-May-19,152249,24.28,BRITISH GAS,BRI040
EFDC,YB110,SUPERVISION/MANAGEMENT SPECIAL,ELECTRICITY,1120,29-May-19,152249,14.52,BRITISH GAS,BRI040
EFDC,YB110,SUPERVISION/MANAGEMENT SPECIAL,ELECTRICITY,1120,29-May-19,152249,15.79,BRITISH GAS,BRI040
EFDC,YB110,SUPERVISION/MANAGEMENT SPECIAL,ELECTRICITY,1120,29-May-19,152249,14.14,BRITISH GAS,BRI040
EFDC,EH160,OTHER ACTIVITIES,ELECTRICITY,1120,29-May-19,152249,25.5,BRITISH GAS,BRI040
EFDC,27050,ACCOMMODATION,ELECTRICITY,1120,29-May-19,152249,-190.85,BRITISH GAS,BRI040
EFDC,EH160,OTHER ACTIVITIES,ELECTRICITY,1120,29-May-19,152249,97.63,BRITISH GAS,BRI040
EFDC,EH160,OTHER ACTIVITIES,ELECTRICITY,1120,29-May-19,152249,60.19,BRITISH GAS,BRI040
EFDC,YB110,SUPERVISION/MANAGEMENT SPECIAL,ELECTRICITY,1120,29-May-19,152249,19.56,BRITISH GAS,BRI040
EFDC,TI190,LAND & PROPERTY,ELECTRICITY,1120,29-May-19,152249,64.16,BRITISH GAS,BRI040
EFDC,YB110,SUPERVISION/MANAGEMENT SPECIAL,ELECTRICITY,1120,29-May-19,152249,20.26,BRITISH GAS,BRI040
EFDC,RS301,NORTH WEALD CENTRE,ELECTRICITY,1120,29-May-19,152249,14.49,BRITISH GAS,BRI040
EFDC,YB110,SUPERVISION/MANAGEMENT SPECIAL,ELECTRICITY,1120,29-May-19,152249,15.96,BRITISH GAS,BRI040
EFDC,YB110,SUPERVISION/MANAGEMENT SPECIAL,ELECTRICITY,1120,29-May-19,152249,14.05,BRITISH GAS,BRI040
EFDC,FD100,LAND DRAINAGE/SEWERAGE,ELECTRICITY,1120,29-May-19,152249,7.06,BRITISH GAS,BRI040
EFDC,YB110,SUPERVISION/MANAGEMENT SPECIAL,ELECTRICITY,1120,29-May-19,152249,7.35,BRITISH GAS,BRI040
EFDC,CH110,"MUSEUM, HERITAGE & CULTURE",ELECTRICITY,1120,29-May-19,152249,283.92,BRITISH GAS,BRI040
EFDC,YB110,SUPERVISION/MANAGEMENT SPECIAL,ELECTRICITY,1120,29-May-19,152249,7.35,BRITISH GAS,BRI040
EFDC,YB110,SUPERVISION/MANAGEMENT SPECIAL,ELECTRICITY,1120,29-May-19,152249,11.38,BRITISH GAS,BRI040
EFDC,YB110,SUPERVISION/MANAGEMENT SPECIAL,ELECTRICITY,1120,29-May-19,152249,16.36,BRITISH GAS,BRI040
EFDC,YB110,SUPERVISION/MANAGEMENT SPECIAL,ELECTRICITY,1120,29-May-19,152249,15.46,BRITISH GAS,BRI040
EFDC,YB110,SUPERVISION/MANAGEMENT SPECIAL,ELECTRICITY,1120,29-May-19,152249,17.35,BRITISH GAS,BRI040
EFDC,YB110,SUPERVISION/MANAGEMENT SPECIAL,ELECTRICITY,1120,29-May-19,152249,15.08,BRITISH GAS,BRI040
EFDC,YB110,SUPERVISION/MANAGEMENT SPECIAL,ELECTRICITY,1120,29-May-19,152249,8.7,BRITISH GAS,BRI040
EFDC,YB110,SUPERVISION/MANAGEMENT SPECIAL,ELECTRICITY,1120,29-May-19,152249,4.19,BRITISH GAS,BRI040
EFDC,YB110,SUPERVISION/MANAGEMENT SPECIAL,ELECTRICITY,1120,29-May-19,152249,21.39,BRITISH GAS,BRI040
EFDC,YB110,SUPERVISION/MANAGEMENT SPECIAL,ELECTRICITY,1120,29-May-19,152249,9.08,BRITISH GAS,BRI040
EFDC,YB110,SUPERVISION/MANAGEMENT SPECIAL,ELECTRICITY,1120,29-May-19,152249,18,BRITISH GAS,BRI040
EFDC,YB110,SUPERVISION/MANAGEMENT SPECIAL,ELECTRICITY,1120,29-May-19,152249,11.9,BRITISH GAS,BRI040
EFDC,YB110,SUPERVISION/MANAGEMENT SPECIAL,ELECTRICITY,1120,29-May-19,152249,19.74,BRITISH GAS,BRI040
EFDC,YB110,SUPERVISION/MANAGEMENT SPECIAL,ELECTRICITY,1120,29-May-19,152249,57.85,BRITISH GAS,BRI040
EFDC,YB110,SUPERVISION/MANAGEMENT SPECIAL,ELECTRICITY,1120,29-May-19,152249,-30.28,BRITISH GAS,BRI040
EFDC,YB110,SUPERVISION/MANAGEMENT SPECIAL,ELECTRICITY,1120,29-May-19,152249,-28.97,BRITISH GAS,BRI040
EFDC,YB110,SUPERVISION/MANAGEMENT SPECIAL,ELECTRICITY,1120,29-May-19,152249,12.75,BRITISH GAS,BRI040
EFDC,32060,OTHER SUPPORT SERVICES,AGENCY STAFF,0120,29-May-19,151186,1628,LAW ABSOLUTE LIMITED,LAW009
EFDC,YB110,SUPERVISION/MANAGEMENT SPECIAL,ELECTRICITY,1120,29-May-19,152249,14.04,BRITISH GAS,BRI040
EFDC,YB110,SUPERVISION/MANAGEMENT SPECIAL,ELECTRICITY,1120,29-May-19,152249,11.98,BRITISH GAS,BRI040
EFDC,27050,ACCOMMODATION,ELECTRICITY,1120,29-May-19,152249,-225.57,BRITISH GAS,BRI040
EFDC,27050,ACCOMMODATION,ELECTRICITY,1120,29-May-19,152249,60.83,BRITISH GAS,BRI040
EFDC,27050,ACCOMMODATION,ELECTRICITY,1120,29-May-19,152249,71.57,BRITISH GAS,BRI040
EFDC,27050,ACCOMMODATION,ELECTRICITY,1120,29-May-19,152249,575.46,BRITISH GAS,BRI040
EFDC,YB110,SUPERVISION/MANAGEMENT SPECIAL,ELECTRICITY,1120,29-May-19,152249,29.37,BRITISH GAS,BRI040
EFDC,YB110,SUPERVISION/MANAGEMENT SPECIAL,ELECTRICITY,1120,29-May-19,152249,17.93,BRITISH GAS,BRI040
EFDC,27110,ACCOMMODATION,ELECTRICITY,1120,29-May-19,152249,73.25,BRITISH GAS,BRI040
EFDC,27110,ACCOMMODATION,ELECTRICITY,1120,29-May-19,152249,35.98,BRITISH GAS,BRI040
EFDC,YB110,SUPERVISION/MANAGEMENT SPECIAL,ELECTRICITY,1120,29-May-19,152249,21.56,BRITISH GAS,BRI040
EFDC,YB110,SUPERVISION/MANAGEMENT SPECIAL,ELECTRICITY,1120,29-May-19,152249,12.5,BRITISH GAS,BRI040
EFDC,YB110,SUPERVISION/MANAGEMENT SPECIAL,ELECTRICITY,1120,29-May-19,152249,18.19,BRITISH GAS,BRI040
EFDC,YB110,SUPERVISION/MANAGEMENT SPECIAL,ELECTRICITY,1120,29-May-19,152249,7.35,BRITISH GAS,BRI040
EFDC,YB110,SUPERVISION/MANAGEMENT SPECIAL,ELECTRICITY,1120,29-May-19,152249,33.35,BRITISH GAS,BRI040
EFDC,YB110,SUPERVISION/MANAGEMENT SPECIAL,ELECTRICITY,1120,29-May-19,152249,3.27,BRITISH GAS,BRI040
EFDC,YB110,SUPERVISION/MANAGEMENT SPECIAL,ELECTRICITY,1120,29-May-19,152249,7.6,BRITISH GAS,BRI040
EFDC,YB110,SUPERVISION/MANAGEMENT SPECIAL,ELECTRICITY,1120,29-May-19,152249,4.33,BRITISH GAS,BRI040
EFDC,YB110,SUPERVISION/MANAGEMENT SPECIAL,ELECTRICITY,1120,29-May-19,152249,7.35,BRITISH GAS,BRI040
EFDC,YB110,SUPERVISION/MANAGEMENT SPECIAL,ELECTRICITY,1120,29-May-19,152249,29.28,BRITISH GAS,BRI040
EFDC,YB110,SUPERVISION/MANAGEMENT SPECIAL,ELECTRICITY,1120,29-May-19,152249,12.04,BRITISH GAS,BRI040
EFDC,27110,ACCOMMODATION,ELECTRICITY,1120,29-May-19,152249,25.46,BRITISH GAS,BRI040
EFDC,YB110,SUPERVISION/MANAGEMENT SPECIAL,ELECTRICITY,1120,29-May-19,152249,14.94,BRITISH GAS,BRI040
EFDC,EH160,OTHER ACTIVITIES,ELECTRICITY,1120,29-May-19,152249,35.46,BRITISH GAS,BRI040
EFDC,YB110,SUPERVISION/MANAGEMENT SPECIAL,ELECTRICITY,1120,29-May-19,152249,-20.22,BRITISH GAS,BRI040
EFDC,YB110,SUPERVISION/MANAGEMENT SPECIAL,ELECTRICITY,1120,29-May-19,152249,7.56,BRITISH GAS,BRI040
EFDC,YB110,SUPERVISION/MANAGEMENT SPECIAL,ELECTRICITY,1120,29-May-19,152249,15.2,BRITISH GAS,BRI040
EFDC,YB110,SUPERVISION/MANAGEMENT SPECIAL,ELECTRICITY,1120,29-May-19,152249,15.85,BRITISH GAS,BRI040
EFDC,YB110,SUPERVISION/MANAGEMENT SPECIAL,ELECTRICITY,1120,29-May-19,152249,15.47,BRITISH GAS,BRI040
EFDC,YB110,SUPERVISION/MANAGEMENT SPECIAL,ELECTRICITY,1120,29-May-19,152249,16.71,BRITISH GAS,BRI040
EFDC,YB520,SUPERVISION/MANAGEMENT SPECIAL,ELECTRICITY,1120,29-May-19,152249,201.69,BRITISH GAS,BRI040
EFDC,YB110,SUPERVISION/MANAGEMENT SPECIAL,ELECTRICITY,1120,29-May-19,152249,-9.08,BRITISH GAS,BRI040
EFDC,YB110,SUPERVISION/MANAGEMENT SPECIAL,ELECTRICITY,1120,29-May-19,152249,15.75,BRITISH GAS,BRI040
EFDC,YB110,SUPERVISION/MANAGEMENT SPECIAL,ELECTRICITY,1120,29-May-19,152249,-12.04,BRITISH GAS,BRI040
EFDC,YB110,SUPERVISION/MANAGEMENT SPECIAL,ELECTRICITY,1120,29-May-19,152249,17.09,BRITISH GAS,BRI040
EFDC,YB500,SUPERVISION/MANAGEMENT SPECIAL,ELECTRICITY,1120,29-May-19,152249,71.49,BRITISH GAS,BRI040
EFDC,YB110,SUPERVISION/MANAGEMENT SPECIAL,ELECTRICITY,1120,29-May-19,152249,15.59,BRITISH GAS,BRI040
EFDC,YB500,SUPERVISION/MANAGEMENT SPECIAL,ELECTRICITY,1120,29-May-19,152249,8.6,BRITISH GAS,BRI040
EFDC,YB110,SUPERVISION/MANAGEMENT SPECIAL,ELECTRICITY,1120,29-May-19,152249,17.27,BRITISH GAS,BRI040
EFDC,YB110,SUPERVISION/MANAGEMENT SPECIAL,ELECTRICITY,1120,29-May-19,152249,14.31,BRITISH GAS,BRI040
EFDC,YB110,SUPERVISION/MANAGEMENT SPECIAL,ELECTRICITY,1120,29-May-19,152249,16.1,BRITISH GAS,BRI040
EFDC,YB110,SUPERVISION/MANAGEMENT SPECIAL,ELECTRICITY,1120,29-May-19,152249,15.51,BRITISH GAS,BRI040
EFDC,YB520,SUPERVISION/MANAGEMENT SPECIAL,ELECTRICITY,1120,29-May-19,152249,197.67,BRITISH GAS,BRI040
EFDC,YB110,SUPERVISION/MANAGEMENT SPECIAL,ELECTRICITY,1120,29-May-19,152249,-19.65,BRITISH GAS,BRI040
EFDC,YB110,SUPERVISION/MANAGEMENT SPECIAL,ELECTRICITY,1120,29-May-19,152249,19.4,BRITISH GAS,BRI040
EFDC,YB110,SUPERVISION/MANAGEMENT SPECIAL,ELECTRICITY,1120,29-May-19,152249,27.55,BRITISH GAS,BRI040
EFDC,YB110,SUPERVISION/MANAGEMENT SPECIAL,ELECTRICITY,1120,29-May-19,152249,6.37,BRITISH GAS,BRI040
EFDC,YB500,SUPERVISION/MANAGEMENT SPECIAL,ELECTRICITY,1120,29-May-19,152249,38.27,BRITISH GAS,BRI040
EFDC,YB110,SUPERVISION/MANAGEMENT SPECIAL,ELECTRICITY,1120,29-May-19,152249,-16.02,BRITISH GAS,BRI040
EFDC,YB110,SUPERVISION/MANAGEMENT SPECIAL,ELECTRICITY,1120,29-May-19,152249,-20.09,BRITISH GAS,BRI040
EFDC,YB110,SUPERVISION/MANAGEMENT SPECIAL,ELECTRICITY,1120,29-May-19,152249,-13.06,BRITISH GAS,BRI040
EFDC,YB110,SUPERVISION/MANAGEMENT SPECIAL,ELECTRICITY,1120,29-May-19,152249,-14.27,BRITISH GAS,BRI040
EFDC,YB110,SUPERVISION/MANAGEMENT SPECIAL,ELECTRICITY,1120,29-May-19,152249,220.35,BRITISH GAS,BRI040
EFDC,YB110,SUPERVISION/MANAGEMENT SPECIAL,ELECTRICITY,1120,29-May-19,152249,-13.62,BRITISH GAS,BRI040
EFDC,YB110,SUPERVISION/MANAGEMENT SPECIAL,ELECTRICITY,1120,29-May-19,152249,9.54,BRITISH GAS,BRI040
EFDC,YB110,SUPERVISION/MANAGEMENT SPECIAL,ELECTRICITY,1120,29-May-19,152249,-20.48,BRITISH GAS,BRI040
EFDC,YB110,SUPERVISION/MANAGEMENT SPECIAL,ELECTRICITY,1120,29-May-19,152249,-31.05,BRITISH GAS,BRI040
EFDC,YB110,SUPERVISION/MANAGEMENT SPECIAL,ELECTRICITY,1120,29-May-19,152249,-23.71,BRITISH GAS,BRI040
EFDC,YB110,SUPERVISION/MANAGEMENT SPECIAL,ELECTRICITY,1120,29-May-19,152249,-19.04,BRITISH GAS,BRI040
EFDC,YB110,SUPERVISION/MANAGEMENT SPECIAL,ELECTRICITY,1120,29-May-19,152249,-20.31,BRITISH GAS,BRI040
EFDC,YB500,SUPERVISION/MANAGEMENT SPECIAL,ELECTRICITY,1120,29-May-19,152249,8.5,BRITISH GAS,BRI040
EFDC,YB110,SUPERVISION/MANAGEMENT SPECIAL,ELECTRICITY,1120,29-May-19,152249,-23.7,BRITISH GAS,BRI040
EFDC,YB110,SUPERVISION/MANAGEMENT SPECIAL,ELECTRICITY,1120,29-May-19,152249,-31.27,BRITISH GAS,BRI040
EFDC,YB110,SUPERVISION/MANAGEMENT SPECIAL,ELECTRICITY,1120,29-May-19,152249,-14.42,BRITISH GAS,BRI040
EFDC,UO130,LAND & PROPERTY,ELECTRICITY,1120,29-May-19,152249,28.33,BRITISH GAS,BRI040
EFDC,YB110,SUPERVISION/MANAGEMENT SPECIAL,ELECTRICITY,1120,29-May-19,152249,12.67,BRITISH GAS,BRI040
EFDC,YB500,SUPERVISION/MANAGEMENT SPECIAL,ELECTRICITY,1120,29-May-19,152249,5.85,BRITISH GAS,BRI040
EFDC,YB500,SUPERVISION/MANAGEMENT SPECIAL,ELECTRICITY,1120,29-May-19,152249,9.92,BRITISH GAS,BRI040
EFDC,YB500,SUPERVISION/MANAGEMENT SPECIAL,ELECTRICITY,1120,29-May-19,152249,44.24,BRITISH GAS,BRI040
EFDC,YB500,SUPERVISION/MANAGEMENT SPECIAL,ELECTRICITY,1120,29-May-19,152249,16.1,BRITISH GAS,BRI040
EFDC,YB500,SUPERVISION/MANAGEMENT SPECIAL,ELECTRICITY,1120,29-May-19,152249,18.51,BRITISH GAS,BRI040
EFDC,YB500,SUPERVISION/MANAGEMENT SPECIAL,ELECTRICITY,1120,29-May-19,152249,16.85,BRITISH GAS,BRI040
EFDC,YB500,SUPERVISION/MANAGEMENT SPECIAL,ELECTRICITY,1120,29-May-19,152249,9.32,BRITISH GAS,BRI040
EFDC,YB500,SUPERVISION/MANAGEMENT SPECIAL,ELECTRICITY,1120,29-May-19,152249,303.25,BRITISH GAS,BRI040
EFDC,YB500,SUPERVISION/MANAGEMENT SPECIAL,ELECTRICITY,1120,29-May-19,152249,668.5,BRITISH GAS,BRI040
EFDC,YB500,SUPERVISION/MANAGEMENT SPECIAL,ELECTRICITY,1120,29-May-19,152249,190.47,BRITISH GAS,BRI040
EFDC,YB110,SUPERVISION/MANAGEMENT SPECIAL,ELECTRICITY,1120,29-May-19,152249,10.65,BRITISH GAS,BRI040
EFDC,YB110,SUPERVISION/MANAGEMENT SPECIAL,ELECTRICITY,1120,29-May-19,152249,11.01,BRITISH GAS,BRI040
EFDC,YB110,SUPERVISION/MANAGEMENT SPECIAL,ELECTRICITY,1120,29-May-19,152249,18.43,BRITISH GAS,BRI040
EFDC,YB110,SUPERVISION/MANAGEMENT SPECIAL,ELECTRICITY,1120,29-May-19,152249,13.45,BRITISH GAS,BRI040
EFDC,UO130,LAND & PROPERTY,ELECTRICITY,1120,29-May-19,152249,2.22,BRITISH GAS,BRI040
EFDC,23140,ACCOMMODATION,ELECTRICITY,1120,29-May-19,152249,655.05,BRITISH GAS,BRI040
EFDC,UO130,LAND & PROPERTY,ELECTRICITY,1120,29-May-19,152249,23.38,BRITISH GAS,BRI040
EFDC,UO130,LAND & PROPERTY,ELECTRICITY,1120,29-May-19,152249,17.08,BRITISH GAS,BRI040
EFDC,YB500,SUPERVISION/MANAGEMENT SPECIAL,ELECTRICITY,1120,29-May-19,152249,14.74,BRITISH GAS,BRI040
EFDC,YB500,SUPERVISION/MANAGEMENT SPECIAL,ELECTRICITY,1120,29-May-19,152249,28.23,BRITISH GAS,BRI040
EFDC,YB110,SUPERVISION/MANAGEMENT SPECIAL,ELECTRICITY,1120,29-May-19,152249,18.01,BRITISH GAS,BRI040
EFDC,YB110,SUPERVISION/MANAGEMENT SPECIAL,ELECTRICITY,1120,29-May-19,152249,7.98,BRITISH GAS,BRI040
EFDC,YB110,SUPERVISION/MANAGEMENT SPECIAL,ELECTRICITY,1120,29-May-19,152249,15.56,BRITISH GAS,BRI040
EFDC,YB110,SUPERVISION/MANAGEMENT SPECIAL,ELECTRICITY,1120,29-May-19,152249,15.34,BRITISH GAS,BRI040
EFDC,YB110,SUPERVISION/MANAGEMENT SPECIAL,ELECTRICITY,1120,29-May-19,152249,52.07,BRITISH GAS,BRI040
EFDC,YB500,SUPERVISION/MANAGEMENT SPECIAL,ELECTRICITY,1120,29-May-19,152249,58.95,BRITISH GAS,BRI040
EFDC,YB110,SUPERVISION/MANAGEMENT SPECIAL,ELECTRICITY,1120,29-May-19,152249,50.29,BRITISH GAS,BRI040
EFDC,YB500,SUPERVISION/MANAGEMENT SPECIAL,ELECTRICITY,1120,29-May-19,152249,11.27,BRITISH GAS,BRI040
EFDC,YB500,SUPERVISION/MANAGEMENT SPECIAL,ELECTRICITY,1120,29-May-19,152249,-9.96,BRITISH GAS,BRI040
EFDC,YB500,SUPERVISION/MANAGEMENT SPECIAL,ELECTRICITY,1120,29-May-19,152249,213.94,BRITISH GAS,BRI040
EFDC,YB110,SUPERVISION/MANAGEMENT SPECIAL,ELECTRICITY,1120,29-May-19,152249,63.08,BRITISH GAS,BRI040
EFDC,YB500,SUPERVISION/MANAGEMENT SPECIAL,ELECTRICITY,1120,29-May-19,152249,7.84,BRITISH GAS,BRI040
EFDC,YB500,SUPERVISION/MANAGEMENT SPECIAL,ELECTRICITY,1120,29-May-19,152249,14.51,BRITISH GAS,BRI040
EFDC,YB500,SUPERVISION/MANAGEMENT SPECIAL,ELECTRICITY,1120,29-May-19,152249,326.89,BRITISH GAS,BRI040
EFDC,YB500,SUPERVISION/MANAGEMENT SPECIAL,ELECTRICITY,1120,29-May-19,152249,528.18,BRITISH GAS,BRI040
EFDC,YB500,SUPERVISION/MANAGEMENT SPECIAL,ELECTRICITY,1120,29-May-19,152249,7.6,BRITISH GAS,BRI040
EFDC,YB500,SUPERVISION/MANAGEMENT SPECIAL,ELECTRICITY,1120,29-May-19,152249,35.82,BRITISH GAS,BRI040
EFDC,YB500,SUPERVISION/MANAGEMENT SPECIAL,ELECTRICITY,1120,29-May-19,152249,357.67,BRITISH GAS,BRI040
EFDC,YB500,SUPERVISION/MANAGEMENT SPECIAL,ELECTRICITY,1120,29-May-19,152249,7.6,BRITISH GAS,BRI040
EFDC,YB500,SUPERVISION/MANAGEMENT SPECIAL,ELECTRICITY,1120,29-May-19,152249,98.43,BRITISH GAS,BRI040
EFDC,34110,HOUSING PROP SUPPORT SERVICES,POSTAGE,3510,29-May-19,152260,71.28,ROYAL MAIL GROUP PLC,ROY015
EFDC,42310,GOVERNANCE SUPPORT SERVICES,AGENCY STAFF,0120,29-May-19,150805,1163.37,MATCHTECH GROUP LTD,MAT002
EFDC,37100,PLANNING SUPPORT SERVICES,POSTAGE,3510,29-May-19,150325,163.02,ROYAL MAIL GROUP PLC,ROY015
EFDC,WC100,WASTE MANAGEMENT,CLEANSING CONTRACTORS,4320,29-May-19,152647,30,BIFFA MUNICIPAL LTD,BIF001
EFDC,FD100,LAND DRAINAGE/SEWERAGE,CLEANSING CONTRACTORS,4320,29-May-19,152647,59.37,BIFFA MUNICIPAL LTD,BIF001
EFDC,37600,PLANNING SUPPORT SERVICES,AGENCY STAFF,0120,29-May-19,151731,1118.9,MATCHTECH GROUP LTD,MAT002
EFDC,43310,CONTRACT & TECH SUPPORT SERVIC,AGENCY STAFF,0120,29-May-19,152769,2052,MACDONALD & COMPANY FREELANCE LTD,MAC003
EFDC,35900,CONTRACT & TECH SUPPORT SERVIC,POSTAGE,3510,29-May-19,150325,197.34,ROYAL MAIL GROUP PLC,ROY015
EFDC,OS100,PARKS & GROUNDS,GROUNDS MAINTENANCE,1040,29-May-19,152647,4.2,BIFFA MUNICIPAL LTD,BIF001
EFDC,34110,HOUSING PROP SUPPORT SERVICES,POSTAGE,3510,29-May-19,151048,12.21,ROYAL MAIL GROUP PLC,ROY015
EFDC,SC100,WASTE MANAGEMENT,CLEANSING CONTRACTORS,4320,29-May-19,152647,1572.8,BIFFA MUNICIPAL LTD,BIF001
EFDC,35900,CONTRACT & TECH SUPPORT SERVIC,POSTAGE,3510,29-May-19,151048,88.11,ROYAL MAIL GROUP PLC,ROY015
EFDC,35900,CONTRACT & TECH SUPPORT SERVIC,POSTAGE,3510,29-May-19,152260,39.6,ROYAL MAIL GROUP PLC,ROY015
EFDC,43310,CONTRACT & TECH SUPPORT SERVIC,AGENCY STAFF,0120,29-May-19,152770,2052,MACDONALD & COMPANY FREELANCE LTD,MAC003
EFDC,GD190,VOLUNTARY SECTOR SUPPORT,GROUNDS MAINTENANCE,1040,29-May-19,152647,101.69,BIFFA MUNICIPAL LTD,BIF001
EFDC,WC200,WASTE MANAGEMENT,CLEANSING CONTRACTORS,4320,29-May-19,152647,19995,BIFFA MUNICIPAL LTD,BIF001
EFDC,OS100,PARKS & GROUNDS,GROUNDS MAINTENANCE,1040,29-May-19,152647,75.45,BIFFA MUNICIPAL LTD,BIF001
EFDC,CAPHR,HRA CAPITAL,WORKS,A040,29-May-19,152673,503.65,ARAN SERVICES LTD,ARA001
EFDC,33055,OTHER ACTIVITIES,POSTAGE,3510,29-May-19,152260,263.01,ROYAL MAIL GROUP PLC,ROY015
EFDC,WC200,WASTE MANAGEMENT,CLEANSING CONTRACTORS,4320,29-May-19,152647,27808,BIFFA MUNICIPAL LTD,BIF001
EFDC,33075,OTHER ACTIVITIES,POSTAGE,3510,29-May-19,152260,505.57,ROYAL MAIL GROUP PLC,ROY015
EFDC,33055,OTHER ACTIVITIES,POSTAGE,3510,29-May-19,151048,293.37,ROYAL MAIL GROUP PLC,ROY015
EFDC,33055,OTHER ACTIVITIES,POSTAGE,3510,29-May-19,150325,266.31,ROYAL MAIL GROUP PLC,ROY015
EFDC,33075,OTHER ACTIVITIES,POSTAGE,3510,29-May-19,150325,644.5,ROYAL MAIL GROUP PLC,ROY015
EFDC,RM100,RESPONSIVE & VOID REPAIRS,BUILDING MAINTENANCE,1010,29-May-19,152562,789.21,GRACELANDS COMPLETE MAINTENANCE SERVICES LTD,GRA007
EFDC,CH110,"MUSEUM, HERITAGE & CULTURE",RENTS / HIRE OF HALL,1210,29-May-19,151396,1100,GRANGEWOOD INVESTMENTS LTD,GRA006
EFDC,27050,ACCOMMODATION,REFUSE REMOVAL,1640,29-May-19,152647,484.18,BIFFA MUNICIPAL LTD,BIF001
EFDC,CAPHR,HRA CAPITAL,WORKS,A040,29-May-19,152694,4588.52,GRACELANDS COMPLETE MAINTENANCE SERVICES LTD,GRA007
EFDC,CAPHR,HRA CAPITAL,WORKS,A040,29-May-19,152694,35434.36,GRACELANDS COMPLETE MAINTENANCE SERVICES LTD,GRA007
EFDC,37100,PLANNING SUPPORT SERVICES,POSTAGE,3510,29-May-19,152260,161.37,ROYAL MAIL GROUP PLC,ROY015
EFDC,33075,OTHER ACTIVITIES,POSTAGE,3510,29-May-19,152260,11.91,ROYAL MAIL GROUP PLC,ROY015
EFDC,SC100,WASTE MANAGEMENT,CLEANSING CONTRACTORS,4320,29-May-19,152647,136.7,BIFFA MUNICIPAL LTD,BIF001
EFDC,33075,OTHER ACTIVITIES,POSTAGE,3510,29-May-19,152260,553.31,ROYAL MAIL GROUP PLC,ROY015
EFDC,WC100,WASTE MANAGEMENT,EQUIPMENT - NEW,3010,29-May-19,152647,9127.85,BIFFA MUNICIPAL LTD,BIF001
EFDC,34110,HOUSING PROP SUPPORT SERVICES,POSTAGE,3510,29-May-19,150325,2.31,ROYAL MAIL GROUP PLC,ROY015
EFDC,WC100,WASTE MANAGEMENT,CLEANSING CONTRACTORS,4320,29-May-19,152647,8293.28,BIFFA MUNICIPAL LTD,BIF001
EFDC,PS100,CAR PARKING,CLEANSING CONTRACTORS,4320,29-May-19,152647,-334.77,BIFFA MUNICIPAL LTD,BIF001
EFDC,26200,OTHER SUPPORT SERVICES,FIXED PLANT MAINTENANCE,1020,29-May-19,152341,3025,DEBA UK LTD,DEB002
EFDC,27050,ACCOMMODATION,SECURITY,1650,29-May-19,152801,7349.07,T.S.S. (TOTAL SECURITY SERVICES) LTD,TSS001
EFDC,37100,PLANNING SUPPORT SERVICES,POSTAGE,3510,29-May-19,151048,142.89,ROYAL MAIL GROUP PLC,ROY015
EFDC,23140,ACCOMMODATION,REFUSE REMOVAL,1640,29-May-19,152647,22.52,BIFFA MUNICIPAL LTD,BIF001
EFDC,78001,HRA SUPPORT SERVICES,MATERIALS,3080,29-May-19,151615,13538.52,TRAVIS PERKINS TRADING COMPANY LTD,TRA001
EFDC,35300,CONTRACT & TECH SUPPORT SERVIC,EQUIPMENT - MAINTENANCE,3030,29-May-19,151623,1661.4,P TUCKWELL LTD,TUC002
EFDC,CAPHR,HRA CAPITAL,WORKS,A040,29-May-19,152727,2940,TOWER ASPHALT LTD,TOW001
EFDC,CAPHR,HRA CAPITAL,WORKS,A040,29-May-19,152727,3742,TOWER ASPHALT LTD,TOW001
EFDC,RS301,NORTH WEALD CENTRE,RENTS,9410,29-May-19,152647,-600,BIFFA MUNICIPAL LTD,BIF001
EFDC,33055,OTHER ACTIVITIES,AGENCY STAFF,0120,29-May-19,152776,981.24,MORGAN HUNT UK LTD,MOR001
EFDC,33055,OTHER ACTIVITIES,AGENCY STAFF,0120,29-May-19,152773,769.08,MORGAN HUNT UK LTD,MOR001
EFDC,OS110,PARKS & GROUNDS,GROUNDS MAINTENANCE,1040,29-May-19,152647,58.78,BIFFA MUNICIPAL LTD,BIF001
EFDC,WC200,WASTE MANAGEMENT,CLEANSING CONTRACTORS,4320,29-May-19,152647,25236.5,BIFFA MUNICIPAL LTD,BIF001
EFDC,78001,HRA SUPPORT SERVICES,MATERIALS,3080,29-May-19,152011,35,CRANBROOK ELECTRICS,CRA001
EFDC,CH110,"MUSEUM, HERITAGE & CULTURE",POSTAGE,3510,29-May-19,151048,0.66,ROYAL MAIL GROUP PLC,ROY015
EFDC,78001,HRA SUPPORT SERVICES,MATERIALS,3080,29-May-19,151615,40.43,TRAVIS PERKINS TRADING COMPANY LTD,TRA001
EFDC,78001,HRA SUPPORT SERVICES,MATERIALS,3080,29-May-19,152014,10,CRANBROOK ELECTRICS,CRA001
EFDC,78001,HRA SUPPORT SERVICES,MATERIALS,3080,29-May-19,152011,935,CRANBROOK ELECTRICS,CRA001
EFDC,78001,HRA SUPPORT SERVICES,MATERIALS,3080,29-May-19,152014,1910,CRANBROOK ELECTRICS,CRA001
EFDC,35300,CONTRACT & TECH SUPPORT SERVIC,AGENCY STAFF,0120,29-May-19,152279,546.13,BERRY RECRUITMENT LTD,BER001
EFDC,32220,OTHER SUPPORT SERVICES,SUBSCRIPTIONS,3730,29-May-19,151087,1990,GROSVENOR SYSTEMS LTD,GRO005
EFDC,33075,OTHER ACTIVITIES,AGENCY STAFF,0120,29-May-19,152775,857.39,MORGAN HUNT UK LTD,MOR001
EFDC,33075,OTHER ACTIVITIES,AGENCY STAFF,0120,29-May-19,152774,681.21,MORGAN HUNT UK LTD,MOR001
EFDC,OS110,PARKS & GROUNDS,GROUNDS MAINTENANCE,1040,29-May-19,152647,191.97,BIFFA MUNICIPAL LTD,BIF001
EFDC,EL100,ELECTIONS,POSTAGE,3510,29-May-19,150325,179.52,ROYAL MAIL GROUP PLC,ROY015
EFDC,WC300,WASTE MANAGEMENT,CLEANSING CONTRACTORS,4320,29-May-19,152647,363.5,BIFFA MUNICIPAL LTD,BIF001
EFDC,RS410,"COMMUNITY, HEALTH & WELLBEING",ACTIVITIES,3372,29-May-19,151651,787.5,EPPING FOREST MTB,EPP046
EFDC,RM400,PLANNED & CYCLICAL MAINTENANCE,BUILDING MAINTENANCE,1010,29-May-19,152784,3733.33,PURDY CONTRACTS LTD,PUR002
EFDC,RS301,NORTH WEALD CENTRE,SEWAGE & ENVIRONMENTAL SERVICE,1430,29-May-19,151797,560,ENVIRONMENTAL DRAINAGE & BUILDING SERVICES,ENV010
EFDC,36200,HRA SUPPORT SERVICES,POSTAGE,3510,29-May-19,152260,159.06,ROYAL MAIL GROUP PLC,ROY015
EFDC,36200,HRA SUPPORT SERVICES,POSTAGE,3510,29-May-19,151048,142.56,ROYAL MAIL GROUP PLC,ROY015
EFDC,36200,HRA SUPPORT SERVICES,POSTAGE,3510,29-May-19,150325,101.64,ROYAL MAIL GROUP PLC,ROY015
EFDC,33080,OTHER ACTIVITIES,EQUIPMENT - MAINTENANCE,3030,29-May-19,151089,596,INSPIRED TECHNOLOGY SERVICES LTD,INS001
EFDC,GD190,VOLUNTARY SECTOR SUPPORT,GROUNDS MAINTENANCE,1040,29-May-19,152647,25,BIFFA MUNICIPAL LTD,BIF001
EFDC,CH110,"MUSEUM, HERITAGE & CULTURE",POSTAGE,3510,29-May-19,152260,0.33,ROYAL MAIL GROUP PLC,ROY015
EFDC,RE100,ELECTIONS,POSTAGE,3510,29-May-19,151048,103.62,ROYAL MAIL GROUP PLC,ROY015
EFDC,EL100,ELECTIONS,POSTAGE,3510,29-May-19,151048,363.99,ROYAL MAIL GROUP PLC,ROY015
EFDC,35300,CONTRACT & TECH SUPPORT SERVIC,AGENCY STAFF,0120,29-May-19,152296,647.12,HL SERVICES (LONDON) LTD,HLS001
EFDC,26200,OTHER SUPPORT SERVICES,FIXED PLANT MAINTENANCE,1020,29-May-19,151402,669.38,ALLIED MECHANICAL SERVICES LTD,ALL002
EFDC,RE100,ELECTIONS,POSTAGE,3510,29-May-19,152260,54.12,ROYAL MAIL GROUP PLC,ROY015
EFDC,CAPHR,HRA CAPITAL,WORKS,A040,29-May-19,152702,37185.02,M & J SERVICES LTD,SER009
EFDC,WC300,WASTE MANAGEMENT,CLEANSING CONTRACTORS,4320,29-May-19,152647,686,BIFFA MUNICIPAL LTD,BIF001
EFDC,PS100,CAR PARKING,CLEANSING CONTRACTORS,4320,29-May-19,152647,30.93,BIFFA MUNICIPAL LTD,BIF001
EFDC,WC102,WASTE MANAGEMENT,CLEANSING CONTRACTORS,4320,29-May-19,152647,179.3,BIFFA MUNICIPAL LTD,BIF001
EFDC,EL100,ELECTIONS,POSTAGE,3510,29-May-19,152260,209.55,ROYAL MAIL GROUP PLC,ROY015
EFDC,27110,ACCOMMODATION,REFUSE REMOVAL,1640,29-May-19,152647,11.26,BIFFA MUNICIPAL LTD,BIF001
EFDC,23110,ACCOMMODATION,REFUSE REMOVAL,1640,29-May-19,152647,11.26,BIFFA MUNICIPAL LTD,BIF001
EFDC,23110,ACCOMMODATION,REFUSE REMOVAL,1640,29-May-19,152647,25,BIFFA MUNICIPAL LTD,BIF001
EFDC,33075,OTHER ACTIVITIES,POSTAGE,3510,29-May-19,151048,1032.2,ROYAL MAIL GROUP PLC,ROY015
EFDC,33075,OTHER ACTIVITIES,POSTAGE,3510,29-May-19,150325,118.14,ROYAL MAIL GROUP PLC,ROY015
EFDC,YB620,SUPERVISION/MANAGEMENT SPECIAL,REFUSE REMOVAL,1640,29-May-19,152647,11.26,BIFFA MUNICIPAL LTD,BIF001
EFDC,RE100,ELECTIONS,POSTAGE,3510,29-May-19,150325,88.11,ROYAL MAIL GROUP PLC,ROY015
EFDC,WC200,WASTE MANAGEMENT,PUBLICITY,3360,29-May-19,152647,7084,BIFFA MUNICIPAL LTD,BIF001
EFDC,WC100,WASTE MANAGEMENT,PUBLICITY,3360,29-May-19,152647,2000,BIFFA MUNICIPAL LTD,BIF001
EFDC,YB400,SUPERVISION/MANAGEMENT SPECIAL,REFUSE REMOVAL,1640,29-May-19,152647,1244.32,BIFFA MUNICIPAL LTD,BIF001
EFDC,CY100,COMMUNITY & PARTNERSHIP,CONTRIBUTIONS,3740,29-May-19,152647,843.68,BIFFA MUNICIPAL LTD,BIF001
EFDC,32030,OTHER SUPPORT SERVICES,POSTAGE,3510,29-May-19,150325,29.37,ROYAL MAIL GROUP PLC,ROY015
EFDC,YB500,SUPERVISION/MANAGEMENT SPECIAL,REFUSE REMOVAL,1640,29-May-19,152647,11.26,BIFFA MUNICIPAL LTD,BIF001
EFDC,27150,"COMMUNITY, HEALTH & WELLBEING",REFUSE REMOVAL,1640,29-May-19,152647,11.26,BIFFA MUNICIPAL LTD,BIF001
EFDC,36700,HRA SUPPORT SERVICES,AGENCY STAFF,0120,29-May-19,151421,1259.23,VENTURE CONSTRUCTION SERVICES LTD,VEN002
EFDC,26200,OTHER SUPPORT SERVICES,BUILDING MAINTENANCE,1010,29-May-19,152752,70,DDM FIRE SAFETY,DDM001
EFDC,CH113,"MUSEUM, HERITAGE & CULTURE",VEHICLE HIRE,2620,29-May-19,152804,994,WALTHAM ABBEY TRANSPORT LIMITED,WAL028
EFDC,37600,PLANNING SUPPORT SERVICES,AGENCY STAFF,0120,29-May-19,151764,1220,G2 RECRUITMENT SOLUTIONS,G2R001
EFDC,GT100,LOCAL PLAN IMPLEMENTATION,CONSULTANTS FEES,3490,29-May-19,151063,3243.56,ASSEMBLE COMMUNITY PARTNERSHIP LTD,ASS028
EFDC,26200,OTHER SUPPORT SERVICES,BUILDING MAINTENANCE,1010,29-May-19,152032,2015.94,NCC MECHANICAL LIMITED,NNC001
EFDC,57100,HRA SUPPORT SERVICES,AGENCY STAFF,0120,29-May-19,152767,2600,GREENACRE RECRUITMENT,GRE029
EFDC,26200,OTHER SUPPORT SERVICES,BUILDING MAINTENANCE,1010,29-May-19,152750,54.17,DDM FIRE SAFETY,DDM001
EFDC,32115,OTHER SUPPORT SERVICES,CONSULTANTS FEES,3490,29-May-19,151678,688.5,THE CTG GROUP LIMITED,CTG001
EFDC,26200,OTHER SUPPORT SERVICES,BUILDING MAINTENANCE,1010,29-May-19,152750,54.17,DDM FIRE SAFETY,DDM001
EFDC,32115,OTHER SUPPORT SERVICES,CONSULTANTS FEES,3490,29-May-19,151404,38.5,THE CTG GROUP LIMITED,CTG001
EFDC,CAPHR,HRA CAPITAL,SURVEYS,E120,29-May-19,152389,650,GH SURVEYORS LIMITED,GHS001
EFDC,26200,OTHER SUPPORT SERVICES,BUILDING MAINTENANCE,1010,29-May-19,152750,58.33,DDM FIRE SAFETY,DDM001
EFDC,32115,OTHER SUPPORT SERVICES,CONSULTANTS FEES,3490,29-May-19,151404,650,THE CTG GROUP LIMITED,CTG001
EFDC,37600,PLANNING SUPPORT SERVICES,AGENCY STAFF,0120,29-May-19,151699,886.43,G2 RECRUITMENT SOLUTIONS,G2R001
EFDC,CAPGF,GENERAL FUND CAPITAL,WORKS,B040,29-May-19,152753,1500,DDM FIRE SAFETY,DDM001
EFDC,RM400,PLANNED & CYCLICAL MAINTENANCE,BUILDING MAINTENANCE,1010,29-May-19,152750,341.66,DDM FIRE SAFETY,DDM001
EFDC,32060,OTHER SUPPORT SERVICES,CONSULTANTS FEES,3490,29-May-19,151358,4213.34,CHRISTOPHER BADGER,BAD023
EFDC,RM400,PLANNED & CYCLICAL MAINTENANCE,BUILDING MAINTENANCE,1010,29-May-19,152752,470.83,DDM FIRE SAFETY,DDM001
EFDC,26200,OTHER SUPPORT SERVICES,FIXED PLANT MAINTENANCE,1020,29-May-19,152749,943.33,DDM FIRE SAFETY,DDM001
EFDC,37600,PLANNING SUPPORT SERVICES,AGENCY STAFF,0120,29-May-19,151690,1210,G2 RECRUITMENT SOLUTIONS,G2R001
EFDC,RM100,RESPONSIVE & VOID REPAIRS,BUILDING MAINTENANCE,1010,22-May-19,151877,960,GRACELANDS COMPLETE MAINTENANCE SERVICES LTD,GRA007
EFDC,YB400,SUPERVISION/MANAGEMENT SPECIAL,TREE  MAINTENANCE,1070,22-May-19,151042,950,J. CURRY & CO LTD,CUR001
EFDC,35013,CONTRACT & TECH SUPPORT SERVIC,AGENCY STAFF,0120,22-May-19,152048,1024.8,REED SPECIALIST RECRUITMENT LTD,REE002
EFDC,33080,OTHER ACTIVITIES,VEHICLE HIRE,2620,22-May-19,151772,5165.6,AUTOMOTIVE LEASING,AUT009
EFDC,CAPHR,HRA CAPITAL,WORKS,A040,22-May-19,152388,1807.98,EXTERIOR PLAS,EXT001
EFDC,CAPHR,HRA CAPITAL,WORKS,A040,22-May-19,152388,120219.34,EXTERIOR PLAS,EXT001
EFDC,26200,OTHER SUPPORT SERVICES,FIXED PLANT MAINTENANCE,1020,22-May-19,152354,1935,NEWFOUND ENERGY LIMITED,NEW015
EFDC,LA100,LAA POOLED FUNDS,LAA EXPENDITURE,Y100,22-May-19,151700,1760,SOLACE GROUP LTD,SOL010
EFDC,35300,CONTRACT & TECH SUPPORT SERVIC,EQUIPMENT - MAINTENANCE,3030,22-May-19,150756,2998.62,P TUCKWELL LTD,TUC002
EFDC,27050,ACCOMMODATION,CLEANING MATERIALS,1610,22-May-19,151429,87.6,ESSEX SUPPLIES (UK) LTD,ESS028
EFDC,33075,OTHER ACTIVITIES,AGENCY STAFF,0120,22-May-19,151894,2899,BROOKSON (5503A) LTD,BRO020
EFDC,27050,ACCOMMODATION,CLEANING MATERIALS,1610,22-May-19,151429,791.6,ESSEX SUPPLIES (UK) LTD,ESS028
EFDC,32115,OTHER SUPPORT SERVICES,CONSULTANTS FEES,3490,22-May-19,150537,749,CMS TRAINING LTD,CMS001
EFDC,RS280,"COMMUNITY, HEALTH & WELLBEING",CONSULTANTS FEES,3490,22-May-19,151849,1050,STACE LLP,STA012
EFDC,EL100,ELECTIONS,OTHER MISCELLANEOUS EXPENSES,3850,22-May-19,152313,150000,DISTRICT RETURNING OFFICER'S ACCOUNT,DIS001
EFDC,32220,OTHER SUPPORT SERVICES,AGENCY STAFF,0120,22-May-19,151827,3943.04,CAPSTONE PROPERTY RECRUITMENT LTD,CAP001
EFDC,RM100,RESPONSIVE & VOID REPAIRS,BUILDING MAINTENANCE,1010,22-May-19,150792,1568.74,M & J SERVICES LTD,SER009
EFDC,40110,CHIEF EXECUTIVE SUPPORT SERVIC,TRAINING EXPENSES,0310,22-May-19,150708,1575,EAST OF ENGLAND LOCAL GOVERNMENT ASSOCIATION,EAS001
EFDC,26200,OTHER SUPPORT SERVICES,BUILDING MAINTENANCE,1010,22-May-19,152020,2360.36,GILLARD & SONS LTD,GIL004
EFDC,35300,CONTRACT & TECH SUPPORT SERVIC,VEHICLE HIRE,2620,22-May-19,151755,679.54,ERNEST DOE & SONS LTD,ERN001
EFDC,42310,GOVERNANCE SUPPORT SERVICES,AGENCY STAFF,0120,22-May-19,151041,1150.5,MATCHTECH GROUP LTD,MAT002
EFDC,35300,CONTRACT & TECH SUPPORT SERVIC,VEHICLE HIRE,2620,22-May-19,151758,2880,ERNEST DOE & SONS LTD,ERN001
EFDC,RE100,ELECTIONS,EQUIPMENT - MAINTENANCE,3030,22-May-19,151872,730.73,NEOPOST LTD,NEO003
EFDC,42310,GOVERNANCE SUPPORT SERVICES,AGENCY STAFF,0120,22-May-19,150774,1202.37,MATCHTECH GROUP LTD,MAT002
EFDC,YB520,SUPERVISION/MANAGEMENT SPECIAL,OTHER CONTRACTORS,4340,22-May-19,151808,4372.72,TUNSTALL RESPONSE LTD,TUN002
EFDC,YA110,SUPERVISION/MANAGEMENT GENERAL,PROFESSIONAL FEES,3420,22-May-19,151080,850,DERRICK WADE WATERS,DER001
EFDC,26200,OTHER SUPPORT SERVICES,BUILDING MAINTENANCE,1010,22-May-19,151722,950,HIGHLINE ROADMARKINGS LTD,HIG006
EFDC,RM100,RESPONSIVE & VOID REPAIRS,BUILDING MAINTENANCE,1010,22-May-19,151436,545,FIELDWHITE SERVICES LTD,FIE003
EFDC,32220,OTHER SUPPORT SERVICES,AGENCY STAFF,0120,22-May-19,151805,876.15,HAYS SPECIALIST RECRUITMENT LTD,HAY011
EFDC,BAL01,EFDC BALANCE SHEET,TUSKER CAR SCHEME,Z631,22-May-19,151987,1941.83,TUSKERDIRECT LTD,TUS002
EFDC,BAL01,EFDC BALANCE SHEET,TUSKER CAR SCHEME,Z631,22-May-19,151987,2886.01,TUSKERDIRECT LTD,TUS002
EFDC,78001,HRA SUPPORT SERVICES,REFUSE REMOVAL,1640,22-May-19,151469,550,HEATHERLAND LTD T/A LUNNON PLANT & WASTE SERV,HEA001
EFDC,BAL01,EFDC BALANCE SHEET,TUSKER CAR SCHEME,Z631,22-May-19,151987,-1897.2,TUSKERDIRECT LTD,TUS002
EFDC,GT100,LOCAL PLAN IMPLEMENTATION,AGENCY STAFF,0120,22-May-19,151353,671.98,ADECCO UK LTD,ADE002
EFDC,33080,OTHER ACTIVITIES,FUEL,2330,22-May-19,151749,24.73,SHELL U.K. OIL PRODUCTS LIMITED,SHE007
EFDC,GT100,LOCAL PLAN IMPLEMENTATION,AGENCY STAFF,0120,22-May-19,151351,555.78,ADECCO UK LTD,ADE002
EFDC,YB120,SUPERVISION/MANAGEMENT SPECIAL,FUEL,2330,22-May-19,151749,296.27,SHELL U.K. OIL PRODUCTS LIMITED,SHE007
EFDC,DR140,MEMBER ACTIVITIES,HOSPITALITY,3840,22-May-19,151791,1270,SHARRONS EVENT CATERING COMPANY LTD,SHA002
EFDC,EH155,ENVIRONMENTAL HEALTH,FUEL,2330,22-May-19,151717,41.22,SHELL U.K. OIL PRODUCTS LIMITED,SHE007
EFDC,78001,HRA SUPPORT SERVICES,FUEL,2330,22-May-19,151717,918.53,SHELL U.K. OIL PRODUCTS LIMITED,SHE007
EFDC,78001,HRA SUPPORT SERVICES,FUEL,2330,22-May-19,151749,2075.82,SHELL U.K. OIL PRODUCTS LIMITED,SHE007
EFDC,35300,CONTRACT & TECH SUPPORT SERVIC,FUEL,2330,22-May-19,151711,3420.51,SHELL U.K. OIL PRODUCTS LIMITED,SHE007
EFDC,BAL01,EFDC BALANCE SHEET,TUSKER CAR SCHEME,Z631,22-May-19,151987,3794.4,TUSKERDIRECT LTD,TUS002
EFDC,OS101,PARKS & GROUNDS,TREE  MAINTENANCE,1070,22-May-19,151803,5751,GRISTWOOD & TOMS LTD,GRI001
EFDC,23110,ACCOMMODATION,ELECTRICITY,1120,22-May-19,152322,1081.52,EDF ENERGY,EDF001
EFDC,CAPHR,HRA CAPITAL,WORKS,A040,22-May-19,152230,2068,STANNAH LIFT SERVICES LTD,STA019
EFDC,26200,OTHER SUPPORT SERVICES,BUILDING MAINTENANCE,1010,22-May-19,152336,640,CONTACT ROLLER SHUTTERS LTD,CON006
EFDC,RE100,ELECTIONS,OTHER MISCELLANEOUS EXPENSES,3850,22-May-19,151873,2366.97,NEOPOST LTD,NEO003
EFDC,HI124,HIGHWAYS,OTHER MAINTENANCE,1050,22-May-19,151828,8620.8,GLASDON U K LTD,GLA002
EFDC,RS301,NORTH WEALD CENTRE,FIXED PLANT MAINTENANCE,1020,22-May-19,151754,3347.5,S H GOSS & CO LTD,GOS001
EFDC,GT100,LOCAL PLAN IMPLEMENTATION,AGENCY STAFF,0120,22-May-19,151354,656.83,ADECCO UK LTD,ADE002
EFDC,37600,PLANNING SUPPORT SERVICES,AGENCY STAFF,0120,22-May-19,151039,871,MATCHTECH GROUP LTD,MAT002
EFDC,RS150,LEISURE FACILITIES,EQUIPMENT - NEW,3010,22-May-19,151053,1020,B B & C FENCING,FEN003
EFDC,RS302,NORTH WEALD CENTRE,ELECTRICITY,1120,22-May-19,152324,6231.46,EDF ENERGY,EDF001
EFDC,26200,OTHER SUPPORT SERVICES,BUILDING MAINTENANCE,1010,22-May-19,151670,750,DISCREET PEST CONTROL LTD,DIS004
EFDC,43310,CONTRACT & TECH SUPPORT SERVIC,AGENCY STAFF,0120,22-May-19,152351,2052,MACDONALD & COMPANY FREELANCE LTD,MAC003
EFDC,32120,OTHER SUPPORT SERVICES,EMPLOYEES - OTHER PAYMENTS,0191,22-May-19,150368,58.45,HARLOW OCCUPATIONAL HEALTH SERVICE LTD,HAR006
EFDC,32120,OTHER SUPPORT SERVICES,EMPLOYEES - OTHER PAYMENTS,0191,22-May-19,150368,3213,HARLOW OCCUPATIONAL HEALTH SERVICE LTD,HAR006
EFDC,YB120,SUPERVISION/MANAGEMENT SPECIAL,FUEL,2330,22-May-19,151717,95.22,SHELL U.K. OIL PRODUCTS LIMITED,SHE007
EFDC,33010,OTHER ACTIVITIES,SUBSCRIPTIONS,3730,22-May-19,152022,16000,EGS GROUP HOLDINGS LIIMITED,GOV001
EFDC,RM100,RESPONSIVE & VOID REPAIRS,BUILDING MAINTENANCE,1010,22-May-19,151664,831.17,GRACELANDS COMPLETE MAINTENANCE SERVICES LTD,GRA007
EFDC,RS301,NORTH WEALD CENTRE,FIXED PLANT MAINTENANCE,1020,22-May-19,151681,1516,MAINTECH POWER SERVICES LTD,MAI003
EFDC,YB120,SUPERVISION/MANAGEMENT SPECIAL,AGENCY STAFF,0120,22-May-19,152366,615.6,REED SPECIALIST RECRUITMENT LTD,REE002
EFDC,33075,OTHER ACTIVITIES,AGENCY STAFF,0120,22-May-19,152241,814,EDEN BROWN LTD,EDE001
EFDC,33080,OTHER ACTIVITIES,ANNUAL SUPPORT /  LICENSES,3872,22-May-19,151923,17793.53,BYTES SOFTWARE SERVICES LTD,BYT001
EFDC,YB400,SUPERVISION/MANAGEMENT SPECIAL,TREE  MAINTENANCE,1070,22-May-19,151394,533.33,CROWN TREE SERVICES,CRO004
EFDC,33080,OTHER ACTIVITIES,ANNUAL SUPPORT /  LICENSES,3872,22-May-19,151913,3449.41,BYTES SOFTWARE SERVICES LTD,BYT001
EFDC,CH110,"MUSEUM, HERITAGE & CULTURE",CRB POLICE CHECK COSTS,0381,22-May-19,152246,44,DISCLOSURE & BARRING SERVICE,CRB002
EFDC,33080,OTHER ACTIVITIES,ANNUAL SUPPORT /  LICENSES,3872,22-May-19,151912,15183.49,BYTES SOFTWARE SERVICES LTD,BYT001
EFDC,33075,OTHER ACTIVITIES,AGENCY STAFF,0120,22-May-19,152236,814,EDEN BROWN LTD,EDE001
EFDC,32060,OTHER SUPPORT SERVICES,RECRUITMENT EXPENSES,0320,22-May-19,151778,503.79,VENN GROUP LTD,VEN004
EFDC,YB800,SUPERVISION/MANAGEMENT SPECIAL,GRANTS TO VOLUNTARY ORGS,3710,22-May-19,152310,2100,EPPING FOREST DISTRICT CITIZEN ADVICE BUREAU,EPP036
EFDC,33075,OTHER ACTIVITIES,AGENCY STAFF,0120,22-May-19,152238,814,EDEN BROWN LTD,EDE001
EFDC,EH150,REGULATORY SERVICES,EQUIPMENT - NEW,3010,22-May-19,151373,1588.48,VIP-SYSTEM LIMITED,VIP001
EFDC,35300,CONTRACT & TECH SUPPORT SERVIC,AGENCY STAFF,0120,22-May-19,151355,648.93,BERRY RECRUITMENT LTD,BER001
EFDC,33075,OTHER ACTIVITIES,AGENCY STAFF,0120,22-May-19,152239,814,EDEN BROWN LTD,EDE001
EFDC,GD140,VOLUNTARY SECTOR SUPPORT,GRANTS TO VOLUNTARY ORGS,3710,22-May-19,152310,8400,EPPING FOREST DISTRICT CITIZEN ADVICE BUREAU,EPP036
EFDC,CH110,"MUSEUM, HERITAGE & CULTURE",CRB POLICE CHECK COSTS,0381,22-May-19,151851,44,DISCLOSURE & BARRING SERVICE,CRB002
EFDC,35300,CONTRACT & TECH SUPPORT SERVIC,AGENCY STAFF,0120,22-May-19,151691,632.1,HL SERVICES (LONDON) LTD,HLS001
EFDC,33080,OTHER ACTIVITIES,ANNUAL SUPPORT /  LICENSES,3872,22-May-19,152370,1100,SEC-1 LIMITED,SEC002
EFDC,27050,ACCOMMODATION,ELECTRICITY,1120,22-May-19,152325,8117.5,EDF ENERGY,EDF001
EFDC,EH150,REGULATORY SERVICES,CRB POLICE CHECK COSTS,0381,22-May-19,151851,1012,DISCLOSURE & BARRING SERVICE,CRB002
EFDC,RS400,"COMMUNITY, HEALTH & WELLBEING",CRB POLICE CHECK COSTS,0381,22-May-19,152246,44,DISCLOSURE & BARRING SERVICE,CRB002
EFDC,35300,CONTRACT & TECH SUPPORT SERVIC,FUEL,2330,22-May-19,151927,2085.93,CPL PETROLEUM,CPL001
EFDC,36650,HRA SUPPORT SERVICES,AGENCY STAFF,0120,22-May-19,151692,2500,THE OYSTER PARTNERSHIP LTD,OYS001
EFDC,78001,HRA SUPPORT SERVICES,MATERIALS,3080,22-May-19,151430,539.17,TRAVIS PERKINS TRADING COMPANY LTD,TRA001
EFDC,33075,OTHER ACTIVITIES,AGENCY STAFF,0120,22-May-19,152237,594,EDEN BROWN LTD,EDE001
EFDC,EH150,REGULATORY SERVICES,CRB POLICE CHECK COSTS,0381,22-May-19,152246,1232,DISCLOSURE & BARRING SERVICE,CRB002
EFDC,CAPHR,HRA CAPITAL,MANAGEMENT CONSULTANT,E130,22-May-19,151470,42.4,AIREY MILLER LIMITED,AIR027
EFDC,CAPHR,HRA CAPITAL,MANAGEMENT CONSULTANT,E130,22-May-19,151470,37.1,AIREY MILLER LIMITED,AIR027
EFDC,CAPHR,HRA CAPITAL,MANAGEMENT CONSULTANT,E130,22-May-19,151462,1141.45,AIREY MILLER LIMITED,AIR027
EFDC,RS301,NORTH WEALD CENTRE,OTHER MAINTENANCE,1050,22-May-19,151908,1440,BLAKE CONTRACTORS LIMITED,BLA008
EFDC,CAPHR,HRA CAPITAL,MANAGEMENT CONSULTANT,E130,22-May-19,151470,106,AIREY MILLER LIMITED,AIR027
EFDC,CAPHR,HRA CAPITAL,MANAGEMENT CONSULTANT,E130,22-May-19,151470,127.2,AIREY MILLER LIMITED,AIR027
EFDC,CAPHR,HRA CAPITAL,MANAGEMENT CONSULTANT,E130,22-May-19,151470,63.6,AIREY MILLER LIMITED,AIR027
EFDC,32220,OTHER SUPPORT SERVICES,FEES & CHARGES,9210,22-May-19,152418,1678.5,MP ARCHITECTS LLP,MPA001
EFDC,CAPHR,HRA CAPITAL,MANAGEMENT CONSULTANT,E130,22-May-19,151468,1450.51,AIREY MILLER LIMITED,AIR027
EFDC,CAPHR,HRA CAPITAL,MANAGEMENT CONSULTANT,E130,22-May-19,151466,1209.79,AIREY MILLER LIMITED,AIR027
EFDC,YB400,SUPERVISION/MANAGEMENT SPECIAL,TREE  MAINTENANCE,1070,22-May-19,151372,1050,KENDAL TREE SURGERY LTD,KEN004
EFDC,CAPHR,HRA CAPITAL,MANAGEMENT CONSULTANT,E130,22-May-19,151466,1209.78,AIREY MILLER LIMITED,AIR027
EFDC,CAPHR,HRA CAPITAL,MANAGEMENT CONSULTANT,E130,22-May-19,151470,37.1,AIREY MILLER LIMITED,AIR027
EFDC,CAPHR,HRA CAPITAL,MANAGEMENT CONSULTANT,E130,22-May-19,151462,1141.44,AIREY MILLER LIMITED,AIR027
EFDC,GT100,LOCAL PLAN IMPLEMENTATION,CONSULTANTS FEES,3490,22-May-19,152379,5000,THINKING PLACE LIMITED,THI027
EFDC,CAPNB,NEIGHBOURHOODS CAPITAL,ARCHITECTS FEES,E160,22-May-19,151486,535.24,POZZONI ARCHITECTURE LTD,POZ001
EFDC,36700,HRA SUPPORT SERVICES,AGENCY STAFF,0120,22-May-19,151422,1152.87,VENTURE CONSTRUCTION SERVICES LTD,VEN002
EFDC,36500,HRA SUPPORT SERVICES,AGENCY STAFF,0120,22-May-19,151795,913.5,PRENTIS SOLUTIONS LIMITED,PRE027
EFDC,26200,OTHER SUPPORT SERVICES,BUILDING MAINTENANCE,1010,22-May-19,151836,990.4,LONDON ELITE ELECTRICAL LIMITED,LON038
EFDC,HL100,HOMELESSNESS,PROFESSIONAL FEES,3420,22-May-19,152348,800,HOUSING REVIEWS LIMITED,HOU020
EFDC,CAPNB,NEIGHBOURHOODS CAPITAL,ARCHITECTS FEES,E160,22-May-19,151486,778.78,POZZONI ARCHITECTURE LTD,POZ001
EFDC,CAPNB,NEIGHBOURHOODS CAPITAL,ARCHITECTS FEES,E160,22-May-19,151486,81.9,POZZONI ARCHITECTURE LTD,POZ001
EFDC,CAPNB,NEIGHBOURHOODS CAPITAL,ARCHITECTS FEES,E160,22-May-19,151486,659.78,POZZONI ARCHITECTURE LTD,POZ001
EFDC,CAPNB,NEIGHBOURHOODS CAPITAL,ARCHITECTS FEES,E160,22-May-19,151486,123,POZZONI ARCHITECTURE LTD,POZ001
EFDC,CAPHR,HRA CAPITAL,MANAGEMENT CONSULTANT,E130,22-May-19,151470,53,AIREY MILLER LIMITED,AIR027
EFDC,CAPNB,NEIGHBOURHOODS CAPITAL,ARCHITECTS FEES,E160,22-May-19,151486,585.85,POZZONI ARCHITECTURE LTD,POZ001
EFDC,CAPHR,HRA CAPITAL,MANAGEMENT CONSULTANT,E130,22-May-19,151468,1450.52,AIREY MILLER LIMITED,AIR027
EFDC,CAPNB,NEIGHBOURHOODS CAPITAL,ARCHITECTS FEES,E160,22-May-19,151486,644.13,POZZONI ARCHITECTURE LTD,POZ001
EFDC,CAPNB,NEIGHBOURHOODS CAPITAL,ARCHITECTS FEES,E160,22-May-19,151486,1005.47,POZZONI ARCHITECTURE LTD,POZ001
EFDC,CAPNB,NEIGHBOURHOODS CAPITAL,ARCHITECTS FEES,E160,22-May-19,151486,585.85,POZZONI ARCHITECTURE LTD,POZ001
EFDC,CAPHR,HRA CAPITAL,MANAGEMENT CONSULTANT,E130,22-May-19,151470,63.6,AIREY MILLER LIMITED,AIR027
EFDC,32060,OTHER SUPPORT SERVICES,CONSULTANTS FEES,3490,22-May-19,151032,750,MISS RUCHI PAREKH,PAR111
EFDC,YA100,SUPERVISION/MANAGEMENT GENERAL,PROFESSIONAL FEES,3420,15-May-19,150125,6000,VALUATION OFFICE AGENCY,VAL002
EFDC,33080,OTHER ACTIVITIES,ANNUAL SUPPORT /  LICENSES,3872,15-May-19,150793,8382.25,VCENTRAL LTD,VCE001
EFDC,34110,HOUSING PROP SUPPORT SERVICES,BANKING AND CASH COLLECTION,3440,15-May-19,151360,72.59,CONTRACT SECURITY SERVICES LTD,CON033
EFDC,33075,OTHER ACTIVITIES,AGENCY STAFF,0120,15-May-19,152029,698.83,MORGAN HUNT UK LTD,MOR001
EFDC,YB400,SUPERVISION/MANAGEMENT SPECIAL,TREE  MAINTENANCE,1070,15-May-19,150740,552.83,GRISTWOOD & TOMS LTD,GRI001
EFDC,33075,OTHER ACTIVITIES,AGENCY STAFF,0120,15-May-19,152031,669.47,MORGAN HUNT UK LTD,MOR001
EFDC,OS110,PARKS & GROUNDS,GROUNDS MAINTENANCE,1040,15-May-19,150739,2982,GRISTWOOD & TOMS LTD,GRI001
EFDC,GD150,VOLUNTARY SECTOR SUPPORT,GRANTS TO VOLUNTARY ORGS,3710,15-May-19,151986,19560,VOLUNTARY ACTION EPPING FOREST,VOL004
EFDC,YB120,SUPERVISION/MANAGEMENT SPECIAL,FUEL,2330,15-May-19,150247,100.46,SHELL U.K. OIL PRODUCTS LIMITED,SHE007
EFDC,YB400,SUPERVISION/MANAGEMENT SPECIAL,TREE  MAINTENANCE,1070,15-May-19,150739,11368,GRISTWOOD & TOMS LTD,GRI001
EFDC,PS100,CAR PARKING,TREE  MAINTENANCE,1070,15-May-19,150739,687,GRISTWOOD & TOMS LTD,GRI001
EFDC,CAPHR,HRA CAPITAL,ARCHITECTS FEES,E160,15-May-19,151966,12887.11,ECD ARCHITECTS LTD,ECD001
EFDC,YA100,SUPERVISION/MANAGEMENT GENERAL,PROFESSIONAL FEES,3420,15-May-19,150126,3000,VALUATION OFFICE AGENCY,VAL002
EFDC,CAPHR,HRA CAPITAL,ARCHITECTS FEES,E160,15-May-19,151974,12313.52,ECD ARCHITECTS LTD,ECD001
EFDC,32121,OTHER SUPPORT SERVICES,PROFESSIONAL FEES,3420,15-May-19,150217,7440.2,SOLACE IN BUSINESS LTD,SOL003
EFDC,33080,OTHER ACTIVITIES,ANNUAL SUPPORT /  LICENSES,3872,15-May-19,150727,3795,CHERWELL SOFTWARE LTD,CHE009
EFDC,EH112,LAND DRAINAGE/SEWERAGE,OTHER MAINTENANCE,1050,15-May-19,150775,1850.68,VEOLIA ES (UK) LTD,VER004
EFDC,32060,OTHER SUPPORT SERVICES,RECRUITMENT EXPENSES,0320,15-May-19,150728,754,VENN GROUP LTD,VEN004
EFDC,WC200,WASTE MANAGEMENT,CLEANSING CONTRACTORS,4320,15-May-19,151488,24320.03,BIFFA MUNICIPAL LTD,BIF001
EFDC,WC200,WASTE MANAGEMENT,CLEANSING CONTRACTORS,4320,15-May-19,151488,18416,BIFFA MUNICIPAL LTD,BIF001
EFDC,WC200,WASTE MANAGEMENT,CLEANSING CONTRACTORS,4320,15-May-19,151488,23830,BIFFA MUNICIPAL LTD,BIF001
EFDC,EH155,ENVIRONMENTAL HEALTH,FUEL,2330,15-May-19,150247,50.55,SHELL U.K. OIL PRODUCTS LIMITED,SHE007
EFDC,GD190,VOLUNTARY SECTOR SUPPORT,GROUNDS MAINTENANCE,1040,15-May-19,151488,25,BIFFA MUNICIPAL LTD,BIF001
EFDC,33080,OTHER ACTIVITIES,FUEL,2330,15-May-19,150248,28.01,SHELL U.K. OIL PRODUCTS LIMITED,SHE007
EFDC,32060,OTHER SUPPORT SERVICES,RECRUITMENT EXPENSES,0320,15-May-19,150790,630.5,VENN GROUP LTD,VEN004
EFDC,CH110,"MUSEUM, HERITAGE & CULTURE",BANKING AND CASH COLLECTION,3440,15-May-19,151360,36.29,CONTRACT SECURITY SERVICES LTD,CON033
EFDC,32120,OTHER SUPPORT SERVICES,RECRUITMENT EXPENSES,0320,15-May-19,150374,6262.8,SOLACE IN BUSINESS LTD,SOL003
EFDC,32220,OTHER SUPPORT SERVICES,AGENCY STAFF,0120,15-May-19,151357,1226.61,HAYS SPECIALIST RECRUITMENT LTD,HAY011
EFDC,RS301,NORTH WEALD CENTRE,RENTS,9410,15-May-19,151488,-600,BIFFA MUNICIPAL LTD,BIF001
EFDC,33020,OTHER ACTIVITIES,BANKING AND CASH COLLECTION,3440,15-May-19,151360,725.83,CONTRACT SECURITY SERVICES LTD,CON033
EFDC,DC120,PLANNING REGULATORY SERVICES,CONSULTANTS FEES,3490,15-May-19,150258,720,VIVID RESOURCING LTD,VIV002
EFDC,TO100,LAND & PROPERTY,BANKING AND CASH COLLECTION,3440,15-May-19,151360,72.58,CONTRACT SECURITY SERVICES LTD,CON033
EFDC,23110,ACCOMMODATION,REFUSE REMOVAL,1640,15-May-19,151488,11.26,BIFFA MUNICIPAL LTD,BIF001
EFDC,RM300,PLANNED & CYCLICAL MAINTENANCE,BUILDING MAINTENANCE,1010,15-May-19,151964,1475.21,DDS (INTERNATIONAL) LTD,DDS001
EFDC,OS101,PARKS & GROUNDS,TREE  MAINTENANCE,1070,15-May-19,150739,537,GRISTWOOD & TOMS LTD,GRI001
EFDC,33080,OTHER ACTIVITIES,ANNUAL SUPPORT /  LICENSES,3872,15-May-19,150794,7502.98,VCENTRAL LTD,VCE001
EFDC,YB620,SUPERVISION/MANAGEMENT SPECIAL,BANKING AND CASH COLLECTION,3440,15-May-19,151360,72.58,CONTRACT SECURITY SERVICES LTD,CON033
EFDC,SC100,WASTE MANAGEMENT,CLEANSING CONTRACTORS,4320,15-May-19,151488,2298.78,BIFFA MUNICIPAL LTD,BIF001
EFDC,33020,OTHER ACTIVITIES,BANKING AND CASH COLLECTION,3440,15-May-19,151360,362.92,CONTRACT SECURITY SERVICES LTD,CON033
EFDC,OS100,PARKS & GROUNDS,GROUNDS MAINTENANCE,1040,15-May-19,151488,75.45,BIFFA MUNICIPAL LTD,BIF001
EFDC,26200,OTHER SUPPORT SERVICES,BUILDING MAINTENANCE,1010,15-May-19,152043,677.02,PARKER AIR CONDITIONING LTD,PAR017
EFDC,33055,OTHER ACTIVITIES,AGENCY STAFF,0120,15-May-19,152030,793.48,MORGAN HUNT UK LTD,MOR001
EFDC,33080,OTHER ACTIVITIES,ANNUAL SUPPORT /  LICENSES,3872,15-May-19,151382,902.03,BYTES SOFTWARE SERVICES LTD,BYT001
EFDC,YB500,SUPERVISION/MANAGEMENT SPECIAL,EQUIPMENT - MAINTENANCE,3030,15-May-19,150771,30483.48,TUNSTALL HEALTHCARE (UK) LTD,TUN001
EFDC,YB500,SUPERVISION/MANAGEMENT SPECIAL,EQUIPMENT - MAINTENANCE,3030,15-May-19,150770,20786.31,TUNSTALL HEALTHCARE (UK) LTD,TUN001
EFDC,GD150,VOLUNTARY SECTOR SUPPORT,WATER CHARGES,1410,15-May-19,151951,801.45,AFFINITY WATER LTD,AFF002
EFDC,BAL01,EFDC BALANCE SHEET,BUSY BEES,Z606,15-May-19,151954,1829.52,COMPUTERSHAREVOUCHER SERVICES,BUS009
EFDC,GD190,VOLUNTARY SECTOR SUPPORT,GROUNDS MAINTENANCE,1040,15-May-19,151488,101.69,BIFFA MUNICIPAL LTD,BIF001
EFDC,PS100,CAR PARKING,BANKING AND CASH COLLECTION,3440,15-May-19,150300,692.88,CHIPSIDE LIMITED,CHI030
EFDC,WC300,WASTE MANAGEMENT,CLEANSING CONTRACTORS,4320,15-May-19,151488,-165.74,BIFFA MUNICIPAL LTD,BIF001
EFDC,YB620,SUPERVISION/MANAGEMENT SPECIAL,REFUSE REMOVAL,1640,15-May-19,151488,11.26,BIFFA MUNICIPAL LTD,BIF001
EFDC,33080,OTHER ACTIVITIES,FIXED NETWORK LINE COSTS,3520,15-May-19,151984,5326.47,SOLAR COMMUNICATION LIMITED,SOL002
EFDC,35300,CONTRACT & TECH SUPPORT SERVIC,VEHICLE HIRE,2620,15-May-19,150742,501.45,P TUCKWELL LTD,TUC002
EFDC,CH113,"MUSEUM, HERITAGE & CULTURE",PROFESSIONAL FEES,3420,15-May-19,151501,3350,MISS H M PALMER,PAL001
EFDC,CAPHR,HRA CAPITAL,ARCHITECTS FEES,E160,15-May-19,151970,8030.89,ECD ARCHITECTS LTD,ECD001
EFDC,RM100,RESPONSIVE & VOID REPAIRS,BUILDING MAINTENANCE,1010,15-May-19,150446,1160.46,TOWER ASPHALT LTD,TOW001
EFDC,YA100,SUPERVISION/MANAGEMENT GENERAL,CONSULTANTS FEES,3490,15-May-19,152018,5580,EAST OF ENGLAND LOCAL GOVERNMENT ASSOCIATION,EAS001
EFDC,CAPHR,HRA CAPITAL,WORKS,A040,15-May-19,151997,6474.04,VSN ENTERPRISES LTD,VSN001
EFDC,EL100,ELECTIONS,OTHER MISCELLANEOUS EXPENSES,3850,15-May-19,151482,50000,DISTRICT RETURNING OFFICER'S ACCOUNT,DIS001
EFDC,PS100,CAR PARKING,BANKING AND CASH COLLECTION,3440,15-May-19,150299,1401.91,CHIPSIDE LIMITED,CHI030
EFDC,OS100,PARKS & GROUNDS,GROUNDS MAINTENANCE,1040,15-May-19,151488,4.2,BIFFA MUNICIPAL LTD,BIF001
EFDC,26200,OTHER SUPPORT SERVICES,FIXED PLANT MAINTENANCE,1020,15-May-19,151706,3122.5,CTL AUDIOVISUAL SERVICES LTD,CTL001
EFDC,32121,OTHER SUPPORT SERVICES,EMPLOYEES - OTHER PAYMENTS,0191,15-May-19,151954,118.92,COMPUTERSHAREVOUCHER SERVICES,BUS009
EFDC,26200,OTHER SUPPORT SERVICES,BUILDING MAINTENANCE,1010,15-May-19,151789,1027.12,R C INTERIORS,RCI001
EFDC,HI122,HIGHWAYS,TREE  MAINTENANCE,1070,15-May-19,150739,17662,GRISTWOOD & TOMS LTD,GRI001
EFDC,CAPGF,GENERAL FUND CAPITAL,WORKS,B040,15-May-19,152019,111.02,EMERY ELECTRICAL LTD,EME001
EFDC,CAPGF,GENERAL FUND CAPITAL,WORKS,B040,15-May-19,152019,2052,EMERY ELECTRICAL LTD,EME001
EFDC,CAPHR,HRA CAPITAL,ARCHITECTS FEES,E160,15-May-19,151973,551.79,ECD ARCHITECTS LTD,ECD001
EFDC,CAPHR,HRA CAPITAL,ARCHITECTS FEES,E160,15-May-19,151971,14293.71,ECD ARCHITECTS LTD,ECD001
EFDC,YB500,SUPERVISION/MANAGEMENT SPECIAL,REFUSE REMOVAL,1640,15-May-19,151488,11.26,BIFFA MUNICIPAL LTD,BIF001
EFDC,YB120,SUPERVISION/MANAGEMENT SPECIAL,FUEL,2330,15-May-19,150248,180.63,SHELL U.K. OIL PRODUCTS LIMITED,SHE007
EFDC,23110,ACCOMMODATION,REFUSE REMOVAL,1640,15-May-19,151488,25,BIFFA MUNICIPAL LTD,BIF001
EFDC,OS110,PARKS & GROUNDS,GROUNDS MAINTENANCE,1040,15-May-19,151488,191.97,BIFFA MUNICIPAL LTD,BIF001
EFDC,33055,OTHER ACTIVITIES,AGENCY STAFF,0120,15-May-19,152028,981.24,MORGAN HUNT UK LTD,MOR001
EFDC,78001,HRA SUPPORT SERVICES,MATERIALS,3080,15-May-19,151065,860.72,TRAVIS PERKINS TRADING COMPANY LTD,TRA001
EFDC,35300,CONTRACT & TECH SUPPORT SERVIC,VEHICLE HIRE,2620,15-May-19,150743,546,P TUCKWELL LTD,TUC002
EFDC,35009,CONTRACT & TECH SUPPORT SERVIC,EQUIPMENT - MAINTENANCE,3030,15-May-19,151181,9342,WIRELESS CCTV LTD,WIR001
EFDC,RS301,NORTH WEALD CENTRE,OTHER MAINTENANCE,1050,15-May-19,151371,564,WINDSOCK COMPANY LTD,WIN002
EFDC,27110,ACCOMMODATION,REFUSE REMOVAL,1640,15-May-19,151488,11.26,BIFFA MUNICIPAL LTD,BIF001
EFDC,CAPHR,HRA CAPITAL,WORKS,A040,15-May-19,151997,5800,VSN ENTERPRISES LTD,VSN001
EFDC,WC102,WASTE MANAGEMENT,CLEANSING CONTRACTORS,4320,15-May-19,151488,358.6,BIFFA MUNICIPAL LTD,BIF001
EFDC,33080,OTHER ACTIVITIES,ANNUAL SUPPORT /  LICENSES,3872,15-May-19,151387,3435,CIPFA BUSINESS LTD,CIP005
EFDC,HI124,HIGHWAYS,OTHER MAINTENANCE,1050,15-May-19,151625,1760,W H CONSTRUCTION LTD,CON014
EFDC,33060,OTHER ACTIVITIES,SUBSCRIPTIONS,3730,15-May-19,151386,1320,CIPFA BUSINESS LTD,CIP005
EFDC,DC110,PLANNING REGULATORY SERVICES,PROFESSIONAL FEES,3420,15-May-19,151030,10360,MISS MEGAN THOMAS,THO013
EFDC,FD100,LAND DRAINAGE/SEWERAGE,PROFESSIONAL FEES,3420,15-May-19,151488,8.92,BIFFA MUNICIPAL LTD,BIF001
EFDC,OS110,PARKS & GROUNDS,GROUNDS MAINTENANCE,1040,15-May-19,151488,58.78,BIFFA MUNICIPAL LTD,BIF001
EFDC,CAPHR,HRA CAPITAL,WORKS,A040,15-May-19,151976,22715.67,GRACELANDS COMPLETE MAINTENANCE SERVICES LTD,GRA007
EFDC,33080,OTHER ACTIVITIES,ANNUAL SUPPORT /  LICENSES,3872,15-May-19,150766,8250,MODERN MINDSET LTD,MOD004
EFDC,CAPHR,HRA CAPITAL,WORKS,A040,15-May-19,151967,541.74,GRACELANDS COMPLETE MAINTENANCE SERVICES LTD,GRA007
EFDC,CAPHR,HRA CAPITAL,MANAGEMENT CONSULTANT,E130,15-May-19,151502,5000,PELLINGS LLP,PEL002
EFDC,32220,OTHER SUPPORT SERVICES,AGENCY STAFF,0120,15-May-19,151680,4251.09,CAPSTONE PROPERTY RECRUITMENT LTD,CAP001
EFDC,WC100,WASTE MANAGEMENT,CLEANSING CONTRACTORS,4320,15-May-19,151488,57,BIFFA MUNICIPAL LTD,BIF001
EFDC,32220,OTHER SUPPORT SERVICES,AGENCY STAFF,0120,15-May-19,151392,3696.6,CAPSTONE PROPERTY RECRUITMENT LTD,CAP001
EFDC,PS100,CAR PARKING,CLEANSING CONTRACTORS,4320,15-May-19,151488,30.93,BIFFA MUNICIPAL LTD,BIF001
EFDC,23140,ACCOMMODATION,REFUSE REMOVAL,1640,15-May-19,151488,22.52,BIFFA MUNICIPAL LTD,BIF001
EFDC,37600,PLANNING SUPPORT SERVICES,AGENCY STAFF,0120,15-May-19,151350,792,ADECCO UK LTD,ADE002
EFDC,DC120,PLANNING REGULATORY SERVICES,PUBLICITY,3360,15-May-19,149669,892.5,NEWSQUEST MEDIA GROUP,NEW002
EFDC,78001,HRA SUPPORT SERVICES,PROFESSIONAL FEES,3420,15-May-19,151497,9799.63,MEARS LTD,MEA002
EFDC,RE100,ELECTIONS,EQUIPMENT - NEW,3010,15-May-19,151483,3480,O2 (UK) LTD,OTW002
EFDC,27050,ACCOMMODATION,REFUSE REMOVAL,1640,15-May-19,151488,472.92,BIFFA MUNICIPAL LTD,BIF001
EFDC,WC100,WASTE MANAGEMENT,EQUIPMENT - NEW,3010,15-May-19,151488,456,BIFFA MUNICIPAL LTD,BIF001
EFDC,YB400,SUPERVISION/MANAGEMENT SPECIAL,REFUSE REMOVAL,1640,15-May-19,151488,2854.21,BIFFA MUNICIPAL LTD,BIF001
EFDC,WC100,WASTE MANAGEMENT,EQUIPMENT - NEW,3010,15-May-19,151488,4845.54,BIFFA MUNICIPAL LTD,BIF001
EFDC,34160,HOUSING PROP SUPPORT SERVICES,AGENCY STAFF,0120,15-May-19,151415,662.76,REED SPECIALIST RECRUITMENT LTD,REE002
EFDC,PP111,LOCAL PLAN IMPLEMENTATION,PUBLICITY,3360,15-May-19,150226,595,NEWSQUEST MEDIA GROUP,NEW002
EFDC,PS100,CAR PARKING,OTHER MAINTENANCE,1050,15-May-19,150767,1474.2,METRIC GROUP LTD,MET005
EFDC,PS100,CAR PARKING,OTHER MAINTENANCE,1050,15-May-19,150298,1875,METRIC GROUP LTD,MET005
EFDC,YA300,SUPERVISION/MANAGEMENT GENERAL,BANKING AND CASH COLLECTION,3440,15-May-19,151720,1779.72,ALLPAY.NET.LIMITED,ALL010
EFDC,YA300,SUPERVISION/MANAGEMENT GENERAL,BANKING AND CASH COLLECTION,3440,15-May-19,151719,622.58,ALLPAY.NET.LIMITED,ALL010
EFDC,PP111,LOCAL PLAN IMPLEMENTATION,PROFESSIONAL FEES,3420,15-May-19,150340,7078.2,OVE ARUP & PARTNERS LTD,OVE002
EFDC,37600,PLANNING SUPPORT SERVICES,AGENCY STAFF,0120,15-May-19,151040,1044.2,MATCHTECH GROUP LTD,MAT002
EFDC,PS100,CAR PARKING,OTHER MAINTENANCE,1050,15-May-19,150225,1249.5,NEWSQUEST MEDIA GROUP,NEW002
EFDC,78001,HRA SUPPORT SERVICES,LICENCES,3870,15-May-19,150331,3739.91,MEARS LTD,MEA002
EFDC,33080,OTHER ACTIVITIES,ANNUAL SUPPORT /  LICENSES,3872,15-May-19,150231,10954.07,ORACLE CORPORATION UK LTD,ORA002
EFDC,32191,OTHER SUPPORT SERVICES,CONSULTANTS FEES,3490,15-May-19,151496,3115.91,MEARS LTD,MEA002
EFDC,78001,HRA SUPPORT SERVICES,EQUIPMENT - NEW,3010,15-May-19,150329,2284.15,MEARS LTD,MEA002
EFDC,CAPHR,HRA CAPITAL,WORKS,E040,15-May-19,151977,209911.32,MULALLEY & CO LTD,MUL003
EFDC,78001,HRA SUPPORT SERVICES,LICENCES,3870,15-May-19,150334,14007.65,MEARS LTD,MEA002
EFDC,78001,HRA SUPPORT SERVICES,LICENCES,3870,15-May-19,150332,19440.55,MEARS LTD,MEA002
EFDC,27150,"COMMUNITY, HEALTH & WELLBEING",REFUSE REMOVAL,1640,15-May-19,151488,11.26,BIFFA MUNICIPAL LTD,BIF001
EFDC,LA100,LAA POOLED FUNDS,LAA EXPENDITURE,Y100,15-May-19,150813,1000,ARC THEATRE,ARC003
EFDC,CAPHR,HRA CAPITAL,ARCHITECTS FEES,E160,15-May-19,151965,16373.72,ECD ARCHITECTS LTD,ECD001
EFDC,33080,OTHER ACTIVITIES,FIXED NETWORK LINE COSTS,3520,15-May-19,151926,1397.52,BRITISH TELECOMMUNICATIONS PLC,BRI002
EFDC,RM400,PLANNED & CYCLICAL MAINTENANCE,BUILDING MAINTENANCE,1010,15-May-19,150855,283.2,MITIE SECURITY LTD,MIT004
EFDC,PS100,CAR PARKING,CLEANSING CONTRACTORS,4320,15-May-19,151488,-334.77,BIFFA MUNICIPAL LTD,BIF001
EFDC,RM400,PLANNED & CYCLICAL MAINTENANCE,BUILDING MAINTENANCE,1010,15-May-19,150855,426.3,MITIE SECURITY LTD,MIT004
EFDC,37600,PLANNING SUPPORT SERVICES,AGENCY STAFF,0120,15-May-19,151352,638,ADECCO UK LTD,ADE002
EFDC,26200,OTHER SUPPORT SERVICES,BUILDING MAINTENANCE,1010,15-May-19,150852,494.38,MITIE SECURITY LTD,MIT004
EFDC,CY100,COMMUNITY & PARTNERSHIP,CONTRIBUTIONS,3740,15-May-19,151488,316.38,BIFFA MUNICIPAL LTD,BIF001
EFDC,PP111,LOCAL PLAN IMPLEMENTATION,PROFESSIONAL FEES,3420,15-May-19,150341,17135.4,OVE ARUP & PARTNERS LTD,OVE002
EFDC,RM400,PLANNED & CYCLICAL MAINTENANCE,BUILDING MAINTENANCE,1010,15-May-19,150855,284.21,MITIE SECURITY LTD,MIT004
EFDC,WC100,WASTE MANAGEMENT,CLEANSING CONTRACTORS,4320,15-May-19,151488,7025.5,BIFFA MUNICIPAL LTD,BIF001
EFDC,26200,OTHER SUPPORT SERVICES,BUILDING MAINTENANCE,1010,15-May-19,150852,494.38,MITIE SECURITY LTD,MIT004
EFDC,78001,HRA SUPPORT SERVICES,LICENCES,3870,15-May-19,150333,14542.03,MEARS LTD,MEA002
EFDC,32220,OTHER SUPPORT SERVICES,AGENCY STAFF,0120,15-May-19,151391,3881.43,CAPSTONE PROPERTY RECRUITMENT LTD,CAP001
EFDC,37100,PLANNING SUPPORT SERVICES,AGENCY STAFF,0120,15-May-19,152047,574.56,REED SPECIALIST RECRUITMENT LTD,REE002
EFDC,CAPHR,HRA CAPITAL,ARCHITECTS FEES,E160,15-May-19,151968,10225.22,ECD ARCHITECTS LTD,ECD001
EFDC,26200,OTHER SUPPORT SERVICES,FIXED PLANT MAINTENANCE,1020,15-May-19,150854,951.4,MITIE SECURITY LTD,MIT004
EFDC,WC300,WASTE MANAGEMENT,CLEANSING CONTRACTORS,4320,15-May-19,151488,694.52,BIFFA MUNICIPAL LTD,BIF001
EFDC,33080,OTHER ACTIVITIES,ANNUAL SUPPORT /  LICENSES,3872,15-May-19,150859,1905.84,PHOENIX SOFTWARE LTD,PHO002
EFDC,26200,OTHER SUPPORT SERVICES,BUILDING MAINTENANCE,1010,15-May-19,150852,115.73,MITIE SECURITY LTD,MIT004
EFDC,33080,OTHER ACTIVITIES,FIXED NETWORK LINE COSTS,3520,15-May-19,151928,14807.63,BRITISH TELECOMMUNICATIONS PLC,BRI002
EFDC,26200,OTHER SUPPORT SERVICES,FIXED PLANT MAINTENANCE,1020,15-May-19,150854,2027.7,MITIE SECURITY LTD,MIT004
EFDC,WC100,WASTE MANAGEMENT,CLEANSING CONTRACTORS,4320,15-May-19,151488,143.2,BIFFA MUNICIPAL LTD,BIF001
EFDC,78001,HRA SUPPORT SERVICES,FUEL,2330,15-May-19,150248,2377.73,SHELL U.K. OIL PRODUCTS LIMITED,SHE007
EFDC,78001,HRA SUPPORT SERVICES,FUEL,2330,15-May-19,150247,828.37,SHELL U.K. OIL PRODUCTS LIMITED,SHE007
EFDC,33080,OTHER ACTIVITIES,FIXED NETWORK LINE COSTS,3520,15-May-19,151929,2081.52,BRITISH TELECOMMUNICATIONS PLC,BRI002
EFDC,CAPCM,COMMUNITIES CAPITAL,CAPITAL SOFTWARE,K340,15-May-19,151388,2365.02,ARGUS SOFTWARE (UK) LTD,ARG002
EFDC,78001,HRA SUPPORT SERVICES,LICENCES,3870,15-May-19,151982,14284.92,MEARS LTD,MEA002
EFDC,37600,PLANNING SUPPORT SERVICES,AGENCY STAFF,0120,15-May-19,151078,792,ADECCO UK LTD,ADE002
EFDC,36500,HRA SUPPORT SERVICES,AGENCY STAFF,0120,15-May-19,151787,1044,PRENTIS SOLUTIONS LIMITED,PRE027
EFDC,DC120,PLANNING REGULATORY SERVICES,CONSULTANTS FEES,3490,15-May-19,151952,4028.5,ARCADIS CONSULTING (UK) LTD,ARC011
EFDC,CAPHR,HRA CAPITAL,CLERK OF WORKS,E180,15-May-19,151495,1200,KEITH PEATTIE ASSOCIATES,KEI001
EFDC,CAPHR,HRA CAPITAL,CLERK OF WORKS,E180,15-May-19,151495,720,KEITH PEATTIE ASSOCIATES,KEI001
EFDC,GT100,LOCAL PLAN IMPLEMENTATION,CONSULTANTS FEES,3490,15-May-19,151144,1666,GUY NICHOLSON,NIC023
EFDC,32220,OTHER SUPPORT SERVICES,FEES & CHARGES,9210,15-May-19,151956,1150,BIRKETTS LLP,BIR001
EFDC,CH110,"MUSEUM, HERITAGE & CULTURE",EXHIBITIONS,3375,15-May-19,151980,7800,NATURAL HISTORY MUSEUM TRADING CO,NAT029
EFDC,CM102,CORPORATE ACTIVITIES,CONSULTANTS FEES,3490,15-May-19,152023,1000,IDEAGEN GAEL LIMITED,IDE003
EFDC,26200,OTHER SUPPORT SERVICES,FIXED PLANT MAINTENANCE,1020,15-May-19,152017,943.33,DDM FIRE SAFETY,DDM001
EFDC,PP111,LOCAL PLAN IMPLEMENTATION,CONSULTANTS FEES,3490,15-May-19,151773,1552.08,CLOUDCOURT LIMITED,CLO022
EFDC,32115,OTHER SUPPORT SERVICES,CONSULTANTS FEES,3490,15-May-19,150373,675,THE CTG GROUP LIMITED,CTG001
EFDC,35900,CONTRACT & TECH SUPPORT SERVIC,TRAINING EXPENSES,0310,15-May-19,150747,998,FAVERSHAM HOUSE LTD,FAV029
EFDC,PP111,LOCAL PLAN IMPLEMENTATION,PROFESSIONAL FEES,3420,15-May-19,152001,24110.1,BLOOM PROCUREMENT SERVICES LTD,BLO001
EFDC,36500,HRA SUPPORT SERVICES,AGENCY STAFF,0120,15-May-19,151055,1044,PRENTIS SOLUTIONS LIMITED,PRE027
EFDC,CAPHR,HRA CAPITAL,WORKS,C040,15-May-19,150207,2030,TUV SUD LIMITED,TUV001
EFDC,36500,HRA SUPPORT SERVICES,AGENCY STAFF,0120,15-May-19,151189,899,PRENTIS SOLUTIONS LIMITED,PRE027
EFDC,37500,PLANNING SUPPORT SERVICES,AGENCY STAFF,0120,15-May-19,150726,3835.65,LEE AND SIBLEY CONSTRUCTION & DEVELOPMENT LTD,LEE003
EFDC,CM102,CORPORATE ACTIVITIES,CONSULTANTS FEES,3490,15-May-19,150060,5000,PROJECT CENTRE LTD,PRO005
EFDC,CAPNB,NEIGHBOURHOODS CAPITAL,CONSULTANCY FEES,L049,15-May-19,151487,2250,THE SPORTS CONSULTANCY LTD,SPO008
EFDC,PS100,CAR PARKING,PARKING CONTRACTOR,4350,15-May-19,150297,18046.21,NSL LIMITED,NSL001
EFDC,EH142,ENVIRONMENTAL HEALTH,PROFESSIONAL FEES,3420,15-May-19,150759,3250,STEWART HARRIS AGNEW PARTNERSHIP,STE004
EFDC,LT110,LOCAL TAXATION,PROFESSIONAL FEES,3420,15-May-19,151192,2199,ROSSENDALES,ROS002
EFDC,LT110,LOCAL TAXATION,PROFESSIONAL FEES,3420,15-May-19,151192,75,ROSSENDALES,ROS002
EFDC,LT110,LOCAL TAXATION,PROFESSIONAL FEES,3420,15-May-19,151192,-150,ROSSENDALES,ROS002
EFDC,LT110,LOCAL TAXATION,PROFESSIONAL FEES,3420,15-May-19,151192,150,ROSSENDALES,ROS002
EFDC,GT100,LOCAL PLAN IMPLEMENTATION,EQUIPMENT - NEW,3010,15-May-19,150350,4444.89,RAINBOW OFFICE DESIGN LIMITED,RAI004
EFDC,34160,HOUSING PROP SUPPORT SERVICES,CONSULTANTS FEES,3490,15-May-19,152008,3375,CL COMMUNICATIONS,CLC001
EFDC,32060,OTHER SUPPORT SERVICES,CONSULTANTS FEES,3490,15-May-19,150435,1300,11KBW,11K001
EFDC,57100,HRA SUPPORT SERVICES,AGENCY STAFF,0120,15-May-19,151133,3250,GREENACRE RECRUITMENT,GRE029
EFDC,WC200,WASTE MANAGEMENT,CLEANSING CONTRACTORS,4320,15-May-19,150691,4317,LOCAL GREEN POINTS LLP,GRE020
EFDC,GT100,LOCAL PLAN IMPLEMENTATION,CONSULTANTS FEES,3490,15-May-19,151449,2500,FRAME PROJECTS LIMITED,FRA001
EFDC,DC120,PLANNING REGULATORY SERVICES,CONSULTANTS FEES,3490,13-May-19,147896,4028.5,ARCADIS CONSULTING (UK) LTD,ARC011
EFDC,CAPCM,COMMUNITIES CAPITAL,WORKS,E040,08-May-19,151479,17023.75,W H CONSTRUCTION LTD,CON014
EFDC,26200,OTHER SUPPORT SERVICES,BUILDING MAINTENANCE,1010,08-May-19,151407,85.38,ESSEX LIFT SERVICES LTD,ESS032
EFDC,26200,OTHER SUPPORT SERVICES,BUILDING MAINTENANCE,1010,08-May-19,151407,85.38,ESSEX LIFT SERVICES LTD,ESS032
EFDC,26200,OTHER SUPPORT SERVICES,BUILDING MAINTENANCE,1010,08-May-19,151407,85.38,ESSEX LIFT SERVICES LTD,ESS032
EFDC,RM100,RESPONSIVE & VOID REPAIRS,BUILDING MAINTENANCE,1010,08-May-19,150316,762.85,GRACELANDS COMPLETE MAINTENANCE SERVICES LTD,GRA007
EFDC,32115,OTHER SUPPORT SERVICES,CONSULTANTS FEES,3490,08-May-19,150347,659,CMS TRAINING LTD,CMS001
EFDC,34160,HOUSING PROP SUPPORT SERVICES,AGENCY STAFF,0120,08-May-19,151414,662.76,REED SPECIALIST RECRUITMENT LTD,REE002
EFDC,CAPRS,RESOURCES CAPITAL,CAPITAL SOFTWARE,K340,08-May-19,151406,3626.9,ESRI (UK) LTD,ESR001
EFDC,UO120,LAND & PROPERTY,SECURITY,1650,08-May-19,151420,2550,T.S.S. (TOTAL SECURITY SERVICES) LTD,TSS001
EFDC,RM400,PLANNED & CYCLICAL MAINTENANCE,BUILDING MAINTENANCE,1010,08-May-19,151407,768.45,ESSEX LIFT SERVICES LTD,ESS032
EFDC,35300,CONTRACT & TECH SUPPORT SERVIC,EQUIPMENT - NEW,3010,08-May-19,150789,1810,ERNEST DOE & SONS LTD,ERN001
EFDC,35300,CONTRACT & TECH SUPPORT SERVIC,VEHICLE HIRE,2620,08-May-19,150304,544.27,ERNEST DOE & SONS LTD,ERN001
EFDC,35300,CONTRACT & TECH SUPPORT SERVIC,VEHICLE HIRE,2620,08-May-19,150310,544.47,ERNEST DOE & SONS LTD,ERN001
EFDC,CH113,"MUSEUM, HERITAGE & CULTURE",EXHIBITIONS,3375,08-May-19,149777,3651,BB-INTERPRETIVE PRODUCTS LTD,BBI001
EFDC,35300,CONTRACT & TECH SUPPORT SERVIC,MATERIALS,3080,08-May-19,150789,100,ERNEST DOE & SONS LTD,ERN001
EFDC,YB200,SUPERVISION/MANAGEMENT SPECIAL,ELECTRICITY,1120,08-May-19,150916,22.59,EDF ENERGY,EDF001
EFDC,CAPCM,COMMUNITIES CAPITAL,WORKS,A040,08-May-19,151490,8077,GRACELANDS COMPLETE MAINTENANCE SERVICES LTD,GRA007
EFDC,37600,PLANNING SUPPORT SERVICES,AGENCY STAFF,0120,08-May-19,150694,1312.5,VIVID RESOURCING LTD,VIV002
EFDC,RM100,RESPONSIVE & VOID REPAIRS,BUILDING MAINTENANCE,1010,08-May-19,149222,3274.04,GRACELANDS COMPLETE MAINTENANCE SERVICES LTD,GRA007
EFDC,37600,PLANNING SUPPORT SERVICES,AGENCY STAFF,0120,08-May-19,150695,1295,VIVID RESOURCING LTD,VIV002
EFDC,CAPCM,COMMUNITIES CAPITAL,WORKS,A040,08-May-19,151490,95650,GRACELANDS COMPLETE MAINTENANCE SERVICES LTD,GRA007
EFDC,35300,CONTRACT & TECH SUPPORT SERVIC,AGENCY STAFF,0120,08-May-19,150731,1191.95,BERRY RECRUITMENT LTD,BER001
EFDC,CAPCM,COMMUNITIES CAPITAL,WORKS,A040,08-May-19,151490,8814.08,GRACELANDS COMPLETE MAINTENANCE SERVICES LTD,GRA007
EFDC,YB500,SUPERVISION/MANAGEMENT SPECIAL,ELECTRICITY,1120,08-May-19,150916,40,EDF ENERGY,EDF001
EFDC,CH110,"MUSEUM, HERITAGE & CULTURE",BANKING AND CASH COLLECTION,3440,08-May-19,150061,36.29,CONTRACT SECURITY SERVICES LTD,CON033
EFDC,RM100,RESPONSIVE & VOID REPAIRS,BUILDING MAINTENANCE,1010,08-May-19,150315,572.19,GRACELANDS COMPLETE MAINTENANCE SERVICES LTD,GRA007
EFDC,YB620,SUPERVISION/MANAGEMENT SPECIAL,BANKING AND CASH COLLECTION,3440,08-May-19,150061,72.58,CONTRACT SECURITY SERVICES LTD,CON033
EFDC,CAPHR,HRA CAPITAL,VOIDS WORKS,A045,08-May-19,151491,2480,GRACELANDS COMPLETE MAINTENANCE SERVICES LTD,GRA007
EFDC,TO100,LAND & PROPERTY,BANKING AND CASH COLLECTION,3440,08-May-19,150061,72.58,CONTRACT SECURITY SERVICES LTD,CON033
EFDC,33020,OTHER ACTIVITIES,BANKING AND CASH COLLECTION,3440,08-May-19,150061,725.83,CONTRACT SECURITY SERVICES LTD,CON033
EFDC,33020,OTHER ACTIVITIES,BANKING AND CASH COLLECTION,3440,08-May-19,150061,362.92,CONTRACT SECURITY SERVICES LTD,CON033
EFDC,34110,HOUSING PROP SUPPORT SERVICES,BANKING AND CASH COLLECTION,3440,08-May-19,150061,72.59,CONTRACT SECURITY SERVICES LTD,CON033
EFDC,35300,CONTRACT & TECH SUPPORT SERVIC,AGENCY STAFF,0120,08-May-19,150744,1264.2,HL SERVICES (LONDON) LTD,HLS001
EFDC,37600,PLANNING SUPPORT SERVICES,AGENCY STAFF,0120,08-May-19,150120,1312.5,VIVID RESOURCING LTD,VIV002
EFDC,PH130,PRIVATE SECTOR HOUSING,OTHER CONTRACTORS,4340,08-May-19,150704,2336.32,THE KEY SAFE COMPANY,KEY002
EFDC,33080,OTHER ACTIVITIES,ANNUAL SUPPORT /  LICENSES,3872,08-May-19,150039,8021.59,AVR INTERNATIONAL LIMITED,AVR001
EFDC,PS100,CAR PARKING,ELECTRICITY,1120,08-May-19,150916,21.65,EDF ENERGY,EDF001
EFDC,33080,OTHER ACTIVITIES,ANNUAL SUPPORT /  LICENSES,3872,08-May-19,150484,619.14,NORTHGATE PUBLIC SERVICES (UK) LTD,NOR018
EFDC,PS100,CAR PARKING,ELECTRICITY,1120,08-May-19,150916,127.52,EDF ENERGY,EDF001
EFDC,RS301,NORTH WEALD CENTRE,EQUIPMENT - NEW,3010,08-May-19,150132,1040,NUCO TRAINING LTD,NUC001
EFDC,PP111,LOCAL PLAN IMPLEMENTATION,CONSULTANTS FEES,3490,08-May-19,150369,6230,OPINION RESEARCH SERVICES,OPI001
EFDC,RM100,RESPONSIVE & VOID REPAIRS,BUILDING MAINTENANCE,1010,08-May-19,150364,2635.1,TOWER ASPHALT LTD,TOW001
EFDC,78001,HRA SUPPORT SERVICES,MATERIALS,3080,08-May-19,150803,671.2,TRAVIS PERKINS TRADING COMPANY LTD,TRA001
EFDC,YB500,SUPERVISION/MANAGEMENT SPECIAL,ELECTRICITY,1120,08-May-19,150916,28.07,EDF ENERGY,EDF001
EFDC,36650,HRA SUPPORT SERVICES,AGENCY STAFF,0120,08-May-19,150684,2500,THE OYSTER PARTNERSHIP LTD,OYS001
EFDC,33080,OTHER ACTIVITIES,FIXED NETWORK LINE COSTS,3520,08-May-19,151472,1411.5,BRITISH TELECOMMUNICATIONS PLC,BRI002
EFDC,26200,OTHER SUPPORT SERVICES,BUILDING MAINTENANCE,1010,08-May-19,151403,1053.13,M J ANDERSON MAINTENANCE CONTRACTORS LTD,AND003
EFDC,YA100,SUPERVISION/MANAGEMENT GENERAL,CONSULTANTS FEES,3490,08-May-19,150222,3000,S D SMITH CONSULTANCY LTD,SDS002
EFDC,37600,PLANNING SUPPORT SERVICES,AGENCY STAFF,0120,08-May-19,149721,2607.5,VIVID RESOURCING LTD,VIV002
EFDC,26200,OTHER SUPPORT SERVICES,BUILDING MAINTENANCE,1010,08-May-19,151403,8.24,M J ANDERSON MAINTENANCE CONTRACTORS LTD,AND003
EFDC,37600,PLANNING SUPPORT SERVICES,AGENCY STAFF,0120,08-May-19,149722,1312.5,VIVID RESOURCING LTD,VIV002
EFDC,DC120,PLANNING REGULATORY SERVICES,PUBLICITY,3360,08-May-19,150772,773.5,NEWSQUEST MEDIA GROUP,NEW002
EFDC,PS100,CAR PARKING,ELECTRICITY,1120,08-May-19,150916,80.77,EDF ENERGY,EDF001
EFDC,26200,OTHER SUPPORT SERVICES,BUILDING MAINTENANCE,1010,08-May-19,150791,2320,HAZLEMERE WINDOW CO LTD,HAZ002
EFDC,33080,OTHER ACTIVITIES,EQUIPMENT - MAINTENANCE,3030,08-May-19,150165,535.7,CAPITA BUSINESS SERVICES LTD,CAP004
EFDC,32060,OTHER SUPPORT SERVICES,BOOKS & PUBLICATIONS,3350,08-May-19,149709,283.45,LEXISNEXIS,LEX003
EFDC,CAPCM,COMMUNITIES CAPITAL,WORKS,E040,08-May-19,151479,16921.5,W H CONSTRUCTION LTD,CON014
EFDC,32060,OTHER SUPPORT SERVICES,BOOKS & PUBLICATIONS,3350,08-May-19,149709,293.55,LEXISNEXIS,LEX003
EFDC,32121,OTHER SUPPORT SERVICES,PROFESSIONAL FEES,3420,08-May-19,150375,1968,SOLACE IN BUSINESS LTD,SOL003
EFDC,CAPHR,HRA CAPITAL,WORKS,A040,08-May-19,151477,24288.66,FLOWLINE (BUILDERS) LTD,FLO003
EFDC,CAPHR,HRA CAPITAL,VOIDS WORKS,A045,08-May-19,151477,10320,FLOWLINE (BUILDERS) LTD,FLO003
EFDC,33010,OTHER ACTIVITIES,SUBSCRIPTIONS,3730,08-May-19,149745,2563,SPIKES CAVELL ANALYTIC LIMITED,SPI001
EFDC,26200,OTHER SUPPORT SERVICES,FIXED PLANT MAINTENANCE,1020,08-May-19,151403,66.87,M J ANDERSON MAINTENANCE CONTRACTORS LTD,AND003
EFDC,26200,OTHER SUPPORT SERVICES,FIXED PLANT MAINTENANCE,1020,08-May-19,151403,96.48,M J ANDERSON MAINTENANCE CONTRACTORS LTD,AND003
EFDC,26200,OTHER SUPPORT SERVICES,BUILDING MAINTENANCE,1010,08-May-19,150232,5300,B B & C FENCING,FEN003
EFDC,YB200,SUPERVISION/MANAGEMENT SPECIAL,ELECTRICITY,1120,08-May-19,150916,10.49,EDF ENERGY,EDF001
EFDC,CAPHR,HRA CAPITAL,WORKS,A040,08-May-19,151477,2638,FLOWLINE (BUILDERS) LTD,FLO003
EFDC,CAPHR,HRA CAPITAL,VOIDS WORKS,A045,08-May-19,151491,194446.94,GRACELANDS COMPLETE MAINTENANCE SERVICES LTD,GRA007
EFDC,YB120,SUPERVISION/MANAGEMENT SPECIAL,FUEL,2330,08-May-19,148770,109.46,SHELL U.K. OIL PRODUCTS LIMITED,SHE007
EFDC,35009,CONTRACT & TECH SUPPORT SERVIC,ELECTRICITY,1120,08-May-19,150916,15.53,EDF ENERGY,EDF001
EFDC,PS100,CAR PARKING,ELECTRICITY,1120,08-May-19,150916,154.66,EDF ENERGY,EDF001
EFDC,43310,CONTRACT & TECH SUPPORT SERVIC,AGENCY STAFF,0120,08-May-19,150353,620,ADECCO UK LTD,ADE002
EFDC,PS100,CAR PARKING,ELECTRICITY,1120,08-May-19,150916,5.29,EDF ENERGY,EDF001
EFDC,RM100,RESPONSIVE & VOID REPAIRS,BUILDING MAINTENANCE,1010,08-May-19,150212,542.93,M & J SERVICES LTD,SER009
EFDC,35009,CONTRACT & TECH SUPPORT SERVIC,ELECTRICITY,1120,08-May-19,150916,16.37,EDF ENERGY,EDF001
EFDC,26200,OTHER SUPPORT SERVICES,FIXED PLANT MAINTENANCE,1020,08-May-19,151407,320.62,ESSEX LIFT SERVICES LTD,ESS032
EFDC,37600,PLANNING SUPPORT SERVICES,AGENCY STAFF,0120,08-May-19,150363,792,ADECCO UK LTD,ADE002
EFDC,78001,HRA SUPPORT SERVICES,REFUSE REMOVAL,1640,08-May-19,150426,1394.4,HEATHERLAND LTD T/A LUNNON PLANT & WASTE SERV,HEA001
EFDC,78001,HRA SUPPORT SERVICES,FUEL,2330,08-May-19,148770,474.83,SHELL U.K. OIL PRODUCTS LIMITED,SHE007
EFDC,33080,OTHER ACTIVITIES,FIXED NETWORK LINE COSTS,3520,08-May-19,151471,3125.84,BRITISH TELECOMMUNICATIONS PLC,BRI002
EFDC,CAPHR,HRA CAPITAL,VOIDS WORKS,A045,08-May-19,151480,46438.71,W H CONSTRUCTION LTD,CON014
EFDC,RM100,RESPONSIVE & VOID REPAIRS,BUILDING MAINTENANCE,1010,08-May-19,150318,567.89,GRACELANDS COMPLETE MAINTENANCE SERVICES LTD,GRA007
EFDC,YB200,SUPERVISION/MANAGEMENT SPECIAL,ELECTRICITY,1120,08-May-19,150916,41.94,EDF ENERGY,EDF001
EFDC,33080,OTHER ACTIVITIES,ANNUAL SUPPORT /  LICENSES,3872,08-May-19,150165,16246.2,CAPITA BUSINESS SERVICES LTD,CAP004
EFDC,EH155,ENVIRONMENTAL HEALTH,FUEL,2330,08-May-19,148770,39.28,SHELL U.K. OIL PRODUCTS LIMITED,SHE007
EFDC,36700,HRA SUPPORT SERVICES,AGENCY STAFF,0120,08-May-19,151156,1538.86,VENTURE CONSTRUCTION SERVICES LTD,VEN002
EFDC,YA110,SUPERVISION/MANAGEMENT GENERAL,CONSULTANTS FEES,3490,08-May-19,150062,2025,CARTER JONAS,CAR020
EFDC,CAPHR,HRA CAPITAL,WORKS,C040,08-May-19,150808,1280,TUV SUD LIMITED,TUV001
EFDC,37500,PLANNING SUPPORT SERVICES,AGENCY STAFF,0120,08-May-19,149688,3389.75,LEE AND SIBLEY CONSTRUCTION & DEVELOPMENT LTD,LEE003
EFDC,GT100,LOCAL PLAN IMPLEMENTATION,CONSULTANTS FEES,3490,08-May-19,150483,6664,GUY NICHOLSON,NIC023
EFDC,CAPHR,HRA CAPITAL,WORKS,C040,08-May-19,150809,750,TUV SUD LIMITED,TUV001
EFDC,37600,PLANNING SUPPORT SERVICES,AGENCY STAFF,0120,08-May-19,150692,680,G2 RECRUITMENT SOLUTIONS,G2R001
EFDC,57100,HRA SUPPORT SERVICES,AGENCY STAFF,0120,08-May-19,151132,2600,GREENACRE RECRUITMENT,GRE029
EFDC,RM200,RESPONSIVE & VOID REPAIRS,BUILDING MAINTENANCE,1010,08-May-19,150444,2585,JPS GROUP SERVICES LIMITED,JPS002
EFDC,RM200,RESPONSIVE & VOID REPAIRS,BUILDING MAINTENANCE,1010,08-May-19,150443,2000,JPS GROUP SERVICES LIMITED,JPS002
EFDC,CAPRS,RESOURCES CAPITAL,WORKS,B040,08-May-19,151405,2800,DDM FIRE SAFETY,DDM001
EFDC,23140,ACCOMMODATION,ELECTRICITY,1120,01-May-19,151029,628.27,BRITISH GAS,BRI040
EFDC,23130,ACCOMMODATION,ELECTRICITY,1120,01-May-19,151029,289.01,BRITISH GAS,BRI040
EFDC,YB110,SUPERVISION/MANAGEMENT SPECIAL,ELECTRICITY,1120,01-May-19,151029,16.98,BRITISH GAS,BRI040
EFDC,YB110,SUPERVISION/MANAGEMENT SPECIAL,ELECTRICITY,1120,01-May-19,151029,10.51,BRITISH GAS,BRI040
EFDC,YB110,SUPERVISION/MANAGEMENT SPECIAL,ELECTRICITY,1120,01-May-19,151029,6.23,BRITISH GAS,BRI040
EFDC,CAPCM,COMMUNITIES CAPITAL,VOIDS WORKS,A045,01-May-19,151086,38634.72,GRACELANDS COMPLETE MAINTENANCE SERVICES LTD,GRA007
EFDC,YB110,SUPERVISION/MANAGEMENT SPECIAL,ELECTRICITY,1120,01-May-19,151029,9.3,BRITISH GAS,BRI040
EFDC,YB110,SUPERVISION/MANAGEMENT SPECIAL,ELECTRICITY,1120,01-May-19,151029,27.99,BRITISH GAS,BRI040
EFDC,WC200,WASTE MANAGEMENT,CLEANSING CONTRACTORS,4320,01-May-19,150873,32952.9,BIFFA MUNICIPAL LTD,BIF001
EFDC,YB110,SUPERVISION/MANAGEMENT SPECIAL,ELECTRICITY,1120,01-May-19,151029,30.28,BRITISH GAS,BRI040
EFDC,YB110,SUPERVISION/MANAGEMENT SPECIAL,ELECTRICITY,1120,01-May-19,151029,13.37,BRITISH GAS,BRI040
EFDC,YB110,SUPERVISION/MANAGEMENT SPECIAL,ELECTRICITY,1120,01-May-19,151029,10.52,BRITISH GAS,BRI040
EFDC,CAPHR,HRA CAPITAL,WORKS,A040,01-May-19,151162,24021.29,GRACELANDS COMPLETE MAINTENANCE SERVICES LTD,GRA007
EFDC,YB110,SUPERVISION/MANAGEMENT SPECIAL,ELECTRICITY,1120,01-May-19,151029,12.11,BRITISH GAS,BRI040
EFDC,YB110,SUPERVISION/MANAGEMENT SPECIAL,ELECTRICITY,1120,01-May-19,151029,22.77,BRITISH GAS,BRI040
EFDC,YB110,SUPERVISION/MANAGEMENT SPECIAL,ELECTRICITY,1120,01-May-19,151029,17.21,BRITISH GAS,BRI040
EFDC,27050,ACCOMMODATION,ELECTRICITY,1120,01-May-19,151029,225.57,BRITISH GAS,BRI040
EFDC,33055,OTHER ACTIVITIES,AGENCY STAFF,0120,01-May-19,151141,830.87,MORGAN HUNT UK LTD,MOR001
EFDC,YB500,SUPERVISION/MANAGEMENT SPECIAL,ELECTRICITY,1120,01-May-19,151029,6.51,BRITISH GAS,BRI040
EFDC,YB110,SUPERVISION/MANAGEMENT SPECIAL,ELECTRICITY,1120,01-May-19,151029,18.62,BRITISH GAS,BRI040
EFDC,YB620,SUPERVISION/MANAGEMENT SPECIAL,ELECTRICITY,1120,01-May-19,151029,375.47,BRITISH GAS,BRI040
EFDC,YB110,SUPERVISION/MANAGEMENT SPECIAL,ELECTRICITY,1120,01-May-19,151029,15.44,BRITISH GAS,BRI040
EFDC,YB110,SUPERVISION/MANAGEMENT SPECIAL,ELECTRICITY,1120,01-May-19,151029,11.09,BRITISH GAS,BRI040
EFDC,WC200,WASTE MANAGEMENT,CLEANSING CONTRACTORS,4320,01-May-19,150873,11951.99,BIFFA MUNICIPAL LTD,BIF001
EFDC,YB110,SUPERVISION/MANAGEMENT SPECIAL,ELECTRICITY,1120,01-May-19,151029,13.17,BRITISH GAS,BRI040
EFDC,35300,CONTRACT & TECH SUPPORT SERVIC,ELECTRICITY,1120,01-May-19,151029,189.39,BRITISH GAS,BRI040
EFDC,EH112,LAND DRAINAGE/SEWERAGE,ELECTRICITY,1120,01-May-19,151029,177.41,BRITISH GAS,BRI040
EFDC,YB110,SUPERVISION/MANAGEMENT SPECIAL,ELECTRICITY,1120,01-May-19,151029,25.09,BRITISH GAS,BRI040
EFDC,YB110,SUPERVISION/MANAGEMENT SPECIAL,ELECTRICITY,1120,01-May-19,151029,13.57,BRITISH GAS,BRI040
EFDC,YB110,SUPERVISION/MANAGEMENT SPECIAL,ELECTRICITY,1120,01-May-19,151029,9.37,BRITISH GAS,BRI040
EFDC,YB110,SUPERVISION/MANAGEMENT SPECIAL,ELECTRICITY,1120,01-May-19,151029,11.26,BRITISH GAS,BRI040
EFDC,YB110,SUPERVISION/MANAGEMENT SPECIAL,ELECTRICITY,1120,01-May-19,151029,15.64,BRITISH GAS,BRI040
EFDC,27150,"COMMUNITY, HEALTH & WELLBEING",ELECTRICITY,1120,01-May-19,151029,-520.83,BRITISH GAS,BRI040
EFDC,YB110,SUPERVISION/MANAGEMENT SPECIAL,ELECTRICITY,1120,01-May-19,151029,60.5,BRITISH GAS,BRI040
EFDC,YB110,SUPERVISION/MANAGEMENT SPECIAL,ELECTRICITY,1120,01-May-19,151029,10.34,BRITISH GAS,BRI040
EFDC,YB110,SUPERVISION/MANAGEMENT SPECIAL,ELECTRICITY,1120,01-May-19,151029,103.08,BRITISH GAS,BRI040
EFDC,YB110,SUPERVISION/MANAGEMENT SPECIAL,ELECTRICITY,1120,01-May-19,151029,12.09,BRITISH GAS,BRI040
EFDC,YB110,SUPERVISION/MANAGEMENT SPECIAL,ELECTRICITY,1120,01-May-19,151029,20.05,BRITISH GAS,BRI040
EFDC,YB110,SUPERVISION/MANAGEMENT SPECIAL,ELECTRICITY,1120,01-May-19,151029,93.88,BRITISH GAS,BRI040
EFDC,YB110,SUPERVISION/MANAGEMENT SPECIAL,ELECTRICITY,1120,01-May-19,151029,17.71,BRITISH GAS,BRI040
EFDC,CAPCM,COMMUNITIES CAPITAL,VOIDS WORKS,A045,01-May-19,151086,16483.84,GRACELANDS COMPLETE MAINTENANCE SERVICES LTD,GRA007
EFDC,YB110,SUPERVISION/MANAGEMENT SPECIAL,ELECTRICITY,1120,01-May-19,151029,6.68,BRITISH GAS,BRI040
EFDC,TI190,LAND & PROPERTY,ELECTRICITY,1120,01-May-19,151029,63.16,BRITISH GAS,BRI040
EFDC,YB110,SUPERVISION/MANAGEMENT SPECIAL,ELECTRICITY,1120,01-May-19,151029,14.9,BRITISH GAS,BRI040
EFDC,UO130,LAND & PROPERTY,ELECTRICITY,1120,01-May-19,151029,18.88,BRITISH GAS,BRI040
EFDC,YB110,SUPERVISION/MANAGEMENT SPECIAL,ELECTRICITY,1120,01-May-19,151029,101.73,BRITISH GAS,BRI040
EFDC,UO130,LAND & PROPERTY,ELECTRICITY,1120,01-May-19,151029,13.66,BRITISH GAS,BRI040
EFDC,YB110,SUPERVISION/MANAGEMENT SPECIAL,ELECTRICITY,1120,01-May-19,151029,9.38,BRITISH GAS,BRI040
EFDC,RM300,PLANNED & CYCLICAL MAINTENANCE,BUILDING MAINTENANCE,1010,01-May-19,151190,102717.72,GRACELANDS COMPLETE MAINTENANCE SERVICES LTD,GRA007
EFDC,YB110,SUPERVISION/MANAGEMENT SPECIAL,ELECTRICITY,1120,01-May-19,151029,11.26,BRITISH GAS,BRI040
EFDC,YB110,SUPERVISION/MANAGEMENT SPECIAL,ELECTRICITY,1120,01-May-19,151029,18.75,BRITISH GAS,BRI040
EFDC,YB110,SUPERVISION/MANAGEMENT SPECIAL,ELECTRICITY,1120,01-May-19,151029,14.54,BRITISH GAS,BRI040
EFDC,WC300,WASTE MANAGEMENT,CLEANSING CONTRACTORS,4320,01-May-19,150873,364,BIFFA MUNICIPAL LTD,BIF001
EFDC,CH110,"MUSEUM, HERITAGE & CULTURE",ELECTRICITY,1120,01-May-19,151029,363.59,BRITISH GAS,BRI040
EFDC,YB110,SUPERVISION/MANAGEMENT SPECIAL,ELECTRICITY,1120,01-May-19,151029,10.77,BRITISH GAS,BRI040
EFDC,EH160,OTHER ACTIVITIES,ELECTRICITY,1120,01-May-19,151029,27.95,BRITISH GAS,BRI040
EFDC,27150,"COMMUNITY, HEALTH & WELLBEING",ELECTRICITY,1120,01-May-19,151029,-715.13,BRITISH GAS,BRI040
EFDC,YB110,SUPERVISION/MANAGEMENT SPECIAL,ELECTRICITY,1120,01-May-19,151029,51.48,BRITISH GAS,BRI040
EFDC,27150,"COMMUNITY, HEALTH & WELLBEING",ELECTRICITY,1120,01-May-19,151029,555.01,BRITISH GAS,BRI040
EFDC,RS302,NORTH WEALD CENTRE,ELECTRICITY,1120,01-May-19,151029,6.75,BRITISH GAS,BRI040
EFDC,YB110,SUPERVISION/MANAGEMENT SPECIAL,ELECTRICITY,1120,01-May-19,151029,14.4,BRITISH GAS,BRI040
EFDC,27150,"COMMUNITY, HEALTH & WELLBEING",ELECTRICITY,1120,01-May-19,151029,715.13,BRITISH GAS,BRI040
EFDC,YB110,SUPERVISION/MANAGEMENT SPECIAL,ELECTRICITY,1120,01-May-19,151029,13.94,BRITISH GAS,BRI040
EFDC,YB110,SUPERVISION/MANAGEMENT SPECIAL,ELECTRICITY,1120,01-May-19,151029,16.5,BRITISH GAS,BRI040
EFDC,27150,"COMMUNITY, HEALTH & WELLBEING",ELECTRICITY,1120,01-May-19,151029,845.37,BRITISH GAS,BRI040
EFDC,YB110,SUPERVISION/MANAGEMENT SPECIAL,ELECTRICITY,1120,01-May-19,151029,11.23,BRITISH GAS,BRI040
EFDC,YB110,SUPERVISION/MANAGEMENT SPECIAL,ELECTRICITY,1120,01-May-19,151029,10.39,BRITISH GAS,BRI040
EFDC,YB110,SUPERVISION/MANAGEMENT SPECIAL,ELECTRICITY,1120,01-May-19,151029,118.5,BRITISH GAS,BRI040
EFDC,EH160,OTHER ACTIVITIES,ELECTRICITY,1120,01-May-19,151029,85.43,BRITISH GAS,BRI040
EFDC,EH160,OTHER ACTIVITIES,ELECTRICITY,1120,01-May-19,151029,36.5,BRITISH GAS,BRI040
EFDC,EH160,OTHER ACTIVITIES,ELECTRICITY,1120,01-May-19,151029,57.71,BRITISH GAS,BRI040
EFDC,EH160,OTHER ACTIVITIES,ELECTRICITY,1120,01-May-19,151029,183.95,BRITISH GAS,BRI040
EFDC,YB110,SUPERVISION/MANAGEMENT SPECIAL,ELECTRICITY,1120,01-May-19,151029,22.52,BRITISH GAS,BRI040
EFDC,YB110,SUPERVISION/MANAGEMENT SPECIAL,ELECTRICITY,1120,01-May-19,151029,14.87,BRITISH GAS,BRI040
EFDC,YB110,SUPERVISION/MANAGEMENT SPECIAL,ELECTRICITY,1120,01-May-19,151029,23.18,BRITISH GAS,BRI040
EFDC,YB110,SUPERVISION/MANAGEMENT SPECIAL,ELECTRICITY,1120,01-May-19,151029,14.72,BRITISH GAS,BRI040
EFDC,YB110,SUPERVISION/MANAGEMENT SPECIAL,ELECTRICITY,1120,01-May-19,151029,15.7,BRITISH GAS,BRI040
EFDC,36650,HRA SUPPORT SERVICES,AGENCY STAFF,0120,01-May-19,151143,811.49,MORGAN HUNT UK LTD,MOR001
EFDC,RS301,NORTH WEALD CENTRE,ELECTRICITY,1120,01-May-19,151029,13.21,BRITISH GAS,BRI040
EFDC,YB110,SUPERVISION/MANAGEMENT SPECIAL,ELECTRICITY,1120,01-May-19,151029,10.46,BRITISH GAS,BRI040
EFDC,UO130,LAND & PROPERTY,ELECTRICITY,1120,01-May-19,151029,22.67,BRITISH GAS,BRI040
EFDC,23140,ACCOMMODATION,ELECTRICITY,1120,01-May-19,151029,514.67,BRITISH GAS,BRI040
EFDC,YB110,SUPERVISION/MANAGEMENT SPECIAL,ELECTRICITY,1120,01-May-19,151029,116.37,BRITISH GAS,BRI040
EFDC,YB110,SUPERVISION/MANAGEMENT SPECIAL,ELECTRICITY,1120,01-May-19,151029,15.7,BRITISH GAS,BRI040
EFDC,YB110,SUPERVISION/MANAGEMENT SPECIAL,ELECTRICITY,1120,01-May-19,151029,10.99,BRITISH GAS,BRI040
EFDC,RM100,RESPONSIVE & VOID REPAIRS,BUILDING MAINTENANCE,1010,01-May-19,146349,2373.63,GRACELANDS COMPLETE MAINTENANCE SERVICES LTD,GRA007
EFDC,CAPCM,COMMUNITIES CAPITAL,VOIDS WORKS,A045,01-May-19,151086,44244.39,GRACELANDS COMPLETE MAINTENANCE SERVICES LTD,GRA007
EFDC,YB110,SUPERVISION/MANAGEMENT SPECIAL,ELECTRICITY,1120,01-May-19,151029,120.77,BRITISH GAS,BRI040
EFDC,36650,HRA SUPPORT SERVICES,AGENCY STAFF,0120,01-May-19,149723,2500,THE OYSTER PARTNERSHIP LTD,OYS001
EFDC,FD100,LAND DRAINAGE/SEWERAGE,ELECTRICITY,1120,01-May-19,151029,6.34,BRITISH GAS,BRI040
EFDC,YB110,SUPERVISION/MANAGEMENT SPECIAL,ELECTRICITY,1120,01-May-19,151029,19.37,BRITISH GAS,BRI040
EFDC,YB110,SUPERVISION/MANAGEMENT SPECIAL,ELECTRICITY,1120,01-May-19,151029,19.82,BRITISH GAS,BRI040
EFDC,27150,"COMMUNITY, HEALTH & WELLBEING",ELECTRICITY,1120,01-May-19,151029,-626.69,BRITISH GAS,BRI040
EFDC,27110,ACCOMMODATION,ELECTRICITY,1120,01-May-19,151029,75.07,BRITISH GAS,BRI040
EFDC,YB110,SUPERVISION/MANAGEMENT SPECIAL,ELECTRICITY,1120,01-May-19,151029,6.23,BRITISH GAS,BRI040
EFDC,CAPCM,COMMUNITIES CAPITAL,VOIDS WORKS,A045,01-May-19,151086,13417.71,GRACELANDS COMPLETE MAINTENANCE SERVICES LTD,GRA007
EFDC,27150,"COMMUNITY, HEALTH & WELLBEING",ELECTRICITY,1120,01-May-19,151029,-630.35,BRITISH GAS,BRI040
EFDC,YB110,SUPERVISION/MANAGEMENT SPECIAL,ELECTRICITY,1120,01-May-19,151029,13.6,BRITISH GAS,BRI040
EFDC,YB110,SUPERVISION/MANAGEMENT SPECIAL,ELECTRICITY,1120,01-May-19,151029,13.29,BRITISH GAS,BRI040
EFDC,YB110,SUPERVISION/MANAGEMENT SPECIAL,ELECTRICITY,1120,01-May-19,151029,42.03,BRITISH GAS,BRI040
EFDC,WC200,WASTE MANAGEMENT,CLEANSING CONTRACTORS,4320,01-May-19,150873,592.37,BIFFA MUNICIPAL LTD,BIF001
EFDC,YB110,SUPERVISION/MANAGEMENT SPECIAL,ELECTRICITY,1120,01-May-19,151029,11.73,BRITISH GAS,BRI040
EFDC,WC200,WASTE MANAGEMENT,CLEANSING CONTRACTORS,4320,01-May-19,150873,3603.65,BIFFA MUNICIPAL LTD,BIF001
EFDC,27150,"COMMUNITY, HEALTH & WELLBEING",ELECTRICITY,1120,01-May-19,151029,362.41,BRITISH GAS,BRI040
EFDC,27150,"COMMUNITY, HEALTH & WELLBEING",ELECTRICITY,1120,01-May-19,151029,866.67,BRITISH GAS,BRI040
EFDC,27150,"COMMUNITY, HEALTH & WELLBEING",ELECTRICITY,1120,01-May-19,151029,520.83,BRITISH GAS,BRI040
EFDC,27150,"COMMUNITY, HEALTH & WELLBEING",ELECTRICITY,1120,01-May-19,151029,-1009.79,BRITISH GAS,BRI040
EFDC,27150,"COMMUNITY, HEALTH & WELLBEING",ELECTRICITY,1120,01-May-19,151029,-362.41,BRITISH GAS,BRI040
EFDC,YB110,SUPERVISION/MANAGEMENT SPECIAL,ELECTRICITY,1120,01-May-19,151029,13.68,BRITISH GAS,BRI040
EFDC,YB110,SUPERVISION/MANAGEMENT SPECIAL,ELECTRICITY,1120,01-May-19,151029,11.07,BRITISH GAS,BRI040
EFDC,YB110,SUPERVISION/MANAGEMENT SPECIAL,ELECTRICITY,1120,01-May-19,151029,131.77,BRITISH GAS,BRI040
EFDC,27150,"COMMUNITY, HEALTH & WELLBEING",ELECTRICITY,1120,01-May-19,151029,1003.96,BRITISH GAS,BRI040
EFDC,WC200,WASTE MANAGEMENT,CLEANSING CONTRACTORS,4320,01-May-19,150873,18272.17,BIFFA MUNICIPAL LTD,BIF001
EFDC,YB110,SUPERVISION/MANAGEMENT SPECIAL,ELECTRICITY,1120,01-May-19,151029,51.42,BRITISH GAS,BRI040
EFDC,YB110,SUPERVISION/MANAGEMENT SPECIAL,ELECTRICITY,1120,01-May-19,151029,51.43,BRITISH GAS,BRI040
EFDC,27110,ACCOMMODATION,ELECTRICITY,1120,01-May-19,151029,93.89,BRITISH GAS,BRI040
EFDC,27110,ACCOMMODATION,ELECTRICITY,1120,01-May-19,151029,44.67,BRITISH GAS,BRI040
EFDC,YB110,SUPERVISION/MANAGEMENT SPECIAL,ELECTRICITY,1120,01-May-19,151029,12.85,BRITISH GAS,BRI040
EFDC,YB110,SUPERVISION/MANAGEMENT SPECIAL,ELECTRICITY,1120,01-May-19,151029,19.03,BRITISH GAS,BRI040
EFDC,YB500,SUPERVISION/MANAGEMENT SPECIAL,ELECTRICITY,1120,01-May-19,151029,6.75,BRITISH GAS,BRI040
EFDC,33080,OTHER ACTIVITIES,EQUIPMENT - MAINTENANCE,3030,01-May-19,149618,1322.1,BANKING AUTOMATION LTD,BAN011
EFDC,33080,OTHER ACTIVITIES,ANNUAL SUPPORT /  LICENSES,3872,01-May-19,150035,6555.34,SEC-1 LIMITED,SEC002
EFDC,33080,OTHER ACTIVITIES,ANNUAL SUPPORT /  LICENSES,3872,01-May-19,150213,10473.6,HOOTSUITE MEDIA INC,HOO001
EFDC,EI131,LOCAL PLAN IMPLEMENTATION,REFUSE REMOVAL,1640,01-May-19,150873,104.02,BIFFA MUNICIPAL LTD,BIF001
EFDC,YB110,SUPERVISION/MANAGEMENT SPECIAL,ELECTRICITY,1120,01-May-19,151029,40.47,BRITISH GAS,BRI040
EFDC,YB110,SUPERVISION/MANAGEMENT SPECIAL,ELECTRICITY,1120,01-May-19,151029,19.69,BRITISH GAS,BRI040
EFDC,YB110,SUPERVISION/MANAGEMENT SPECIAL,ELECTRICITY,1120,01-May-19,151029,20.35,BRITISH GAS,BRI040
EFDC,YB110,SUPERVISION/MANAGEMENT SPECIAL,ELECTRICITY,1120,01-May-19,151029,12.83,BRITISH GAS,BRI040
EFDC,PS100,CAR PARKING,CLEANSING CONTRACTORS,4320,01-May-19,150873,30.93,BIFFA MUNICIPAL LTD,BIF001
EFDC,YB110,SUPERVISION/MANAGEMENT SPECIAL,ELECTRICITY,1120,01-May-19,151029,10.37,BRITISH GAS,BRI040
EFDC,PS100,CAR PARKING,CLEANSING CONTRACTORS,4320,01-May-19,150873,-334.77,BIFFA MUNICIPAL LTD,BIF001
EFDC,YB110,SUPERVISION/MANAGEMENT SPECIAL,ELECTRICITY,1120,01-May-19,151029,14.37,BRITISH GAS,BRI040
EFDC,YB110,SUPERVISION/MANAGEMENT SPECIAL,ELECTRICITY,1120,01-May-19,151029,16.03,BRITISH GAS,BRI040
EFDC,YB110,SUPERVISION/MANAGEMENT SPECIAL,ELECTRICITY,1120,01-May-19,151029,24.46,BRITISH GAS,BRI040
EFDC,YB110,SUPERVISION/MANAGEMENT SPECIAL,ELECTRICITY,1120,01-May-19,151029,15.81,BRITISH GAS,BRI040
EFDC,YB110,SUPERVISION/MANAGEMENT SPECIAL,ELECTRICITY,1120,01-May-19,151029,24.64,BRITISH GAS,BRI040
EFDC,YB110,SUPERVISION/MANAGEMENT SPECIAL,ELECTRICITY,1120,01-May-19,151029,9.33,BRITISH GAS,BRI040
EFDC,YB110,SUPERVISION/MANAGEMENT SPECIAL,ELECTRICITY,1120,01-May-19,151029,27.71,BRITISH GAS,BRI040
EFDC,YB110,SUPERVISION/MANAGEMENT SPECIAL,ELECTRICITY,1120,01-May-19,151029,20.61,BRITISH GAS,BRI040
EFDC,YB110,SUPERVISION/MANAGEMENT SPECIAL,ELECTRICITY,1120,01-May-19,151029,47.79,BRITISH GAS,BRI040
EFDC,23140,ACCOMMODATION,REFUSE REMOVAL,1640,01-May-19,150873,22.52,BIFFA MUNICIPAL LTD,BIF001
EFDC,YB110,SUPERVISION/MANAGEMENT SPECIAL,ELECTRICITY,1120,01-May-19,151029,70.85,BRITISH GAS,BRI040
EFDC,WC100,WASTE MANAGEMENT,CLEANSING CONTRACTORS,4320,01-May-19,150873,3603.65,BIFFA MUNICIPAL LTD,BIF001
EFDC,43310,CONTRACT & TECH SUPPORT SERVIC,AGENCY STAFF,0120,01-May-19,151135,2052,MACDONALD & COMPANY FREELANCE LTD,MAC003
EFDC,YB110,SUPERVISION/MANAGEMENT SPECIAL,ELECTRICITY,1120,01-May-19,151029,16.17,BRITISH GAS,BRI040
EFDC,WC100,WASTE MANAGEMENT,CLEANSING CONTRACTORS,4320,01-May-19,150873,7627.72,BIFFA MUNICIPAL LTD,BIF001
EFDC,YB110,SUPERVISION/MANAGEMENT SPECIAL,ELECTRICITY,1120,01-May-19,151029,10.88,BRITISH GAS,BRI040
EFDC,YB110,SUPERVISION/MANAGEMENT SPECIAL,ELECTRICITY,1120,01-May-19,151029,146.97,BRITISH GAS,BRI040
EFDC,YB110,SUPERVISION/MANAGEMENT SPECIAL,ELECTRICITY,1120,01-May-19,151029,13.93,BRITISH GAS,BRI040
EFDC,YB110,SUPERVISION/MANAGEMENT SPECIAL,ELECTRICITY,1120,01-May-19,151029,14.28,BRITISH GAS,BRI040
EFDC,YB110,SUPERVISION/MANAGEMENT SPECIAL,ELECTRICITY,1120,01-May-19,151029,8.04,BRITISH GAS,BRI040
EFDC,YB110,SUPERVISION/MANAGEMENT SPECIAL,ELECTRICITY,1120,01-May-19,151029,13.26,BRITISH GAS,BRI040
EFDC,33080,OTHER ACTIVITIES,ANNUAL SUPPORT /  LICENSES,3872,01-May-19,149618,3084.9,BANKING AUTOMATION LTD,BAN011
EFDC,YB110,SUPERVISION/MANAGEMENT SPECIAL,ELECTRICITY,1120,01-May-19,151029,13.38,BRITISH GAS,BRI040
EFDC,YB110,SUPERVISION/MANAGEMENT SPECIAL,ELECTRICITY,1120,01-May-19,151029,16.89,BRITISH GAS,BRI040
EFDC,YB110,SUPERVISION/MANAGEMENT SPECIAL,ELECTRICITY,1120,01-May-19,151029,12.09,BRITISH GAS,BRI040
EFDC,37600,PLANNING SUPPORT SERVICES,AGENCY STAFF,0120,01-May-19,151134,769.5,MACDONALD & COMPANY FREELANCE LTD,MAC003
EFDC,WC100,WASTE MANAGEMENT,CLEANSING CONTRACTORS,4320,01-May-19,150873,592.37,BIFFA MUNICIPAL LTD,BIF001
EFDC,WC100,WASTE MANAGEMENT,CLEANSING CONTRACTORS,4320,01-May-19,150873,21.12,BIFFA MUNICIPAL LTD,BIF001
EFDC,YB110,SUPERVISION/MANAGEMENT SPECIAL,ELECTRICITY,1120,01-May-19,151029,15.35,BRITISH GAS,BRI040
EFDC,YB110,SUPERVISION/MANAGEMENT SPECIAL,ELECTRICITY,1120,01-May-19,151029,9.88,BRITISH GAS,BRI040
EFDC,YB110,SUPERVISION/MANAGEMENT SPECIAL,ELECTRICITY,1120,01-May-19,151029,33.36,BRITISH GAS,BRI040
EFDC,WC102,WASTE MANAGEMENT,CLEANSING CONTRACTORS,4320,01-May-19,150873,1075.8,BIFFA MUNICIPAL LTD,BIF001
EFDC,SC100,WASTE MANAGEMENT,CLEANSING CONTRACTORS,4320,01-May-19,150873,68.35,BIFFA MUNICIPAL LTD,BIF001
EFDC,SC100,WASTE MANAGEMENT,CLEANSING CONTRACTORS,4320,01-May-19,150873,1681.97,BIFFA MUNICIPAL LTD,BIF001
EFDC,WC100,WASTE MANAGEMENT,CLEANSING CONTRACTORS,4320,01-May-19,150873,150.36,BIFFA MUNICIPAL LTD,BIF001
EFDC,YB110,SUPERVISION/MANAGEMENT SPECIAL,ELECTRICITY,1120,01-May-19,151029,15.52,BRITISH GAS,BRI040
EFDC,YB110,SUPERVISION/MANAGEMENT SPECIAL,ELECTRICITY,1120,01-May-19,151029,9.52,BRITISH GAS,BRI040
EFDC,YB110,SUPERVISION/MANAGEMENT SPECIAL,ELECTRICITY,1120,01-May-19,151029,10.42,BRITISH GAS,BRI040
EFDC,YB110,SUPERVISION/MANAGEMENT SPECIAL,ELECTRICITY,1120,01-May-19,151029,9.4,BRITISH GAS,BRI040
EFDC,YB110,SUPERVISION/MANAGEMENT SPECIAL,ELECTRICITY,1120,01-May-19,151029,53.29,BRITISH GAS,BRI040
EFDC,YB110,SUPERVISION/MANAGEMENT SPECIAL,ELECTRICITY,1120,01-May-19,151029,12.98,BRITISH GAS,BRI040
EFDC,YB110,SUPERVISION/MANAGEMENT SPECIAL,ELECTRICITY,1120,01-May-19,151029,8.71,BRITISH GAS,BRI040
EFDC,YB110,SUPERVISION/MANAGEMENT SPECIAL,ELECTRICITY,1120,01-May-19,151029,16.31,BRITISH GAS,BRI040
EFDC,YB110,SUPERVISION/MANAGEMENT SPECIAL,ELECTRICITY,1120,01-May-19,151029,9.11,BRITISH GAS,BRI040
EFDC,YB110,SUPERVISION/MANAGEMENT SPECIAL,ELECTRICITY,1120,01-May-19,151029,13.26,BRITISH GAS,BRI040
EFDC,27050,ACCOMMODATION,REFUSE REMOVAL,1640,01-May-19,150873,461.66,BIFFA MUNICIPAL LTD,BIF001
EFDC,YB110,SUPERVISION/MANAGEMENT SPECIAL,ELECTRICITY,1120,01-May-19,151029,12.59,BRITISH GAS,BRI040
EFDC,YB110,SUPERVISION/MANAGEMENT SPECIAL,ELECTRICITY,1120,01-May-19,151029,17,BRITISH GAS,BRI040
EFDC,YB110,SUPERVISION/MANAGEMENT SPECIAL,ELECTRICITY,1120,01-May-19,151029,35.98,BRITISH GAS,BRI040
EFDC,YB110,SUPERVISION/MANAGEMENT SPECIAL,ELECTRICITY,1120,01-May-19,151029,38.74,BRITISH GAS,BRI040
EFDC,YB110,SUPERVISION/MANAGEMENT SPECIAL,ELECTRICITY,1120,01-May-19,151029,13.15,BRITISH GAS,BRI040
EFDC,CY100,COMMUNITY & PARTNERSHIP,CONTRIBUTIONS,3740,01-May-19,150873,210.92,BIFFA MUNICIPAL LTD,BIF001
EFDC,WC100,WASTE MANAGEMENT,EQUIPMENT - NEW,3010,01-May-19,150873,7176.18,BIFFA MUNICIPAL LTD,BIF001
EFDC,23110,ACCOMMODATION,REFUSE REMOVAL,1640,01-May-19,150873,11.26,BIFFA MUNICIPAL LTD,BIF001
EFDC,23110,ACCOMMODATION,REFUSE REMOVAL,1640,01-May-19,150873,25,BIFFA MUNICIPAL LTD,BIF001
EFDC,YB400,SUPERVISION/MANAGEMENT SPECIAL,REFUSE REMOVAL,1640,01-May-19,150873,1471.01,BIFFA MUNICIPAL LTD,BIF001
EFDC,YB500,SUPERVISION/MANAGEMENT SPECIAL,REFUSE REMOVAL,1640,01-May-19,150873,11.26,BIFFA MUNICIPAL LTD,BIF001
EFDC,27110,ACCOMMODATION,REFUSE REMOVAL,1640,01-May-19,150873,11.26,BIFFA MUNICIPAL LTD,BIF001
EFDC,YB110,SUPERVISION/MANAGEMENT SPECIAL,ELECTRICITY,1120,01-May-19,151029,15.75,BRITISH GAS,BRI040
EFDC,YB110,SUPERVISION/MANAGEMENT SPECIAL,ELECTRICITY,1120,01-May-19,151029,10.43,BRITISH GAS,BRI040
EFDC,YB110,SUPERVISION/MANAGEMENT SPECIAL,ELECTRICITY,1120,01-May-19,151029,14.78,BRITISH GAS,BRI040
EFDC,YB110,SUPERVISION/MANAGEMENT SPECIAL,ELECTRICITY,1120,01-May-19,151029,21.39,BRITISH GAS,BRI040
EFDC,27150,"COMMUNITY, HEALTH & WELLBEING",REFUSE REMOVAL,1640,01-May-19,150873,11.26,BIFFA MUNICIPAL LTD,BIF001
EFDC,YB110,SUPERVISION/MANAGEMENT SPECIAL,ELECTRICITY,1120,01-May-19,151029,19.05,BRITISH GAS,BRI040
EFDC,YB110,SUPERVISION/MANAGEMENT SPECIAL,ELECTRICITY,1120,01-May-19,151029,14.51,BRITISH GAS,BRI040
EFDC,YB110,SUPERVISION/MANAGEMENT SPECIAL,ELECTRICITY,1120,01-May-19,151029,10.8,BRITISH GAS,BRI040
EFDC,YB110,SUPERVISION/MANAGEMENT SPECIAL,ELECTRICITY,1120,01-May-19,151029,20.06,BRITISH GAS,BRI040
EFDC,YB110,SUPERVISION/MANAGEMENT SPECIAL,ELECTRICITY,1120,01-May-19,151029,17.78,BRITISH GAS,BRI040
EFDC,YB110,SUPERVISION/MANAGEMENT SPECIAL,ELECTRICITY,1120,01-May-19,151029,40,BRITISH GAS,BRI040
EFDC,YB110,SUPERVISION/MANAGEMENT SPECIAL,ELECTRICITY,1120,01-May-19,151029,10.93,BRITISH GAS,BRI040
EFDC,YB110,SUPERVISION/MANAGEMENT SPECIAL,ELECTRICITY,1120,01-May-19,151029,14.65,BRITISH GAS,BRI040
EFDC,YB110,SUPERVISION/MANAGEMENT SPECIAL,ELECTRICITY,1120,01-May-19,151029,11.9,BRITISH GAS,BRI040
EFDC,YB110,SUPERVISION/MANAGEMENT SPECIAL,ELECTRICITY,1120,01-May-19,151029,15.53,BRITISH GAS,BRI040
EFDC,YB110,SUPERVISION/MANAGEMENT SPECIAL,ELECTRICITY,1120,01-May-19,151029,32.23,BRITISH GAS,BRI040
EFDC,YB110,SUPERVISION/MANAGEMENT SPECIAL,ELECTRICITY,1120,01-May-19,151029,25.53,BRITISH GAS,BRI040
EFDC,YB110,SUPERVISION/MANAGEMENT SPECIAL,ELECTRICITY,1120,01-May-19,151029,6.9,BRITISH GAS,BRI040
EFDC,YB110,SUPERVISION/MANAGEMENT SPECIAL,ELECTRICITY,1120,01-May-19,151029,13.83,BRITISH GAS,BRI040
EFDC,YB110,SUPERVISION/MANAGEMENT SPECIAL,ELECTRICITY,1120,01-May-19,151029,12.19,BRITISH GAS,BRI040
EFDC,YB110,SUPERVISION/MANAGEMENT SPECIAL,ELECTRICITY,1120,01-May-19,151029,12.07,BRITISH GAS,BRI040
EFDC,YB110,SUPERVISION/MANAGEMENT SPECIAL,ELECTRICITY,1120,01-May-19,151029,19.65,BRITISH GAS,BRI040
EFDC,YB110,SUPERVISION/MANAGEMENT SPECIAL,ELECTRICITY,1120,01-May-19,151029,17.4,BRITISH GAS,BRI040
EFDC,YB110,SUPERVISION/MANAGEMENT SPECIAL,ELECTRICITY,1120,01-May-19,151029,14.26,BRITISH GAS,BRI040
EFDC,WC100,WASTE MANAGEMENT,EQUIPMENT - NEW,3010,01-May-19,150873,228,BIFFA MUNICIPAL LTD,BIF001
EFDC,YB110,SUPERVISION/MANAGEMENT SPECIAL,ELECTRICITY,1120,01-May-19,151029,8.94,BRITISH GAS,BRI040
EFDC,FD100,LAND DRAINAGE/SEWERAGE,CLEANSING CONTRACTORS,4320,01-May-19,150873,8.92,BIFFA MUNICIPAL LTD,BIF001
EFDC,YB520,SUPERVISION/MANAGEMENT SPECIAL,ELECTRICITY,1120,01-May-19,151029,165.93,BRITISH GAS,BRI040
EFDC,YB520,SUPERVISION/MANAGEMENT SPECIAL,ELECTRICITY,1120,01-May-19,151029,155.36,BRITISH GAS,BRI040
EFDC,YB110,SUPERVISION/MANAGEMENT SPECIAL,ELECTRICITY,1120,01-May-19,151029,12.3,BRITISH GAS,BRI040
EFDC,YB500,SUPERVISION/MANAGEMENT SPECIAL,ELECTRICITY,1120,01-May-19,151029,231.01,BRITISH GAS,BRI040
EFDC,YB500,SUPERVISION/MANAGEMENT SPECIAL,ELECTRICITY,1120,01-May-19,151029,312.77,BRITISH GAS,BRI040
EFDC,YB500,SUPERVISION/MANAGEMENT SPECIAL,ELECTRICITY,1120,01-May-19,151029,13.38,BRITISH GAS,BRI040
EFDC,YB110,SUPERVISION/MANAGEMENT SPECIAL,ELECTRICITY,1120,01-May-19,151029,53.83,BRITISH GAS,BRI040
